Workbook

Sheet AEG Input File
E1: Dth | F1: Dth | G1: Dth | H1: Dth | I1: Dth | J1: Dth | K1: Dth | L1: Dth | M1: Dth | N1: Dth | O1: Dth | P1: Dth | Q1: Dth | R1: Dth | S1: Dth | T1: Dth | U1: Dth | V1: Dth | W1: Dth | X1: Dth | Y1: Dth | Z1: Dth | AA1: Dth | AB1: Dth | AC1: Capital Expense Costs | AD1: Capital Expense Costs | AE1: Capital Expense Costs | AF1: Capital Expense Costs | AG1: Capital Expense Costs | AH1: Capital Expense Costs | AI1: Capital Expense Costs | AJ1: Capital Expense Costs | AK1: Capital Expense Costs | AL1: Capital Expense Costs | AM1: Capital Expense Costs | AN1: Capital Expense Costs | AO1: Capital Expense Costs | AP1: Capital Expense Costs | AQ1: Capital Expense Costs | AR1: Capital Expense Costs | AS1: Capital Expense Costs | AT1: Capital Expense Costs | AU1: Capital Expense Costs | AV1: Capital Expense Costs | AW1: Capital Expense Costs | AX1: Capital Expense Costs | AY1: Capital Expense Costs | AZ1: Capital Expense Costs | BA1: O&M Costs | BB1: O&M Costs | BC1: O&M Costs | BD1: O&M Costs | BE1: O&M Costs | BF1: O&M Costs | BG1: O&M Costs | BH1: O&M Costs | BI1: O&M Costs | BJ1: O&M Costs | BK1: O&M Costs | BL1: O&M Costs | BM1: O&M Costs | BN1: O&M Costs | BO1: O&M Costs | BP1: O&M Costs | BQ1: O&M Costs | BR1: O&M Costs | BS1: O&M Costs | BT1: O&M Costs | BU1: O&M Costs | BV1: O&M Costs | BW1: O&M Costs | BX1: O&M Costs
B2: Row Labels | C2: Option | D2: Start Year | E2: 2023 | F2: 2024 | G2: 2025 | H2: 2026 | I2: 2027 | J2: 2028 | K2: 2029 | L2: 2030 | M2: 2031 | N2: 2032 | O2: 2033 | P2: 2034 | Q2: 2035 | R2: 2036 | S2: 2037 | T2: 2038 | U2: 2039 | V2: 2040 | W2: 2041 | X2: 2042 | Y2: 2043 | Z2: 2044 | AA2: 2045 | AB2: 2046 | AC2: 2023 | AD2: 2024 | AE2: 2025 | AF2: 2026 | AG2: 2027 | AH2: 2028 | AI2: 2029 | AJ2: 2030 | AK2: 2031 | AL2: 2032 | AM2: 2033 | AN2: 2034 | AO2: 2035 | AP2: 2036 | AQ2: 2037 | AR2: 2038 | AS2: 2039 | AT2: 2040 | AU2: 2041 | AV2: 2042 | AW2: 2043 | AX2: 2044 | AY2: 2045 | AZ2: 2046 | BA2: 2023 | BB2: 2024 | BC2: 2025 | BD2: 2026 | BE2: 2027 | BF2: 2028 | BG2: 2029 | BH2: 2030 | BI2: 2031 | BJ2: 2032 | BK2: 2033 | BL2: 2034 | BM2: 2035 | BN2: 2036 | BO2: 2037 | BP2: 2038 | BQ2: 2039 | BR2: 2040 | BS2: 2041 | BT2: 2042 | BU2: 2043 | BV2: 2044 | BW2: 2045 | BX2: 2046
A3: 2 | B3: Stand Alone | C3: Behavioral | D3: 2023 | E3: 0 | F3: 0 | G3: 0 | H3: 0 | I3: 0 | J3: 0 | K3: 0 | L3: 0 | M3: 0 | N3: 0 | O3: 0 | P3: 0 | Q3: 0 | R3: 0 | S3: 0 | T3: 0 | U3: 0 | V3: 0 | W3: 0 | X3: 0 | Y3: 0 | Z3: 0 | AA3: 0 | AB3: 0 | AC3: 0 | AD3: 0 | AE3: 0 | AF3: 0 | AG3: 0 | AH3: 0 | AI3: 0 | AJ3: 0 | AK3: 0 | AL3: 0 | AM3: 0 | AN3: 0 | AO3: 0 | AP3: 0 | AQ3: 0 | AR3: 0 | AS3: 0 | AT3: 0 | AU3: 0 | AV3: 0 | AW3: 0 | AX3: 0 | AY3: 0 | AZ3: 0 | BB3: 0 | BC3: 0 | BD3: 0 | BE3: 0 | BF3: 0 | BG3: 0 | BH3: 0 | BI3: 0 | BJ3: 0 | BK3: 0 | BL3: 0 | BM3: 0 | BN3: 0 | BO3: 0 | BP3: 0 | BQ3: 0 | BR3: 0 | BS3: 0 | BT3: 0 | BU3: 0 | BV3: 0 | BW3: 0 | BX3: 0
A4: 3 | B4: Stand Alone | C4: DLC Water Heating | D4: 2023 | AC4: 0 | AD4: 0 | AE4: 0 | AF4: 0 | AG4: 0 | AH4: 0 | AI4: 0 | AJ4: 0 | AK4: 0 | AL4: 0 | AM4: 0 | AN4: 0 | AO4: 0 | AP4: 0 | AQ4: 0 | AR4: 0 | AS4: 0 | AT4: 0 | AU4: 0 | AV4: 0 | AW4: 0 | AX4: 0 | AY4: 0 | AZ4: 0 | BB4: 0 | BC4: 0 | BD4: 0 | BE4: 0 | BF4: 0 | BG4: 0 | BH4: 0 | BI4: 0 | BJ4: 0 | BK4: 0 | BL4: 0 | BM4: 0 | BN4: 0 | BO4: 0 | BP4: 0 | BQ4: 0 | BR4: 0 | BS4: 0 | BT4: 0 | BU4: 0 | BV4: 0 | BW4: 0 | BX4: 0
A5: 4 | B5: Stand Alone | C5: DLC Smart Thermostats - BYOT | D5: 2023 | E5: 0 | F5: 8.564486672 | G5: 26.15474114 | H5: 62.20489503 | I5: 81.26485553 | J5: 91.67288328 | K5: 93.07701164 | L5: 94.50717997 | M5: 95.8556901 | N5: 97.2266471 | O5: 98.62044327 | P5: 100.0374779 | Q5: 101.4781572 | R5: 102.9428948 | S5: 104.4321116 | T5: 105.9462357 | U5: 107.4857033 | V5: 109.0509577 | W5: 110.6424506 | X5: 112.2606415 | Y5: 113.9059979 | Z5: 115.5789957 | AA5: 117.2801194 | AB5: 119.0098619 | AC5: 0 | AD5: 52107.91395 | AE5: 103963.3246 | AF5: 209568.0275 | AG5: 112940.5124 | AH5: 63403.57484 | AI5: 11373.56091 | AJ5: 11544.92431 | AK5: 10298.74132 | AL5: 10431.66833 | AM5: 10567.02307 | AN5: 10704.85503 | AO5: 10845.21416 | AP5: 10988.14227 | AQ5: 11133.68733 | AR5: 11281.9093 | AS5: 11432.8398 | AT5: 11586.54842 | AU5: 11743.08507 | AV5: 11902.49432 | AW5: 12064.83575 | AX5: 12230.17244 | AY5: 12398.54461 | AZ5: 12570.03399 | BB5: 70019.35629 | BC5: 128104.3019 | BD5: 246853.3917 | BE5: 310231.765 | BF5: 345267.5793 | BG5: 350642.279 | BH5: 356124.0232 | BI5: 361233.7831 | BJ5: 366434.5373 | BK5: 371727.9762 | BL5: 377115.8148 | BM5: 382599.81 | BN5: 388181.7352 | BO5: 393863.4206 | BP5: 399646.7081 | BQ5: 405533.5 | BR5: 411525.6991 | BS5: 417625.2901 | BT5: 423834.2531 | BU5: 430154.6331 | BV5: 436588.4977 | BW5: 443137.9629 | BX5: 449805.1881
A6: 5 | B6: Stand Alone | C6: Time-of-Use | D6: 2023 | E6: 0 | F6: 0 | G6: 0 | H6: 0 | I6: 0 | J6: 0 | K6: 0 | L6: 0 | M6: 0 | N6: 0 | O6: 0 | P6: 0 | Q6: 0 | R6: 0 | S6: 0 | T6: 0 | U6: 0 | V6: 0 | W6: 0 | X6: 0 | Y6: 0 | Z6: 0 | AA6: 0 | AB6: 0 | AC6: 0 | AD6: 0 | AE6: 0 | AF6: 0 | AG6: 0 | AH6: 0 | AI6: 0 | AJ6: 0 | AK6: 0 | AL6: 0 | AM6: 0 | AN6: 0 | AO6: 0 | AP6: 0 | AQ6: 0 | AR6: 0 | AS6: 0 | AT6: 0 | AU6: 0 | AV6: 0 | AW6: 0 | AX6: 0 | AY6: 0 | AZ6: 0 | BB6: 0 | BC6: 0 | BD6: 0 | BE6: 0 | BF6: 0 | BG6: 0 | BH6: 0 | BI6: 0 | BJ6: 0 | BK6: 0 | BL6: 0 | BM6: 0 | BN6: 0 | BO6: 0 | BP6: 0 | BQ6: 0 | BR6: 0 | BS6: 0 | BT6: 0 | BU6: 0 | BV6: 0 | BW6: 0 | BX6: 0
A7: 6 | B7: Stand Alone | C7: Variable Peak Pricing | D7: 2023 | E7: 0 | F7: 0 | G7: 0 | H7: 0 | I7: 0 | J7: 0 | K7: 0 | L7: 0 | M7: 0 | N7: 0 | O7: 0 | P7: 0 | Q7: 0 | R7: 0 | S7: 0 | T7: 0 | U7: 0 | V7: 0 | W7: 0 | X7: 0 | Y7: 0 | Z7: 0 | AA7: 0 | AB7: 0 | AC7: 0 | AD7: 0 | AE7: 0 | AF7: 0 | AG7: 0 | AH7: 0 | AI7: 0 | AJ7: 0 | AK7: 0 | AL7: 0 | AM7: 0 | AN7: 0 | AO7: 0 | AP7: 0 | AQ7: 0 | AR7: 0 | AS7: 0 | AT7: 0 | AU7: 0 | AV7: 0 | AW7: 0 | AX7: 0 | AY7: 0 | AZ7: 0 | BB7: 0 | BC7: 0 | BD7: 0 | BE7: 0 | BF7: 0 | BG7: 0 | BH7: 0 | BI7: 0 | BJ7: 0 | BK7: 0 | BL7: 0 | BM7: 0 | BN7: 0 | BO7: 0 | BP7: 0 | BQ7: 0 | BR7: 0 | BS7: 0 | BT7: 0 | BU7: 0 | BV7: 0 | BW7: 0 | BX7: 0
A8: 7 | B8: Stand Alone | C8: Third Party Contracts | D8: 2023 | E8: 0 | F8: 0.4248187915 | G8: 0.67917398 | H8: 0.8492795462 | I8: 0.8496140171 | J8: 0.8499486198 | K8: 0.8502833542 | L8: 0.8506182205 | M8: 0.8509532186 | N8: 0.8512883487 | O8: 0.8516236108 | P8: 0.8519590049 | Q8: 0.8522945311 | R8: 0.8526301894 | S8: 0.8529659799 | T8: 0.8533019027 | U8: 0.8536379577 | V8: 0.8539741451 | W8: 0.8543104649 | X8: 0.8546469172 | Y8: 0.854983502 | Z8: 0.8553202193 | AA8: 0.8556570692 | AB8: 0.8559940518 | AC8: 0 | AD8: 15014.28304 | AE8: 14897.16824 | AF8: 14760.02363 | AG8: 14623.03739 | AH8: 14486.30167 | AI8: 14349.8334 | AJ8: 14213.64944 | AK8: 14077.76654 | AL8: 13942.20134 | AM8: 13806.97041 | AN8: 13672.09015 | AO8: 13537.57686 | AP8: 13403.44671 | AQ8: 13269.71572 | AR8: 13136.39974 | AS8: 13003.51447 | AT8: 12871.07545 | AU8: 12739.09803 | AV8: 12607.59738 | AW8: 12476.58847 | AX8: 12346.08609 | AY8: 12216.10479 | AZ8: 12086.65893 | BB8: 81825.80248 | BC8: 81410.72484 | BD8: 80811.44382 | BE8: 80065.13377 | BF8: 79320.19462 | BG8: 78576.70716 | BH8: 77834.77229 | BI8: 77094.47673 | BJ8: 76355.91011 | BK8: 75619.17449 | BL8: 74884.33859 | BM8: 74151.50629 | BN8: 73420.76434 | BO8: 72692.19562 | BP8: 71965.89157 | BQ8: 71241.92723 | BR8: 70520.39837 | BS8: 69801.39027 | BT8: 69084.97526 | BU8: 68371.2397 | BV8: 67660.26283 | BW8: 66952.13144 | BX8: 66246.9137
C11: Behavioral | E11: =IFERROR(E3/$AA3,0) -> 0 | F11: 0 | G11: 0 | H11: 0 | I11: 0 | J11: 0 | K11: 0 | L11: 0 | M11: 0 | N11: 0 | O11: 0 | P11: 0 | Q11: 0 | R11: 0 | S11: 0 | T11: 0 | U11: 0 | V11: 0 | W11: 0 | X11: 0 | Y11: 0 | Z11: 0 | AA11: 0
C12: DLC Water Heating | E12: =IFERROR(E4/$AA4,0) -> 0 | F12: 0 | G12: 0 | H12: 0 | I12: 0 | J12: 0 | K12: 0 | L12: 0 | M12: 0 | N12: 0 | O12: 0 | P12: 0 | Q12: 0 | R12: 0 | S12: 0 | T12: 0 | U12: 0 | V12: 0 | W12: 0 | X12: 0 | Y12: 0 | Z12: 0 | AA12: 0
C13: DLC Smart Thermostats - BYOT | E13: =IFERROR(E5/$AA5,0) -> 0 | F13: 0.07302590342 | G13: 0.2230108673 | H13: 0.5303959047 | I13: 0.6929124556 | J13: 0.7816574859 | K13: 0.7936299189 | L13: 0.805824384 | M13: 0.8173225829 | N13: 0.829012177 | O13: 0.8408965115 | P13: 0.8529789906 | Q13: 0.865263079 | R13: 0.8777523024 | S13: 0.8904502494 | T13: 0.9033605721 | U13: 0.916486987 | V13: 0.9298332768 | W13: 0.9434032912 | X13: 0.957200948 | Y13: 0.9712302344 | Z13: 0.9854952084 | AA13: 1
C14: Time-of-Use | E14: =IFERROR(E6/$AA6,0) -> 0 | F14: 0 | G14: 0 | H14: 0 | I14: 0 | J14: 0 | K14: 0 | L14: 0 | M14: 0 | N14: 0 | O14: 0 | P14: 0 | Q14: 0 | R14: 0 | S14: 0 | T14: 0 | U14: 0 | V14: 0 | W14: 0 | X14: 0 | Y14: 0 | Z14: 0 | AA14: 0
C15: Variable Peak Pricing | E15: =IFERROR(E7/$AA7,0) -> 0 | F15: 0 | G15: 0 | H15: 0 | I15: 0 | J15: 0 | K15: 0 | L15: 0 | M15: 0 | N15: 0 | O15: 0 | P15: 0 | Q15: 0 | R15: 0 | S15: 0 | T15: 0 | U15: 0 | V15: 0 | W15: 0 | X15: 0 | Y15: 0 | Z15: 0 | AA15: 0
C16: Third Party Contracts | E16: =IFERROR(E8/$AA8,0) -> 0 | F16: 0.4964825359 | G16: 0.7937455371 | H16: 0.9925466367 | I16: 0.9929375303 | J16: 0.993328578 | K16: 0.9937197796 | L16: 0.9941111353 | M16: 0.9945026451 | N16: 0.9948943091 | O16: 0.9952861274 | P16: 0.9956780999 | Q16: 0.9960702269 | R16: 0.9964625083 | S16: 0.9968549441 | T16: 0.9972475345 | U16: 0.9976402795 | V16: 0.9980331792 | W16: 0.9984262337 | X16: 0.9988194429 | Y16: 0.999212807 | Z16: 0.999606326 | AA16: 1

Sheet LC
C2: 2 | D2: 3 | E2: 4 | F2: 5 | G2: 6 | H2: 7 | I2: 8 | J2: 9 | K2: 10 | L2: 11 | M2: 12 | N2: 13 | O2: 14 | P2: 15 | Q2: 16 | R2: 17 | S2: 18 | T2: 19 | U2: 20 | V2: 21 | W2: 22 | X2: 23 | Y2: 24
A3: Revenue Requirement | B3: Levelization | C3: 2023 | D3: 2024 | E3: 2025 | F3: 2026 | G3: 2027 | H3: 2028 | I3: 2029 | J3: 2030 | K3: 2031 | L3: 2032 | M3: 2033 | N3: 2034 | O3: 2035 | P3: 2036 | Q3: 2037 | R3: 2038 | S3: 2039 | T3: 2040 | U3: 2041 | V3: 2042 | W3: 2043 | X3: 2044 | Y3: 2045
A4: Behavioral | B4: =IFERROR(-PMT($B$31,24,NPV($B$31,LC!C4:Y4)),0) -> 0 | C4: =IFERROR(-PMT($B$31,24,NPV($B$31,LC!D4:Z4)),0) -> 0 | D4: =IFERROR(-PMT($B$31,24,NPV($B$31,LC!E4:AA4)),0) -> 0 | E4: =IFERROR(-PMT($B$31,24,NPV($B$31,LC!F4:AB4)),0) -> 0 | F4: =IFERROR(-PMT($B$31,24,NPV($B$31,LC!G4:AC4)),0) -> 0 | G4: =IFERROR(-PMT($B$31,24,NPV($B$31,LC!H4:AD4)),0) -> 0 | H4: =IFERROR(-PMT($B$31,24,NPV($B$31,LC!I4:AE4)),0) -> 0 | I4: =IFERROR(-PMT($B$31,24,NPV($B$31,LC!J4:AF4)),0) -> 0 | J4: =IFERROR(-PMT($B$31,24,NPV($B$31,LC!K4:AG4)),0) -> 0 | K4: =IFERROR(-PMT($B$31,24,NPV($B$31,LC!L4:AH4)),0) -> 0 | L4: =IFERROR(-PMT($B$31,24,NPV($B$31,LC!M4:AI4)),0) -> 0 | M4: =IFERROR(-PMT($B$31,24,NPV($B$31,LC!N4:AJ4)),0) -> 0 | N4: =IFERROR(-PMT($B$31,24,NPV($B$31,LC!O4:AK4)),0) -> 0 | O4: =IFERROR(-PMT($B$31,24,NPV($B$31,LC!P4:AL4)),0) -> 0 | P4: =IFERROR(-PMT($B$31,24,NPV($B$31,LC!Q4:AM4)),0) -> 0 | Q4: =IFERROR(-PMT($B$31,24,NPV($B$31,LC!R4:AN4)),0) -> 0 | R4: =IFERROR(-PMT($B$31,24,NPV($B$31,LC!S4:AO4)),0) -> 0 | S4: =IFERROR(-PMT($B$31,24,NPV($B$31,LC!T4:AP4)),0) -> 0 | T4: =IFERROR(-PMT($B$31,24,NPV($B$31,LC!U4:AQ4)),0) -> 0 | U4: =IFERROR(-PMT($B$31,24,NPV($B$31,LC!V4:AR4)),0) -> 0 | V4: =IFERROR(-PMT($B$31,24,NPV($B$31,LC!W4:AS4)),0) -> 0 | W4: =IFERROR(-PMT($B$31,24,NPV($B$31,LC!X4:AT4)),0) -> 0 | X4: =IFERROR(-PMT($B$31,24,NPV($B$31,LC!Y4:AU4)),0) -> 0 | Y4: =IFERROR(-PMT($B$31,24,NPV($B$31,LC!Z4:AV4)),0) -> 0
A5: DLC Water Heating | B5: =IFERROR(-PMT($B$31,24,NPV($B$31,LC!C5:Y5)),0) -> 0 | C5: =IFERROR(-PMT($B$31,24,NPV($B$31,LC!D5:Z5)),0) -> 0 | D5: =IFERROR(-PMT($B$31,24,NPV($B$31,LC!E5:AA5)),0) -> 0 | E5: =IFERROR(-PMT($B$31,24,NPV($B$31,LC!F5:AB5)),0) -> 0 | F5: =IFERROR(-PMT($B$31,24,NPV($B$31,LC!G5:AC5)),0) -> 0 | G5: =IFERROR(-PMT($B$31,24,NPV($B$31,LC!H5:AD5)),0) -> 0 | H5: =IFERROR(-PMT($B$31,24,NPV($B$31,LC!I5:AE5)),0) -> 0 | I5: =IFERROR(-PMT($B$31,24,NPV($B$31,LC!J5:AF5)),0) -> 0 | J5: =IFERROR(-PMT($B$31,24,NPV($B$31,LC!K5:AG5)),0) -> 0 | K5: =IFERROR(-PMT($B$31,24,NPV($B$31,LC!L5:AH5)),0) -> 0 | L5: =IFERROR(-PMT($B$31,24,NPV($B$31,LC!M5:AI5)),0) -> 0 | M5: =IFERROR(-PMT($B$31,24,NPV($B$31,LC!N5:AJ5)),0) -> 0 | N5: =IFERROR(-PMT($B$31,24,NPV($B$31,LC!O5:AK5)),0) -> 0 | O5: =IFERROR(-PMT($B$31,24,NPV($B$31,LC!P5:AL5)),0) -> 0 | P5: =IFERROR(-PMT($B$31,24,NPV($B$31,LC!Q5:AM5)),0) -> 0 | Q5: =IFERROR(-PMT($B$31,24,NPV($B$31,LC!R5:AN5)),0) -> 0 | R5: =IFERROR(-PMT($B$31,24,NPV($B$31,LC!S5:AO5)),0) -> 0 | S5: =IFERROR(-PMT($B$31,24,NPV($B$31,LC!T5:AP5)),0) -> 0 | T5: =IFERROR(-PMT($B$31,24,NPV($B$31,LC!U5:AQ5)),0) -> 0 | U5: =IFERROR(-PMT($B$31,24,NPV($B$31,LC!V5:AR5)),0) -> 0 | V5: =IFERROR(-PMT($B$31,24,NPV($B$31,LC!W5:AS5)),0) -> 0 | W5: =IFERROR(-PMT($B$31,24,NPV($B$31,LC!X5:AT5)),0) -> 0 | X5: =IFERROR(-PMT($B$31,24,NPV($B$31,LC!Y5:AU5)),0) -> 0 | Y5: =IFERROR(-PMT($B$31,24,NPV($B$31,LC!Z5:AV5)),0) -> 0
A6: DLC Smart Thermostats - BYOT | B6: =-PMT($B$31,24,NPV($B$31,LC!C6:Y6)) -> 456521.7864 | C6: =VLOOKUP(C$3,'DLC-Smart TS'!$A$28:$S$50,19,FALSE) -> 0 | D6: =VLOOKUP(D$3,'DLC-Smart TS'!$A$28:$S$50,19,FALSE) -> 88454.87977 | E6: =VLOOKUP(E$3,'DLC-Smart TS'!$A$28:$S$50,19,FALSE) -> 178103.9888 | F6: =VLOOKUP(F$3,'DLC-Smart TS'!$A$28:$S$50,19,FALSE) -> 363520.3537 | G6: =VLOOKUP(G$3,'DLC-Smart TS'!$A$28:$S$50,19,FALSE) -> 465439.3274 | H6: =VLOOKUP(H$3,'DLC-Smart TS'!$A$28:$S$50,19,FALSE) -> 524045.2798 | I6: =VLOOKUP(I$3,'DLC-Smart TS'!$A$28:$S$50,19,FALSE) -> 535324.9713 | J6: =VLOOKUP(J$3,'DLC-Smart TS'!$A$28:$S$50,19,FALSE) -> 547698.1651 | K6: =VLOOKUP(K$3,'DLC-Smart TS'!$A$28:$S$50,19,FALSE) -> 560180.738 | L6: =VLOOKUP(L$3,'DLC-Smart TS'!$A$28:$S$50,19,FALSE) -> 573674.3658 | M6: =VLOOKUP(M$3,'DLC-Smart TS'!$A$28:$S$50,19,FALSE) -> 588079.1719 | N6: =VLOOKUP(N$3,'DLC-Smart TS'!$A$28:$S$50,19,FALSE) -> 597721.9646 | O6: =VLOOKUP(O$3,'DLC-Smart TS'!$A$28:$S$50,19,FALSE) -> 602778.9572 | P6: =VLOOKUP(P$3,'DLC-Smart TS'!$A$28:$S$50,19,FALSE) -> 597512.0875 | Q6: =VLOOKUP(Q$3,'DLC-Smart TS'!$A$28:$S$50,19,FALSE) -> 605476.4703 | R6: =VLOOKUP(R$3,'DLC-Smart TS'!$A$28:$S$50,19,FALSE) -> 620790.7369 | S6: =VLOOKUP(S$3,'DLC-Smart TS'!$A$28:$S$50,19,FALSE) -> 643557.5104 | T6: =VLOOKUP(T$3,'DLC-Smart TS'!$A$28:$S$50,19,FALSE) -> 667209.3851 | U6: =VLOOKUP(U$3,'DLC-Smart TS'!$A$28:$S$50,19,FALSE) -> 691957.8147 | V6: =VLOOKUP(V$3,'DLC-Smart TS'!$A$28:$S$50,19,FALSE) -> 717656.9136 | W6: =VLOOKUP(W$3,'DLC-Smart TS'!$A$28:$S$50,19,FALSE) -> 744344.1268 | X6: =VLOOKUP(X$3,'DLC-Smart TS'!$A$28:$S$50,19,FALSE) -> 772058.3736 | Y6: =VLOOKUP(Y$3,'DLC-Smart TS'!$A$28:$S$50,19,FALSE) -> 800840.1422
A7: Time-of-Use | B7: =IFERROR(-PMT($B$31,24,NPV($B$31,LC!C7:Y7)),0) -> 0 | C7: =IFERROR(-PMT($B$31,24,NPV($B$31,LC!D7:Z7)),0) -> 0 | D7: =IFERROR(-PMT($B$31,24,NPV($B$31,LC!E7:AA7)),0) -> 0 | E7: =IFERROR(-PMT($B$31,24,NPV($B$31,LC!F7:AB7)),0) -> 0 | F7: =IFERROR(-PMT($B$31,24,NPV($B$31,LC!G7:AC7)),0) -> 0 | G7: =IFERROR(-PMT($B$31,24,NPV($B$31,LC!H7:AD7)),0) -> 0 | H7: =IFERROR(-PMT($B$31,24,NPV($B$31,LC!I7:AE7)),0) -> 0 | I7: =IFERROR(-PMT($B$31,24,NPV($B$31,LC!J7:AF7)),0) -> 0 | J7: =IFERROR(-PMT($B$31,24,NPV($B$31,LC!K7:AG7)),0) -> 0 | K7: =IFERROR(-PMT($B$31,24,NPV($B$31,LC!L7:AH7)),0) -> 0 | L7: =IFERROR(-PMT($B$31,24,NPV($B$31,LC!M7:AI7)),0) -> 0 | M7: =IFERROR(-PMT($B$31,24,NPV($B$31,LC!N7:AJ7)),0) -> 0 | N7: =IFERROR(-PMT($B$31,24,NPV($B$31,LC!O7:AK7)),0) -> 0 | O7: =IFERROR(-PMT($B$31,24,NPV($B$31,LC!P7:AL7)),0) -> 0 | P7: =IFERROR(-PMT($B$31,24,NPV($B$31,LC!Q7:AM7)),0) -> 0 | Q7: =IFERROR(-PMT($B$31,24,NPV($B$31,LC!R7:AN7)),0) -> 0 | R7: =IFERROR(-PMT($B$31,24,NPV($B$31,LC!S7:AO7)),0) -> 0 | S7: =IFERROR(-PMT($B$31,24,NPV($B$31,LC!T7:AP7)),0) -> 0 | T7: =IFERROR(-PMT($B$31,24,NPV($B$31,LC!U7:AQ7)),0) -> 0 | U7: =IFERROR(-PMT($B$31,24,NPV($B$31,LC!V7:AR7)),0) -> 0 | V7: =IFERROR(-PMT($B$31,24,NPV($B$31,LC!W7:AS7)),0) -> 0 | W7: =IFERROR(-PMT($B$31,24,NPV($B$31,LC!X7:AT7)),0) -> 0 | X7: =IFERROR(-PMT($B$31,24,NPV($B$31,LC!Y7:AU7)),0) -> 0 | Y7: =IFERROR(-PMT($B$31,24,NPV($B$31,LC!Z7:AV7)),0) -> 0
A8: Variable Peak Pricing | B8: =IFERROR(-PMT($B$31,24,NPV($B$31,LC!C8:Y8)),0) -> 0 | C8: =IFERROR(-PMT($B$31,24,NPV($B$31,LC!D8:Z8)),0) -> 0 | D8: =IFERROR(-PMT($B$31,24,NPV($B$31,LC!E8:AA8)),0) -> 0 | E8: =IFERROR(-PMT($B$31,24,NPV($B$31,LC!F8:AB8)),0) -> 0 | F8: =IFERROR(-PMT($B$31,24,NPV($B$31,LC!G8:AC8)),0) -> 0 | G8: =IFERROR(-PMT($B$31,24,NPV($B$31,LC!H8:AD8)),0) -> 0 | H8: =IFERROR(-PMT($B$31,24,NPV($B$31,LC!I8:AE8)),0) -> 0 | I8: =IFERROR(-PMT($B$31,24,NPV($B$31,LC!J8:AF8)),0) -> 0 | J8: =IFERROR(-PMT($B$31,24,NPV($B$31,LC!K8:AG8)),0) -> 0 | K8: =IFERROR(-PMT($B$31,24,NPV($B$31,LC!L8:AH8)),0) -> 0 | L8: =IFERROR(-PMT($B$31,24,NPV($B$31,LC!M8:AI8)),0) -> 0 | M8: =IFERROR(-PMT($B$31,24,NPV($B$31,LC!N8:AJ8)),0) -> 0 | N8: =IFERROR(-PMT($B$31,24,NPV($B$31,LC!O8:AK8)),0) -> 0 | O8: =IFERROR(-PMT($B$31,24,NPV($B$31,LC!P8:AL8)),0) -> 0 | P8: =IFERROR(-PMT($B$31,24,NPV($B$31,LC!Q8:AM8)),0) -> 0 | Q8: =IFERROR(-PMT($B$31,24,NPV($B$31,LC!R8:AN8)),0) -> 0 | R8: =IFERROR(-PMT($B$31,24,NPV($B$31,LC!S8:AO8)),0) -> 0 | S8: =IFERROR(-PMT($B$31,24,NPV($B$31,LC!T8:AP8)),0) -> 0 | T8: =IFERROR(-PMT($B$31,24,NPV($B$31,LC!U8:AQ8)),0) -> 0 | U8: =IFERROR(-PMT($B$31,24,NPV($B$31,LC!V8:AR8)),0) -> 0 | V8: =IFERROR(-PMT($B$31,24,NPV($B$31,LC!W8:AS8)),0) -> 0 | W8: =IFERROR(-PMT($B$31,24,NPV($B$31,LC!X8:AT8)),0) -> 0 | X8: =IFERROR(-PMT($B$31,24,NPV($B$31,LC!Y8:AU8)),0) -> 0 | Y8: =IFERROR(-PMT($B$31,24,NPV($B$31,LC!Z8:AV8)),0) -> 0
A9: Third Party Contracts | B9: =-PMT($B$31,24,NPV($B$31,LC!C9:Y9)) -> 108078.7348 | C9: =VLOOKUP(C$3,'3rd party cont.'!$A$28:$S$50,19,FALSE) -> 0 | D9: =VLOOKUP(D$3,'3rd party cont.'!$A$28:$S$50,19,FALSE) -> 93417.99099 | E9: =VLOOKUP(E$3,'3rd party cont.'!$A$28:$S$50,19,FALSE) -> 98160.71117 | F9: =VLOOKUP(F$3,'3rd party cont.'!$A$28:$S$50,19,FALSE) -> 102433.4285 | G9: =VLOOKUP(G$3,'3rd party cont.'!$A$28:$S$50,19,FALSE) -> 106399.407 | H9: =VLOOKUP(H$3,'3rd party cont.'!$A$28:$S$50,19,FALSE) -> 110235.4126 | I9: =VLOOKUP(I$3,'3rd party cont.'!$A$28:$S$50,19,FALSE) -> 113915.4159 | J9: =VLOOKUP(J$3,'3rd party cont.'!$A$28:$S$50,19,FALSE) -> 117485.734 | K9: =VLOOKUP(K$3,'3rd party cont.'!$A$28:$S$50,19,FALSE) -> 120953.3996 | L9: =VLOOKUP(L$3,'3rd party cont.'!$A$28:$S$50,19,FALSE) -> 124316.7967 | M9: =VLOOKUP(M$3,'3rd party cont.'!$A$28:$S$50,19,FALSE) -> 127574.2858 | N9: =VLOOKUP(N$3,'3rd party cont.'!$A$28:$S$50,19,FALSE) -> 129126.727 | O9: =VLOOKUP(O$3,'3rd party cont.'!$A$28:$S$50,19,FALSE) -> 130683.7517 | P9: =VLOOKUP(P$3,'3rd party cont.'!$A$28:$S$50,19,FALSE) -> 132249.6617 | Q9: =VLOOKUP(Q$3,'3rd party cont.'!$A$28:$S$50,19,FALSE) -> 133824.3983 | R9: =VLOOKUP(R$3,'3rd party cont.'!$A$28:$S$50,19,FALSE) -> 135407.9073 | S9: =VLOOKUP(S$3,'3rd party cont.'!$A$28:$S$50,19,FALSE) -> 137000.6675 | T9: =VLOOKUP(T$3,'3rd party cont.'!$A$28:$S$50,19,FALSE) -> 138602.5991 | U9: =VLOOKUP(U$3,'3rd party cont.'!$A$28:$S$50,19,FALSE) -> 140213.6074 | V9: =VLOOKUP(V$3,'3rd party cont.'!$A$28:$S$50,19,FALSE) -> 141833.5771 | W9: =VLOOKUP(W$3,'3rd party cont.'!$A$28:$S$50,19,FALSE) -> 143462.4161 | X9: =VLOOKUP(X$3,'3rd party cont.'!$A$28:$S$50,19,FALSE) -> 145100.0212 | Y9: =VLOOKUP(Y$3,'3rd party cont.'!$A$28:$S$50,19,FALSE) -> 146746.3037
A11: Dth | B11: Avg
A12: Behavioral | B12: =AVERAGE(C12:Y12) -> 0 | C12: =HLOOKUP(C$3,'AEG Input File'!$E$2:$AB$8,2,FALSE) -> 0 | D12: =HLOOKUP(D$3,'AEG Input File'!$E$2:$AB$8,2,FALSE) -> 0 | E12: =HLOOKUP(E$3,'AEG Input File'!$E$2:$AB$8,2,FALSE) -> 0 | F12: =HLOOKUP(F$3,'AEG Input File'!$E$2:$AB$8,2,FALSE) -> 0 | G12: =HLOOKUP(G$3,'AEG Input File'!$E$2:$AB$8,2,FALSE) -> 0 | H12: =HLOOKUP(H$3,'AEG Input File'!$E$2:$AB$8,2,FALSE) -> 0 | I12: =HLOOKUP(I$3,'AEG Input File'!$E$2:$AB$8,2,FALSE) -> 0 | J12: =HLOOKUP(J$3,'AEG Input File'!$E$2:$AB$8,2,FALSE) -> 0 | K12: =HLOOKUP(K$3,'AEG Input File'!$E$2:$AB$8,2,FALSE) -> 0 | L12: =HLOOKUP(L$3,'AEG Input File'!$E$2:$AB$8,2,FALSE) -> 0 | M12: =HLOOKUP(M$3,'AEG Input File'!$E$2:$AB$8,2,FALSE) -> 0 | N12: =HLOOKUP(N$3,'AEG Input File'!$E$2:$AB$8,2,FALSE) -> 0 | O12: =HLOOKUP(O$3,'AEG Input File'!$E$2:$AB$8,2,FALSE) -> 0 | P12: =HLOOKUP(P$3,'AEG Input File'!$E$2:$AB$8,2,FALSE) -> 0 | Q12: =HLOOKUP(Q$3,'AEG Input File'!$E$2:$AB$8,2,FALSE) -> 0 | R12: =HLOOKUP(R$3,'AEG Input File'!$E$2:$AB$8,2,FALSE) -> 0 | S12: =HLOOKUP(S$3,'AEG Input File'!$E$2:$AB$8,2,FALSE) -> 0 | T12: =HLOOKUP(T$3,'AEG Input File'!$E$2:$AB$8,2,FALSE) -> 0 | U12: =HLOOKUP(U$3,'AEG Input File'!$E$2:$AB$8,2,FALSE) -> 0 | V12: =HLOOKUP(V$3,'AEG Input File'!$E$2:$AB$8,2,FALSE) -> 0 | W12: =HLOOKUP(W$3,'AEG Input File'!$E$2:$AB$8,2,FALSE) -> 0 | X12: =HLOOKUP(X$3,'AEG Input File'!$E$2:$AB$8,2,FALSE) -> 0 | Y12: =HLOOKUP(Y$3,'AEG Input File'!$E$2:$AB$8,2,FALSE) -> 0
A13: DLC Water Heating | B13: =AVERAGE(C13:Y13) -> 0 | C13: =HLOOKUP(C$3,'AEG Input File'!$E$2:$AB$8,3,FALSE) -> 0 | D13: =HLOOKUP(D$3,'AEG Input File'!$E$2:$AB$8,3,FALSE) -> 0 | E13: =HLOOKUP(E$3,'AEG Input File'!$E$2:$AB$8,3,FALSE) -> 0 | F13: =HLOOKUP(F$3,'AEG Input File'!$E$2:$AB$8,3,FALSE) -> 0 | G13: =HLOOKUP(G$3,'AEG Input File'!$E$2:$AB$8,3,FALSE) -> 0 | H13: =HLOOKUP(H$3,'AEG Input File'!$E$2:$AB$8,3,FALSE) -> 0 | I13: =HLOOKUP(I$3,'AEG Input File'!$E$2:$AB$8,3,FALSE) -> 0 | J13: =HLOOKUP(J$3,'AEG Input File'!$E$2:$AB$8,3,FALSE) -> 0 | K13: =HLOOKUP(K$3,'AEG Input File'!$E$2:$AB$8,3,FALSE) -> 0 | L13: =HLOOKUP(L$3,'AEG Input File'!$E$2:$AB$8,3,FALSE) -> 0 | M13: =HLOOKUP(M$3,'AEG Input File'!$E$2:$AB$8,3,FALSE) -> 0 | N13: =HLOOKUP(N$3,'AEG Input File'!$E$2:$AB$8,3,FALSE) -> 0 | O13: =HLOOKUP(O$3,'AEG Input File'!$E$2:$AB$8,3,FALSE) -> 0 | P13: =HLOOKUP(P$3,'AEG Input File'!$E$2:$AB$8,3,FALSE) -> 0 | Q13: =HLOOKUP(Q$3,'AEG Input File'!$E$2:$AB$8,3,FALSE) -> 0 | R13: =HLOOKUP(R$3,'AEG Input File'!$E$2:$AB$8,3,FALSE) -> 0 | S13: =HLOOKUP(S$3,'AEG Input File'!$E$2:$AB$8,3,FALSE) -> 0 | T13: =HLOOKUP(T$3,'AEG Input File'!$E$2:$AB$8,3,FALSE) -> 0 | U13: =HLOOKUP(U$3,'AEG Input File'!$E$2:$AB$8,3,FALSE) -> 0 | V13: =HLOOKUP(V$3,'AEG Input File'!$E$2:$AB$8,3,FALSE) -> 0 | W13: =HLOOKUP(W$3,'AEG Input File'!$E$2:$AB$8,3,FALSE) -> 0 | X13: =HLOOKUP(X$3,'AEG Input File'!$E$2:$AB$8,3,FALSE) -> 0 | Y13: =HLOOKUP(Y$3,'AEG Input File'!$E$2:$AB$8,3,FALSE) -> 0
A14: DLC Smart Thermostats - BYOT | B14: 89.13872074 | C14: =HLOOKUP(C$3,'AEG Input File'!$E$2:$AB$8,4,FALSE) -> 0 | D14: =HLOOKUP(D$3,'AEG Input File'!$E$2:$AB$8,4,FALSE) -> 8.564486672 | E14: =HLOOKUP(E$3,'AEG Input File'!$E$2:$AB$8,4,FALSE) -> 26.15474114 | F14: =HLOOKUP(F$3,'AEG Input File'!$E$2:$AB$8,4,FALSE) -> 62.20489503 | G14: =HLOOKUP(G$3,'AEG Input File'!$E$2:$AB$8,4,FALSE) -> 81.26485553 | H14: =HLOOKUP(H$3,'AEG Input File'!$E$2:$AB$8,4,FALSE) -> 91.67288328 | I14: =HLOOKUP(I$3,'AEG Input File'!$E$2:$AB$8,4,FALSE) -> 93.07701164 | J14: =HLOOKUP(J$3,'AEG Input File'!$E$2:$AB$8,4,FALSE) -> 94.50717997 | K14: =HLOOKUP(K$3,'AEG Input File'!$E$2:$AB$8,4,FALSE) -> 95.8556901 | L14: =HLOOKUP(L$3,'AEG Input File'!$E$2:$AB$8,4,FALSE) -> 97.2266471 | M14: =HLOOKUP(M$3,'AEG Input File'!$E$2:$AB$8,4,FALSE) -> 98.62044327 | N14: =HLOOKUP(N$3,'AEG Input File'!$E$2:$AB$8,4,FALSE) -> 100.0374779 | O14: =HLOOKUP(O$3,'AEG Input File'!$E$2:$AB$8,4,FALSE) -> 101.4781572 | P14: =HLOOKUP(P$3,'AEG Input File'!$E$2:$AB$8,4,FALSE) -> 102.9428948 | Q14: =HLOOKUP(Q$3,'AEG Input File'!$E$2:$AB$8,4,FALSE) -> 104.4321116 | R14: =HLOOKUP(R$3,'AEG Input File'!$E$2:$AB$8,4,FALSE) -> 105.9462357 | S14: =HLOOKUP(S$3,'AEG Input File'!$E$2:$AB$8,4,FALSE) -> 107.4857033 | T14: =HLOOKUP(T$3,'AEG Input File'!$E$2:$AB$8,4,FALSE) -> 109.0509577 | U14: =HLOOKUP(U$3,'AEG Input File'!$E$2:$AB$8,4,FALSE) -> 110.6424506 | V14: =HLOOKUP(V$3,'AEG Input File'!$E$2:$AB$8,4,FALSE) -> 112.2606415 | W14: =HLOOKUP(W$3,'AEG Input File'!$E$2:$AB$8,4,FALSE) -> 113.9059979 | X14: =HLOOKUP(X$3,'AEG Input File'!$E$2:$AB$8,4,FALSE) -> 115.5789957 | Y14: =HLOOKUP(Y$3,'AEG Input File'!$E$2:$AB$8,4,FALSE) -> 117.2801194
A15: Time-of-Use | B15: 0 | C15: =HLOOKUP(C$3,'AEG Input File'!$E$2:$AB$8,5,FALSE) -> 0 | D15: =HLOOKUP(D$3,'AEG Input File'!$E$2:$AB$8,5,FALSE) -> 0 | E15: =HLOOKUP(E$3,'AEG Input File'!$E$2:$AB$8,5,FALSE) -> 0 | F15: =HLOOKUP(F$3,'AEG Input File'!$E$2:$AB$8,5,FALSE) -> 0 | G15: =HLOOKUP(G$3,'AEG Input File'!$E$2:$AB$8,5,FALSE) -> 0 | H15: =HLOOKUP(H$3,'AEG Input File'!$E$2:$AB$8,5,FALSE) -> 0 | I15: =HLOOKUP(I$3,'AEG Input File'!$E$2:$AB$8,5,FALSE) -> 0 | J15: =HLOOKUP(J$3,'AEG Input File'!$E$2:$AB$8,5,FALSE) -> 0 | K15: =HLOOKUP(K$3,'AEG Input File'!$E$2:$AB$8,5,FALSE) -> 0 | L15: =HLOOKUP(L$3,'AEG Input File'!$E$2:$AB$8,5,FALSE) -> 0 | M15: =HLOOKUP(M$3,'AEG Input File'!$E$2:$AB$8,5,FALSE) -> 0 | N15: =HLOOKUP(N$3,'AEG Input File'!$E$2:$AB$8,5,FALSE) -> 0 | O15: =HLOOKUP(O$3,'AEG Input File'!$E$2:$AB$8,5,FALSE) -> 0 | P15: =HLOOKUP(P$3,'AEG Input File'!$E$2:$AB$8,5,FALSE) -> 0 | Q15: =HLOOKUP(Q$3,'AEG Input File'!$E$2:$AB$8,5,FALSE) -> 0 | R15: =HLOOKUP(R$3,'AEG Input File'!$E$2:$AB$8,5,FALSE) -> 0 | S15: =HLOOKUP(S$3,'AEG Input File'!$E$2:$AB$8,5,FALSE) -> 0 | T15: =HLOOKUP(T$3,'AEG Input File'!$E$2:$AB$8,5,FALSE) -> 0 | U15: =HLOOKUP(U$3,'AEG Input File'!$E$2:$AB$8,5,FALSE) -> 0 | V15: =HLOOKUP(V$3,'AEG Input File'!$E$2:$AB$8,5,FALSE) -> 0 | W15: =HLOOKUP(W$3,'AEG Input File'!$E$2:$AB$8,5,FALSE) -> 0 | X15: =HLOOKUP(X$3,'AEG Input File'!$E$2:$AB$8,5,FALSE) -> 0 | Y15: =HLOOKUP(Y$3,'AEG Input File'!$E$2:$AB$8,5,FALSE) -> 0
A16: Variable Peak Pricing | B16: 0 | C16: =HLOOKUP(C$3,'AEG Input File'!$E$2:$AB$8,6,FALSE) -> 0 | D16: =HLOOKUP(D$3,'AEG Input File'!$E$2:$AB$8,6,FALSE) -> 0 | E16: =HLOOKUP(E$3,'AEG Input File'!$E$2:$AB$8,6,FALSE) -> 0 | F16: =HLOOKUP(F$3,'AEG Input File'!$E$2:$AB$8,6,FALSE) -> 0 | G16: =HLOOKUP(G$3,'AEG Input File'!$E$2:$AB$8,6,FALSE) -> 0 | H16: =HLOOKUP(H$3,'AEG Input File'!$E$2:$AB$8,6,FALSE) -> 0 | I16: =HLOOKUP(I$3,'AEG Input File'!$E$2:$AB$8,6,FALSE) -> 0 | J16: =HLOOKUP(J$3,'AEG Input File'!$E$2:$AB$8,6,FALSE) -> 0 | K16: =HLOOKUP(K$3,'AEG Input File'!$E$2:$AB$8,6,FALSE) -> 0 | L16: =HLOOKUP(L$3,'AEG Input File'!$E$2:$AB$8,6,FALSE) -> 0 | M16: =HLOOKUP(M$3,'AEG Input File'!$E$2:$AB$8,6,FALSE) -> 0 | N16: =HLOOKUP(N$3,'AEG Input File'!$E$2:$AB$8,6,FALSE) -> 0 | O16: =HLOOKUP(O$3,'AEG Input File'!$E$2:$AB$8,6,FALSE) -> 0 | P16: =HLOOKUP(P$3,'AEG Input File'!$E$2:$AB$8,6,FALSE) -> 0 | Q16: =HLOOKUP(Q$3,'AEG Input File'!$E$2:$AB$8,6,FALSE) -> 0 | R16: =HLOOKUP(R$3,'AEG Input File'!$E$2:$AB$8,6,FALSE) -> 0 | S16: =HLOOKUP(S$3,'AEG Input File'!$E$2:$AB$8,6,FALSE) -> 0 | T16: =HLOOKUP(T$3,'AEG Input File'!$E$2:$AB$8,6,FALSE) -> 0 | U16: =HLOOKUP(U$3,'AEG Input File'!$E$2:$AB$8,6,FALSE) -> 0 | V16: =HLOOKUP(V$3,'AEG Input File'!$E$2:$AB$8,6,FALSE) -> 0 | W16: =HLOOKUP(W$3,'AEG Input File'!$E$2:$AB$8,6,FALSE) -> 0 | X16: =HLOOKUP(X$3,'AEG Input File'!$E$2:$AB$8,6,FALSE) -> 0 | Y16: =HLOOKUP(Y$3,'AEG Input File'!$E$2:$AB$8,6,FALSE) -> 0
A17: Third Party Contracts | B17: 0.7892731996 | C17: =HLOOKUP(C$3,'AEG Input File'!$E$2:$AB$8,7,FALSE) -> 0 | D17: =HLOOKUP(D$3,'AEG Input File'!$E$2:$AB$8,7,FALSE) -> 0.4248187915 | E17: =HLOOKUP(E$3,'AEG Input File'!$E$2:$AB$8,7,FALSE) -> 0.67917398 | F17: =HLOOKUP(F$3,'AEG Input File'!$E$2:$AB$8,7,FALSE) -> 0.8492795462 | G17: =HLOOKUP(G$3,'AEG Input File'!$E$2:$AB$8,7,FALSE) -> 0.8496140171 | H17: =HLOOKUP(H$3,'AEG Input File'!$E$2:$AB$8,7,FALSE) -> 0.8499486198 | I17: =HLOOKUP(I$3,'AEG Input File'!$E$2:$AB$8,7,FALSE) -> 0.8502833542 | J17: =HLOOKUP(J$3,'AEG Input File'!$E$2:$AB$8,7,FALSE) -> 0.8506182205 | K17: =HLOOKUP(K$3,'AEG Input File'!$E$2:$AB$8,7,FALSE) -> 0.8509532186 | L17: =HLOOKUP(L$3,'AEG Input File'!$E$2:$AB$8,7,FALSE) -> 0.8512883487 | M17: =HLOOKUP(M$3,'AEG Input File'!$E$2:$AB$8,7,FALSE) -> 0.8516236108 | N17: =HLOOKUP(N$3,'AEG Input File'!$E$2:$AB$8,7,FALSE) -> 0.8519590049 | O17: =HLOOKUP(O$3,'AEG Input File'!$E$2:$AB$8,7,FALSE) -> 0.8522945311 | P17: =HLOOKUP(P$3,'AEG Input File'!$E$2:$AB$8,7,FALSE) -> 0.8526301894 | Q17: =HLOOKUP(Q$3,'AEG Input File'!$E$2:$AB$8,7,FALSE) -> 0.8529659799 | R17: =HLOOKUP(R$3,'AEG Input File'!$E$2:$AB$8,7,FALSE) -> 0.8533019027 | S17: =HLOOKUP(S$3,'AEG Input File'!$E$2:$AB$8,7,FALSE) -> 0.8536379577 | T17: =HLOOKUP(T$3,'AEG Input File'!$E$2:$AB$8,7,FALSE) -> 0.8539741451 | U17: =HLOOKUP(U$3,'AEG Input File'!$E$2:$AB$8,7,FALSE) -> 0.8543104649 | V17: =HLOOKUP(V$3,'AEG Input File'!$E$2:$AB$8,7,FALSE) -> 0.8546469172 | W17: =HLOOKUP(W$3,'AEG Input File'!$E$2:$AB$8,7,FALSE) -> 0.854983502 | X17: =HLOOKUP(X$3,'AEG Input File'!$E$2:$AB$8,7,FALSE) -> 0.8553202193 | Y17: =HLOOKUP(Y$3,'AEG Input File'!$E$2:$AB$8,7,FALSE) -> 0.8556570692
A19: Input into Plexos | B19: Per Dth Price
A20: Behavioral | B20: =-PMT($B$31,24,NPV($B$31,LC!C20:Y20)) -> 0 | C20: =IFERROR(C4/(C12*1000),0) -> 0 | D20: =IFERROR(D4/(D12),0) -> 0 | E20: =IFERROR(E4/(E12),0) -> 0 | F20: 0 | G20: 0 | H20: 0 | I20: 0 | J20: 0 | K20: 0 | L20: 0 | M20: 0 | N20: 0 | O20: 0 | P20: 0 | Q20: 0 | R20: 0 | S20: 0 | T20: 0 | U20: 0 | V20: 0 | W20: 0 | X20: 0 | Y20: 0
A21: DLC Water Heating | B21: =-PMT($B$31,24,NPV($B$31,LC!C21:Y21)) -> 0 | C21: =IFERROR(C5/(C13*1000),0) -> 0 | D21: =IFERROR(D5/(D13),0) -> 0 | E21: 0 | F21: 0 | G21: 0 | H21: 0 | I21: 0 | J21: 0 | K21: 0 | L21: 0 | M21: 0 | N21: 0 | O21: 0 | P21: 0 | Q21: 0 | R21: 0 | S21: 0 | T21: 0 | U21: 0 | V21: 0 | W21: 0 | X21: 0 | Y21: 0
A22: DLC Smart Thermostats - BYOT | B22: =-PMT($B$31,24,NPV($B$31,LC!C22:Y22)) -> 5753.631819 | C22: =IFERROR(C6/(C14*1000),0) -> 0 | D22: 10328.10058 | E22: 6809.62537 | F22: 5843.91877 | G22: 5727.43684 | H22: 5716.469921 | I22: 5751.419839 | J22: 5795.30746 | K22: 5844.000887 | L22: 5900.382076 | M22: 5963.055452 | N22: 5974.980351 | O22: 5939.987223 | P22: 5804.306247 | Q22: 5797.79975 | R22: 5859.488376 | S22: 5987.377771 | T22: 6118.326689 | U22: 6253.999353 | V22: 6392.774033 | W22: 6534.722849 | X22: 6679.919382 | Y22: 6828.439008
A23: Time-of-Use | B23: =-PMT($B$31,24,NPV($B$31,LC!C23:Y23)) -> 0 | C23: =IFERROR(C7/(C15*1000),0) -> 0 | D23: 0 | E23: 0 | F23: 0 | G23: 0 | H23: 0 | I23: 0 | J23: 0 | K23: 0 | L23: 0 | M23: 0 | N23: 0 | O23: 0 | P23: 0 | Q23: 0 | R23: 0 | S23: 0 | T23: 0 | U23: 0 | V23: 0 | W23: 0 | X23: 0 | Y23: 0
A24: Variable Peak Pricing | B24: =-PMT($B$31,24,NPV($B$31,LC!C24:Y24)) -> 0 | C24: =IFERROR(C8/(C16*1000),0) -> 0 | D24: 0 | E24: 0 | F24: 0 | G24: 0 | H24: 0 | I24: 0 | J24: 0 | K24: 0 | L24: 0 | M24: 0 | N24: 0 | O24: 0 | P24: 0 | Q24: 0 | R24: 0 | S24: 0 | T24: 0 | U24: 0 | V24: 0 | W24: 0 | X24: 0 | Y24: 0
A25: Third Party Contracts | B25: =-PMT($B$31,24,NPV($B$31,LC!C25:Y25)) -> 137045.2275 | C25: =IFERROR(C9/(C17*1000),0) -> 0 | D25: 219900.7974 | E25: 144529.5522 | F25: 120612.1459 | G25: 125232.6408 | H25: 129696.5605 | I25: 133973.4752 | J25: 138118.0548 | K25: 142138.718 | L25: 146033.711 | M25: 149801.2551 | N25: 151564.4841 | O25: 153331.6793 | P25: 155107.8806 | Q25: 156893.008 | R25: 158686.9862 | S25: 160490.3651 | T25: 162303.0392 | U25: 164124.8857 | V25: 165955.7582 | W25: 167795.5373 | X25: 169644.0911 | Y25: 171501.3046
A31: WA Discount Factor | B31: 0.0658
A32: ID Discount Factor | B32: 0.0656
A33: OR Discount Factor | B33: 0.0671

Sheet DLC-Smart TS
A1: State Income Tax Rate ............ | D1: 0.0164024 | I1: Debt ........................... | L1: 0.5 | M1: 0.052 | N1: =ROUND(L1*M1,4) -> 0.026 | O1: =N1*(1-D2) -> 0.02054 | Q1: Gross Revenue | T1: 1
A2: Federal Income Tax Rate ........ | D2: 0.21 | I2: Preferred Stock ................. | L2: 0 | M2: 0 | N2: =ROUND(L2*M2,4) -> 0 | O2: =N2 -> 0 | Q2: Uncollectables | T2: 0
A3: Discount Factor ...................... | D3: =+O4 -> 0.06804 | I3: Common Equity ...................... | L3: 0.5 | M3: 0.095 | N3: =ROUND(L3*M3,4) -> 0.0475 | O3: =N3 -> 0.0475 | Q3: Commission Fees | T3: 0
A4: Capital Class ........................... | D4: 4 | E4: (1) General Structures. | N4: =SUM(N1:N3) -> 0.0735 | O4: =SUM(O1:O3) -> 0.06804 | Q4: Excise Tax | T4: 0
E5: (2) Generation, Transmission, | Q5: Franchise Fees | T5: 0
E6: and Distribution. | Q6: ERSA | T6: 0
E7: (3) Other Equipment. | N7: IRR CALC | T7: -
E8: (4) Transportation Equipment. | I8: Principal ...................... | L8: =T24 -> 8.924868329e-52 | N8: =L8 -> 8.924868329e-52 | O8: pv princ | Q8: Misc. Revenue Items | T8: =SUM(T2:T6) -> 0
A9: Book Life (Years) .............. | D9: 10 | I9: Interest ....................... | L9: =D3 -> 0.06804 | N9: =V20 -> 0 | O9: pv lvlized margin | T9: -
A10: Property Tax Rate ............... | D10: 0.015 | I10: Term ............................. | L10: 10 | N10: =IRR($AI$28:$AI$102,0.059065190478108) ->  | O10: IRR | Q10: Before State Income Tax | T10: =T1-T8 -> 1
A11: O&M Escalation Factor .......... | D11: 0.03 | I11: Levelized Gr. Mar. Requirement ....... | L11: =PMT($L$9,$L$10,-$L$8) -> 1.259212263e-52 | Q11: State Income Tax | T11: 0
T12: -
B13: Idaho | C13: Oregon | D13: Washington | Q13: Before Federal Income Tax | T13: =T10-T11 -> 1
A14: Electric | B14: 0.35 | C14: 0 | D14: 0.65 | E14: =SUM(B14:D14) -> 1 | K14: Lev ROE | L14: =PMT(L9,L10,-L15) -> 14828.91215 | Q14: Federal Income Tax | T14: =T13*D2 -> 0.21 | V14: (v) | W14: (w) | X14: (x) | Y14: (y) | Z14: (z) | AA14: (aa) | AB14: (ab) | AC14: (ac) | AD14: (ad) | AE14: (ae) | AF14: (af) | AG14: (ag) | AH14: (ah)
A15: Gas | B15: 0 | C15: 0 | D15: 0 | E15: =SUM(B15:D15) -> 0 | K15: NPV equity | L15: =NPV(L9,$M$28:$M$103) -> 105102.2868 | T15: - | V15: PV GM
B16: =SUM(B14:B15) -> 0.35 | C16: =SUM(C14:C15) -> 0 | D16: 0.65 | E16: 1 | Q16: Conversion Factor | T16: =T13-T14 -> 0.79 | V16: =NPV(O4,$V$29:$V$103)+V28 -> 0
A17: ...................................................................................................................................................................................................................... | V17: TERM
B18: Capital Additions | V18: =L10 -> 10 | AD18: pv of contribution to fixed costs | AG18: =NPV(O4,20,AG28:AG28) -> 18.72589042
B19: ----------------- | D19: Rate | E19: Accum. | G19: Book Dep. | I19: Rate | K19: Average | P19: Misc. | Q19: State | R19: Federal | S19: Total | T19: Present Val | V19: LEVELIZED | AE19: Interest ....................... | AG19: =O4 -> 0.06804 | AL19: Inter.
B20: Tax | C20: Book | D20: Base | E20: Book | F20: Tax | G20: on Tax | H20: Deferred | I20: Base | J20: Book | K20: Rate | L20: Interest | M20: Equity | N20: O&M & A&G | O20: Property | P20: Revenue | Q20: Income | R20: Income | S20: Gross Marg | T20: Gross Marg | V20: =PMT(L9,V18,-V16) -> 0 | AE20: Term ............................. | AG20: 50 | AH20: per kwh | AL20: Revenue | AN20: Net Book
B21: Basis | C21: Basis | D21: BOP | E21: Deprec. | F21: Deprec. | G21: Basis | H21: Taxes | I21: EOP | J21: Deprec. | K21: Base | L21: Expense | M21: Return | N21: Expense | O21: Taxes | P21: Items | Q21: Tax | R21: Taxes | S21: Reqmnt | T21: Reqmnt | AD21: levelized cont. to fixed costs | AG21: =PMT(AG19,AG20,-AG18) -> 1.323347304 | AH21: =AG21/(400*1000) -> 3.308368259e-06 | AL21: Requirement | AN21: BOP
A22: (a) | B22: (b) | C22: (c) | D22: (d) | E22: (e) | F22: (f) | G22: (g) | H22: (h) | I22: (i) | J22: (j) | K22: (k) | L22: (l) | M22: (m) | N22: (n) | O22: (o) | P22: (p) | Q22: (q) | R22: (r) | S22: (s) | T22: (t) | W22: - | X22: - | Y22: - | Z22: - | AA22: - | AB22: - | AC22: - | AD22: - | AE22: - | AF22: - | AG22: - | AH22: -
B23: - | C23: - | D23: - | E23: - | F23: - | G23: - | H23: - | I23: - | J23: - | K23: - | L23: - | M23: - | N23: - | O23: - | P23: - | Q23: - | R23: - | S23: - | T23: - | Z23: RES LOAD @ | AG23: ANNUAL | AH23: CUMULATIVE | AL23: - | AN23: -
A24: Total => | B24: =SUM(B25:B104) -> 914277.3654 | C24: =SUM(C25:C104) -> 914277.3654 | F24: =SUM(F25:F104) -> 914277.3654 | G24: =SUM(G25:G104) -> 914277.3654 | H24: =SUM(H25:H104) -> 1.404032446e-11 | J24: =SUM(J25:J104) -> 914277.3654 | L24: =SUM(L25:L104) -> 105369.7934 | M24: 192502.5073 | N24: 11304634.63 | O24: 75427.88264 | P24: 0 | Q24: 660.837308 | R24: 8321.927152 | S24: 13094405.43 | T24: 8.924868329e-52 | V24: Offsets | X24: NEW | Y24: CUML | Z24: 12000 | AA24: COMM | AB24: COMM | AC24: TOTAL | AD24: TOTAL | AE24: REVENUE | AF24: ESTIMATED | AG24: (SHORTFALL) | AH24: (SHORTFALL)
A25: Period | B25: - | C25: - | D25: - | E25: - | F25: - | G25: - | H25: - | I25: - | J25: - | K25: - | L25: - | M25: - | N25: - | O25: - | P25: - | Q25: - | R25: - | S25: - | T25: - | W25: YR | X25: CUST | Y25: CUST | Z25: KWH EA | AA25: CUST | AB25: LOAD | AC25: CUST | AD25: LOAD | AE25: REQ | AF25: MARGIN | AG25: EXCESS | AH25: EXCESS | AI25: 0.05906519048 | AL25: - | AN25: -
W26: - | X26: - | Y26: - | Z26: - | AA26: - | AB26: - | AC26: - | AD26: - | AE26: - | AF26: - | AG26: - | AH26: - | AJ26: =NPV(AI25,$AI$28:$AI$103) -> 0
S27: =-PMT(O4,20,NPV(O4,S28:S51)) -> 493210.484
A28: 2023 | B28: =HLOOKUP($A28,'AEG Input File'!$AC$2:$AZ$8,4,FALSE)*Inflation!$B4/100 -> 0 | C28: =B28 -> 0 | D28: =I27+C28 -> 0 | E28: =E27+J28 -> 0 | F28: =CA137 -> 0 | G28: =CA229 -> 0 | H28: =(F28-G28)*$D$2 -> 0 | I28: =D28-J28-H28 -> 0 | J28: =CA323 -> 0 | K28: =(+I28+D28)/2 -> 0 | L28: =IF(A28=1,$N$1*K28,$N$1*K28) -> 0 | M28: =IF(A28=1,($N$3+$N$2)*K28,($N$3+$N$2)*K28) -> 0 | N28: =HLOOKUP($A28,'AEG Input File'!$BA$2:$BX$8,4,FALSE)*Inflation!$B4/100 -> 0 | O28: =AN28*$D$10 -> 0 | P28: =AL28*$T$8 -> 0 | Q28: =(+AL28-(G28+L28+N28+O28+P28))*$D$1 -> 0 | R28: =(+AL28-(G28+L28+N28+O28+P28+Q28))*$D$2 -> 0 | S28: =J28+M28+L28+N28+O28+P28+Q28+R28 -> 0 | T28: =S28/(1+$D$3)^(A28-1) -> 0 | V28: 0 | W28: =1+W27 -> 1 | X28: 0 | Y28: =+X28 -> 0 | Z28: =X28*$Z$24 -> 0 | AA28: 0 | AB28: 0 | AC28: =Y28+AA28 -> 0 | AD28: 0 | AE28: =S28 -> 0 | AF28: =V28 -> 0 | AG28: =AF28-AE28 -> 0 | AH28: =AF28-AE28 -> 0 | AI28: =IF(A28=1,AF28-T24,AF28) -> 0 | AL28: =(+J28+L28+M28+N28+O28-(($D$1+(1-$D$1)*$D$2)*(G28+L28+N28+O28)))/$T$16 -> 0 | AN28: =C28-J27+AN27 -> 0
A29: =1+A28 -> 2024 | B29: =HLOOKUP($A29,'AEG Input File'!$AC$2:$AZ$8,4,FALSE)*Inflation!$B5/100 -> 57626.77908 | C29: =B29 -> 57626.77908 | D29: =I28+C29 -> 57626.77908 | E29: 5762.677908 | F29: 11525.35582 | G29: =CA230 -> 5762.677908 | H29: 1210.162361 | I29: 50653.93881 | J29: 5762.677908 | K29: 54140.35894 | L29: =IF(A29=1,$N$1*K29,$N$1*K29) -> 1407.649333 | M29: 2571.66705 | N29: =HLOOKUP($A29,'AEG Input File'!$BA$2:$BX$8,4,FALSE)*Inflation!$B5/100 -> 77435.26215 | O29: 864.4016862 | P29: =AL29*$T$8 -> 0 | Q29: 30.39958101 | R29: 382.8220586 | S29: 88454.87977 | T29: =S29/(1+$D$3)^(A29-1) -> 1.300686649e-53 | V29: 0 | W29: =1+W28 -> 2 | X29: 0 | Y29: =+X29 -> 0 | Z29: =X29*$Z$24 -> 0 | AA29: 0 | AB29: 0 | AC29: 0 | AD29: 0 | AE29: 88454.87977 | AF29: 0 | AG29: -88454.87977 | AH29: =AF29-AE29 -> -88454.87977 | AI29: =IF(A29=1,AF29-T25,AF29) -> 0 | AL29: =(+J29+L29+M29+N29+O29-(($D$1+(1-$D$1)*$D$2)*(G29+L29+N29+O29)))/$T$16 -> 87323.35284 | AN29: =C29-J28+AN28 -> 57626.77908
A30: 2025 | B30: =HLOOKUP($A30,'AEG Input File'!$AC$2:$AZ$8,4,FALSE)*Inflation!$B6/100 -> 117678.8428 | C30: 117678.8428 | D30: 168332.7816 | E30: 23293.2401 | F30: 41976.33787 | G30: 17530.56219 | H30: 5133.612892 | I30: 145668.6065 | J30: 17530.56219 | K30: 157000.6941 | L30: 4082.018046 | M30: 7457.532969 | N30: =HLOOKUP($A30,'AEG Input File'!$BA$2:$BX$8,4,FALSE)*Inflation!$B6/100 -> 145004.6549 | O30: 2543.14416 | P30: 0 | Q30: 109.3265714 | R30: 1376.749999 | S30: 178103.9888 | T30: 2.452093431e-53 | V30: 0 | W30: 3 | X30: 0 | Y30: 0 | Z30: 0 | AA30: 0 | AB30: 0 | AC30: 0 | AD30: 0 | AE30: 178103.9888 | AF30: 0 | AG30: -178103.9888 | AH30: -178103.9888 | AI30: 0 | AL30: 175825.6582 | AN30: 169542.944
A31: 2026 | B31: =HLOOKUP($A31,'AEG Input File'!$AC$2:$AZ$8,4,FALSE)*Inflation!$B7/100 -> 242513.4205 | C31: 242513.4205 | D31: 388182.0271 | E31: 65075.14434 | F31: 97224.25539 | G31: 41781.90424 | H31: 11642.89374 | I31: 334757.2291 | J31: 41781.90424 | K31: 361469.6281 | L31: 9398.21033 | M31: 17169.80733 | N31: =HLOOKUP($A31,'AEG Input File'!$BA$2:$BX$8,4,FALSE)*Inflation!$B7/100 -> 285660.275 | O31: 5917.887035 | P31: 0 | Q31: 264.2734181 | R31: 3327.996327 | S31: 363520.3537 | T31: 4.686024792e-53 | V31: 0 | W31: 4 | X31: 0 | Y31: 0 | Z31: 0 | AA31: 0 | AB31: 0 | AC31: 0 | AD31: 0 | AE31: 363520.3537 | AF31: 0 | AG31: -363520.3537 | AH31: -363520.3537 | AI31: 0 | AL31: 358870.1516 | AN31: 394525.8023
A32: 2027 | B32: =HLOOKUP($A32,'AEG Input File'!$AC$2:$AZ$8,4,FALSE)*Inflation!$B8/100 -> 133614.3263 | C32: 133614.3263 | D32: 468371.5553 | E32: 120218.4812 | F32: 133560.1026 | G32: 55143.33687 | H32: 16467.5208 | I32: 396760.6977 | J32: 55143.33687 | K32: 432566.1265 | L32: 11246.71929 | M32: 20546.89101 | N32: =HLOOKUP($A32,'AEG Input File'!$BA$2:$BX$8,4,FALSE)*Inflation!$B8/100 -> 367019.8355 | O32: 7295.373365 | P32: 0 | Q32: 308.0386918 | R32: 3879.132614 | S32: 465439.3274 | T32: 5.617607707e-53 | V32: 0 | W32: 5 | X32: 0 | Y32: 0 | Z32: 0 | AA32: 0 | AB32: 0 | AC32: 0 | AD32: 0 | AE32: 465439.3274 | AF32: 0 | AG32: -465439.3274 | AH32: -465439.3274 | AI32: 0 | AL32: 459485.3638 | AN32: 486358.2243
A33: 2028 | B33: =HLOOKUP($A33,'AEG Input File'!$AC$2:$AZ$8,4,FALSE)*Inflation!$B9/100 -> 76684.84408 | C33: 76684.84408 | D33: 473445.5418 | E33: 183030.3025 | F33: 124851.3376 | G33: 62811.82127 | H33: 13028.29843 | I33: 397605.422 | J33: 62811.82127 | K33: 435525.4819 | L33: 11323.66253 | M33: 20687.46039 | N33: =HLOOKUP($A33,'AEG Input File'!$BA$2:$BX$8,4,FALSE)*Inflation!$B9/100 -> 417591.4458 | O33: 7618.495973 | P33: 0 | Q33: 295.180794 | R33: 3717.213049 | S33: 524045.2798 | T33: 5.922016691e-53 | V33: 0 | W33: 6 | X33: 0 | Y33: 0 | Z33: 0 | AA33: 0 | AB33: 0 | AC33: 0 | AD33: 0 | AE33: 524045.2798 | AF33: 0 | AG33: -524045.2798 | AH33: -524045.2798 | AI33: 0 | AL33: 517341.6209 | AN33: 507899.7315
A34: 2029 | B34: =HLOOKUP($A34,'AEG Input File'!$AC$2:$AZ$8,4,FALSE)*Inflation!$B10/100 -> 14058.63473 | C34: 14058.63473 | D34: 411664.0568 | E34: 247247.9872 | F34: 97818.27891 | G34: 64217.68475 | H34: 7056.124773 | I34: 340390.2473 | J34: 64217.68475 | K34: 376027.152 | L34: 9776.705952 | M34: 17861.28972 | N34: =HLOOKUP($A34,'AEG Input File'!$BA$2:$BX$8,4,FALSE)*Inflation!$B10/100 -> 433422.0182 | O34: 6887.198175 | P34: 0 | Q34: 232.478006 | R34: 2927.596561 | S34: 535324.9713 | T34: 5.664098509e-53 | V34: 0 | W34: 7 | X34: 0 | Y34: 0 | Z34: 0 | AA34: 0 | AB34: 0 | AC34: 0 | AD34: 0 | AE34: 535324.9713 | AF34: 0 | AG34: -535324.9713 | AH34: -535324.9713 | AI34: 0 | AL34: 528477.0211 | AN34: 459146.545
A35: 2030 | B35: =HLOOKUP($A35,'AEG Input File'!$AC$2:$AZ$8,4,FALSE)*Inflation!$B11/100 -> 14584.40364 | C35: 14584.40364 | D35: 354974.6509 | E35: 312924.1123 | F35: 72247.35168 | G35: 65676.12511 | H35: 1379.957579 | I35: 287918.5682 | J35: 65676.12511 | K35: 321446.6095 | L35: 8357.611848 | M35: 15268.71395 | N35: =HLOOKUP($A35,'AEG Input File'!$BA$2:$BX$8,4,FALSE)*Inflation!$B11/100 -> 449882.2479 | O35: 6142.698958 | P35: 0 | Q35: 174.4108438 | R35: 2196.35653 | S35: 547698.1651 | T35: 5.425841005e-53 | V35: 0 | W35: 8 | X35: 0 | Y35: 0 | Z35: 0 | AA35: 0 | AB35: 0 | AC35: 0 | AD35: 0 | AE35: 547698.1651 | AF35: 0 | AG35: -547698.1651 | AH35: -547698.1651 | AI35: 0 | AL35: 540691.9352 | AN35: 409513.2639
A36: 2031 | B36: =HLOOKUP($A36,'AEG Input File'!$AC$2:$AZ$8,4,FALSE)*Inflation!$B12/100 -> 13296.3559 | C36: 13296.3559 | D36: 301214.9241 | E36: 379929.873 | F36: 48220.77566 | G36: 67005.7607 | H36: -3944.846859 | I36: 238154.0103 | J36: 67005.7607 | K36: 269684.4672 | L36: 7011.796147 | M36: 12810.01219 | N36: =HLOOKUP($A36,'AEG Input File'!$BA$2:$BX$8,4,FALSE)*Inflation!$B12/100 -> 466376.6952 | O36: 5357.00242 | P36: 0 | Q36: 119.1400614 | R36: 1500.331322 | S36: 560180.738 | T36: 5.195967556e-53 | V36: 0 | W36: 9 | X36: 0 | Y36: 0 | Z36: 0 | AA36: 0 | AB36: 0 | AC36: 0 | AD36: 0 | AE36: 560180.738 | AF36: 0 | AG36: -560180.738 | AH36: -560180.738 | AI36: 0 | AL36: 553014.8294 | AN36: 357133.4947
A37: 2032 | B37: =HLOOKUP($A37,'AEG Input File'!$AC$2:$AZ$8,4,FALSE)*Inflation!$B13/100 -> 13764.26887 | C37: 13764.26887 | D37: 251918.2791 | E37: 448312.0606 | F37: 27957.72711 | G37: 68382.18759 | H37: -8489.1367 | I37: 192025.2282 | J37: 68382.18759 | K37: 221971.7537 | L37: 5771.265596 | M37: 10543.6583 | N37: =HLOOKUP($A37,'AEG Input File'!$BA$2:$BX$8,4,FALSE)*Inflation!$B13/100 -> 483499.2193 | O37: 4558.380043 | P37: 0 | Q37: 67.65649394 | R37: 851.9985285 | S37: 573674.3658 | T37: 4.982142962e-53 | V37: 0 | W37: 10 | X37: 0 | Y37: 0 | Z37: 0 | AA37: 0 | AB37: 0 | AC37: 0 | AD37: 0 | AE37: 573674.3658 | AF37: 0 | AG37: -573674.3658 | AH37: -573674.3658 | AI37: 0 | AL37: 566335.8449 | AN37: 303892.0028
A38: 2033 | B38: =HLOOKUP($A38,'AEG Input File'!$AC$2:$AZ$8,4,FALSE)*Inflation!$B14/100 -> 14249.60837 | C38: 14249.60837 | D38: 206274.8366 | E38: 518119.2091 | F38: 17524.11308 | G38: 69807.14843 | H38: -10979.43742 | I38: 147447.1256 | J38: 69807.14843 | K38: 176860.9811 | L38: 4598.385509 | M38: 8400.896602 | N38: =HLOOKUP($A38,'AEG Input File'!$BA$2:$BX$8,4,FALSE)*Inflation!$B14/100 -> 501274.3933 | O38: 3746.391354 | P38: 0 | Q38: 18.53576313 | R38: 233.4209474 | S38: 588079.1719 | T38: 4.78188383e-53 | V38: 0 | W38: 11 | X38: 0 | Y38: 0 | Z38: 0 | AA38: 0 | AB38: 0 | AC38: 0 | AD38: 0 | AE38: 588079.1719 | AF38: 0 | AG38: -588079.1719 | AH38: -588079.1719 | AI38: 0 | AL38: 580556.3827 | AN38: 249759.4236
A39: 2034 | B39: =HLOOKUP($A39,'AEG Input File'!$AC$2:$AZ$8,4,FALSE)*Inflation!$B15/100 -> 14753.05491 | C39: 14753.05491 | D39: 162200.1805 | E39: 583638.9851 | F39: 14174.86614 | G39: 65519.77601 | H39: -10782.43107 | I39: 107462.8356 | J39: 65519.77601 | K39: 134831.508 | L39: 3505.619209 | M39: 6404.496632 | N39: =HLOOKUP($A39,'AEG Input File'!$BA$2:$BX$8,4,FALSE)*Inflation!$B15/100 -> 519727.7598 | O39: 2920.579952 | P39: 0 | Q39: -26.20958372 | R39: -330.0574041 | S39: 597721.9646 | T39: 4.55066557e-53 | V39: 0 | W39: 12 | X39: 0 | Y39: 0 | Z39: 0 | AA39: 0 | AB39: 0 | AC39: 0 | AD39: 0 | AE39: 597721.9646 | AF39: 0 | AG39: -597721.9646 | AH39: -597721.9646 | AI39: 0 | AL39: 590075.8234 | AN39: 194705.3301
A40: 2035 | B40: =HLOOKUP($A40,'AEG Input File'!$AC$2:$AZ$8,4,FALSE)*Inflation!$B16/100 -> 15275.31577 | C40: 15275.31577 | D40: 122738.1513 | E40: 638918.4084 | F40: 14469.41115 | G40: 55279.4233 | H40: -8570.102551 | I40: 76028.83059 | J40: 55279.4233 | K40: 99383.49097 | L40: 2583.970765 | M40: 4720.715821 | N40: =HLOOKUP($A40,'AEG Input File'!$BA$2:$BX$8,4,FALSE)*Inflation!$B16/100 -> 538885.8926 | O40: 2166.913048 | P40: 0 | Q40: -63.11763959 | R40: -794.8407155 | S40: 602778.9572 | T40: 4.296811184e-53 | V40: 0 | W40: 13 | X40: 0 | Y40: 0 | Z40: 0 | AA40: 0 | AB40: 0 | AC40: 0 | AD40: 0 | AE40: 602778.9572 | AF40: 0 | AG40: -602778.9572 | AH40: -602778.9572 | AI40: 0 | AL40: 595068.1263 | AN40: 144460.8699
A41: 2036 | B41: =HLOOKUP($A41,'AEG Input File'!$AC$2:$AZ$8,4,FALSE)*Inflation!$B17/100 -> 15817.11361 | C41: 15817.11361 | D41: 91845.9442 | E41: 671528.201 | F41: 14877.17907 | G41: 32609.79261 | H41: -3723.848845 | I41: 62960.00043 | J41: 32609.79261 | K41: 77402.97232 | L41: 2012.47728 | M41: 3676.641185 | N41: =HLOOKUP($A41,'AEG Input File'!$BA$2:$BX$8,4,FALSE)*Inflation!$B17/100 -> 558776.4024 | O41: 1574.978403 | P41: 0 | Q41: -83.7345739 | R41: -1054.469861 | S41: 597512.0875 | T41: 3.987928509e-53 | V41: 0 | W41: 14 | X41: 0 | Y41: 0 | Z41: 0 | AA41: 0 | AB41: 0 | AC41: 0 | AD41: 0 | AE41: 597512.0875 | AF41: 0 | AG41: -597512.0875 | AH41: -597512.0875 | AI41: 0 | AL41: 589868.6311 | AN41: 104998.5602
A42: 2037 | B42: =HLOOKUP($A42,'AEG Input File'!$AC$2:$AZ$8,4,FALSE)*Inflation!$B18/100 -> 16379.2072 | C42: 16379.2072 | D42: 79339.20763 | E42: 692414.4817 | F42: 15404.10712 | G42: 20886.28071 | H42: -1151.256454 | I42: 59604.18338 | J42: 20886.28071 | K42: 69471.69551 | L42: 1806.264083 | M42: 3299.905537 | N42: =HLOOKUP($A42,'AEG Input File'!$BA$2:$BX$8,4,FALSE)*Inflation!$B18/100 -> 579428.0352 | O42: 1331.519621 | P42: 0 | Q42: -93.8375908 | R42: -1181.697197 | S42: 605476.4703 | T42: 3.783645341e-53 | V42: 0 | W42: 15 | X42: 0 | Y42: 0 | Z42: 0 | AA42: 0 | AB42: 0 | AC42: 0 | AD42: 0 | AE42: 605476.4703 | AF42: 0 | AG42: -605476.4703 | AH42: -605476.4703 | AI42: 0 | AL42: 597731.1325 | AN42: 88767.97476
A43: 2038 | B43: =HLOOKUP($A43,'AEG Input File'!$AC$2:$AZ$8,4,FALSE)*Inflation!$B19/100 -> 16962.40217 | C43: 16962.40217 | D43: 76566.58555 | E43: 707328.5182 | F43: 15950.75829 | G43: 14914.03652 | H43: 217.7115736 | I43: 61434.83746 | J43: 14914.03652 | K43: 69000.7115 | L43: 1794.018499 | M43: 3277.533796 | N43: =HLOOKUP($A43,'AEG Input File'!$BA$2:$BX$8,4,FALSE)*Inflation!$B19/100 -> 600870.6511 | O43: 1272.661443 | P43: 0 | Q43: -98.44508419 | R43: -1239.719382 | S43: 620790.7369 | T43: 3.632209254e-53 | V43: 0 | W43: 16 | X43: 0 | Y43: 0 | Z43: 0 | AA43: 0 | AB43: 0 | AC43: 0 | AD43: 0 | AE43: 620790.7369 | AF43: 0 | AG43: -620790.7369 | AH43: -620790.7369 | AI43: 0 | AL43: 612849.4968 | AN43: 84844.09622
A44: 2039 | B44: =HLOOKUP($A44,'AEG Input File'!$AC$2:$AZ$8,4,FALSE)*Inflation!$B20/100 -> 17567.49206 | C44: 17567.49206 | D44: 79002.32952 | E44: 722593.4405 | F44: 16517.89871 | G44: 15264.92225 | H44: 263.1250579 | I44: 63474.28221 | J44: 15264.92225 | K44: =(+I44+D44)/2 -> 71238.30586 | L44: 1852.195952 | M44: 3383.819528 | N44: =HLOOKUP($A44,'AEG Input File'!$BA$2:$BX$8,4,FALSE)*Inflation!$B20/100 -> 623135.3418 | O44: 1312.463276 | P44: 0 | Q44: -102.3491494 | R44: =(+AL44-(G44+L44+N44+O44+P44+Q44))*$D$2 -> -1288.883293 | S44: 643557.5104 | T44: 3.525538628e-53 | V44: 0 | W44: 17 | X44: 0 | Y44: 0 | Z44: 0 | AA44: 0 | AB44: 0 | AC44: =Y44+AA44 -> 0 | AD44: 0 | AE44: 643557.5104 | AF44: 0 | AG44: -643557.5104 | AH44: -643557.5104 | AI44: 0 | AL44: 635325.0347 | AN44: 87497.55176
A45: 2040 | B45: =HLOOKUP($A45,'AEG Input File'!$AC$2:$AZ$8,4,FALSE)*Inflation!$B21/100 -> 18195.35881 | C45: 18195.35881 | D45: 81669.64102 | E45: 738219.4582 | F45: 17106.32478 | G45: 15626.01777 | H45: 310.8644734 | I45: 65732.75878 | J45: 15626.01777 | K45: 73701.1999 | L45: 1916.231197 | M45: 3500.806995 | N45: =HLOOKUP($A45,'AEG Input File'!$BA$2:$BX$8,4,FALSE)*Inflation!$B21/100 -> 646254.3878 | O45: 1356.419825 | P45: 0 | Q45: -106.2663147 | R45: -1338.212173 | S45: 667209.3851 | T45: 3.422257965e-53 | V45: 0 | W45: 18 | X45: 0 | Y45: 0 | Z45: 0 | AA45: 0 | AB45: 0 | AC45: 0 | AD45: 0 | AE45: 667209.3851 | AF45: 0 | AG45: -667209.3851 | AH45: -667209.3851 | AI45: 0 | AL45: 658674.3513 | AN45: 90427.98832
A46: 2041 | B46: =HLOOKUP($A46,'AEG Input File'!$AC$2:$AZ$8,4,FALSE)*Inflation!$B22/100 -> 18846.88784 | C46: 18846.88784 | D46: 84579.64662 | E46: 754400.5292 | F46: 17716.87001 | G46: 16181.07096 | H46: 322.5177996 | I46: 68076.05786 | J46: 16181.07096 | K46: 76327.85224 | L46: 1984.524158 | M46: 3625.572982 | N46: =HLOOKUP($A46,'AEG Input File'!$BA$2:$BX$8,4,FALSE)*Inflation!$B22/100 -> 670261.4313 | O46: 1404.732876 | P46: 0 | Q46: -110.3153837 | R46: -1389.202117 | S46: 691957.8147 | T46: 3.323094539e-53 | V46: 0 | W46: 19 | X46: 0 | Y46: 0 | Z46: 0 | AA46: 0 | AB46: 0 | AC46: 0 | AD46: 0 | AE46: 691957.8147 | AF46: 0 | AG46: -691957.8147 | AH46: -691957.8147 | AI46: 0 | AL46: 683106.1957 | AN46: 93648.8584
A47: 2042 | B47: =HLOOKUP($A47,'AEG Input File'!$AC$2:$AZ$8,4,FALSE)*Inflation!$B23/100 -> 19522.98937 | C47: 19522.98937 | D47: 87599.04723 | E47: 771157.4722 | F47: 18350.39702 | G47: 16756.94301 | H47: 334.625343 | I47: =D47-J47-H47 -> 70507.47888 | J47: 16756.94301 | K47: 79053.26305 | L47: 2055.384839 | M47: 3755.029995 | N47: =HLOOKUP($A47,'AEG Input File'!$BA$2:$BX$8,4,FALSE)*Inflation!$B23/100 -> 695191.3941 | O47: 1454.861652 | P47: 0 | Q47: -114.5221366 | R47: -1442.177774 | S47: 717656.9136 | T47: 3.226951463e-53 | V47: 0 | W47: 20 | X47: 0 | Y47: 0 | Z47: 0 | AA47: 0 | AB47: 0 | AC47: 0 | AD47: 0 | AE47: 717656.9136 | AF47: 0 | AG47: -717656.9136 | AH47: -717656.9136 | AI47: 0 | AL47: 708476.5482 | AN47: 96990.77681
A48: 2043 | B48: =HLOOKUP($A48,'AEG Input File'!$AC$2:$AZ$8,4,FALSE)*Inflation!$B24/100 -> 20224.63277 | C48: 20224.63277 | D48: =I47+C48 -> 90732.11165 | E48: 788511.9176 | F48: 19007.8004 | G48: 17354.44545 | H48: 347.2045399 | I48: 73030.46166 | J48: 17354.44545 | K48: 81881.28665 | L48: 2128.913453 | M48: 3889.361116 | N48: =HLOOKUP($A48,'AEG Input File'!$BA$2:$BX$8,4,FALSE)*Inflation!$B24/100 -> 721080.6404 | O48: 1506.876999 | P48: 0 | Q48: -118.8928197 | R48: -1497.217807 | S48: 744344.1268 | T48: 3.13373168e-53 | V48: 0 | W48: 21 | X48: 0 | Y48: 0 | Z48: 0 | AA48: 0 | AB48: 0 | AC48: 0 | AD48: 0 | AE48: 744344.1268 | AF48: 0 | AG48: -744344.1268 | AH48: -744344.1268 | AI48: 0 | AL48: 734822.3749 | AN48: 100458.4666
A49: 2044 | B49: =HLOOKUP($A49,'AEG Input File'!$AC$2:$AZ$8,4,FALSE)*Inflation!$B25/100 -> 20952.83086 | C49: 20952.83086 | D49: 93983.29251 | E49: 806486.3407 | F49: 19690.01697 | G49: 17974.42305 | H49: 360.2747249 | I49: 75648.59474 | J49: 17974.42305 | K49: 84815.94363 | L49: 2205.214534 | M49: 4028.757322 | N49: =HLOOKUP($A49,'AEG Input File'!$BA$2:$BX$8,4,FALSE)*Inflation!$B25/100 -> 747966.9636 | O49: 1560.85278 | P49: 0 | Q49: -123.4339112 | R49: -1554.403792 | S49: 772058.3736 | T49: 3.043341313e-53 | V49: 0 | W49: 22 | X49: 0 | Y49: 0 | Z49: 0 | AA49: 0 | AB49: 0 | AC49: 0 | AD49: 0 | AE49: 772058.3736 | AF49: 0 | AG49: -772058.3736 | AH49: -772058.3736 | AI49: 0 | AL49: 762182.0973 | AN49: 104056.852
A50: 2045 | B50: =HLOOKUP($A50,'AEG Input File'!$AC$2:$AZ$8,4,FALSE)*Inflation!$B26/100 -> 21708.59574 | C50: 21708.59574 | D50: 97357.19049 | E50: 825104.0917 | F50: 20398.01704 | G50: 18617.75104 | H50: 373.8558588 | I50: 78365.58359 | J50: 18617.75104 | K50: 87861.38704 | L50: 2284.396063 | M50: 4173.415884 | N50: =HLOOKUP($A50,'AEG Input File'!$BA$2:$BX$8,4,FALSE)*Inflation!$B26/100 -> 775889.6869 | O50: 1616.86537 | P50: 0 | Q50: -128.1521798 | R50: -1613.820969 | S50: 800840.1422 | T50: 2.955689712e-53 | V50: 0 | W50: 23 | X50: 0 | Y50: 0 | Z50: 0 | AA50: 0 | AB50: 0 | AC50: 0 | AD50: 0 | AE50: 800840.1422 | AF50: 0 | AG50: -800840.1422 | AH50: -800840.1422 | AI50: 0 | AL50: 790595.6855 | AN50: 107791.0247
A51: 2046 | B51: ='AEG Input File'!$AZ$532*Inflation!B26/100 -> 0 | C51: 0 | D51: 78365.58359 | E51: 842140.1314 | F51: 16634.20097 | G51: 17036.03968 | H51: -84.38612888 | I51: 61413.93003 | J51: 17036.03968 | K51: 69889.75681 | L51: 1817.133677 | M51: 3319.763449 | N51: ='AEG Input File'!$BX$532*Inflation!$B$26/100 -> 0 | O51: 1337.599104 | P51: 0 | Q51: 63.49459396 | R51: 799.5877036 | S51: 24373.61821 | T51: 8.422586731e-55 | V51: 0 | W51: 24 | X51: 0 | Y51: 0 | Z51: 0 | AA51: 0 | AB51: 0 | AC51: 0 | AD51: 0 | AE51: 24373.61821 | AF51: 0 | AG51: -24373.61821 | AH51: -24373.61821 | AI51: 0 | AL51: 24061.82755 | AN51: 89173.27363
A52: 2047 | B52: 0 | C52: 0 | D52: 61413.93003 | E52: 857538.2504 | F52: 10036.21838 | G52: 15398.11896 | H52: -1125.999122 | I52: 47141.81019 | J52: 15398.11896 | K52: 54277.87011 | L52: 1411.224623 | M52: 2578.19883 | N52: 0 | O52: 1082.058509 | P52: 0 | Q52: 48.71645478 | R52: 613.4865313 | S52: 21131.80391 | T52: 6.837141086e-55 | V52: 0 | W52: 25 | X52: 0 | Y52: 0 | Z52: 0 | AA52: 0 | AB52: 0 | AC52: 0 | AD52: 0 | AE52: 21131.80391 | AF52: 0 | AG52: -21131.80391 | AH52: -21131.80391 | AI52: 0 | AL52: 20861.48298 | AN52: 72137.23395
A53: 2048 | B53: 0 | C53: 0 | D53: 47141.81019 | E53: 871240.1291 | F53: 6079.535192 | G53: 13701.87874 | H53: -1600.692146 | I53: 35040.6236 | J53: 13701.87874 | K53: 41091.2169 | L53: 1068.371639 | M53: 1951.832803 | N53: 0 | O53: 851.0867248 | P53: 0 | Q53: 36.3222457 | R53: 457.4062013 | S53: 18066.89836 | T53: 5.473108439e-55 | V53: 0 | W53: 26 | X53: 0 | Y53: 0 | Z53: 0 | AA53: 0 | AB53: 0 | AC53: 0 | AD53: 0 | AE53: 18066.89836 | AF53: 0 | AG53: -18066.89836 | AH53: -18066.89836 | AI53: 0 | AL53: 17835.78412 | AN53: 56739.11499
A54: 2049 | B54: 0 | C54: 0 | D54: 35040.6236 | E54: 883185.2587 | F54: 3707.713287 | G54: 11945.12954 | H54: -1729.857413 | I54: 24825.35147 | J54: 11945.12954 | K54: 29932.98753 | L54: 778.2576759 | M54: 1421.816908 | N54: 0 | O54: 645.5585436 | P54: 0 | Q54: 25.92375441 | R54: 326.4579544 | S54: 15143.14438 | T54: 4.295156538e-55 | V54: 0 | W54: 27 | X54: 0 | Y54: 0 | Z54: 0 | AA54: 0 | AB54: 0 | AC54: 0 | AD54: 0 | AE54: 15143.14438 | AF54: 0 | AG54: -15143.14438 | AH54: -15143.14438 | AI54: 0 | AL54: 14949.4312 | AN54: 43037.23624
A55: 2050 | B55: 0 | C55: 0 | D55: 24825.35147 | E55: 893310.8523 | F55: 1250.415115 | G55: 10125.59366 | H55: -1863.787494 | I55: 16563.54531 | J55: 10125.59366 | K55: 20694.44839 | L55: 538.0556581 | M55: 982.9862984 | N55: 0 | O55: 466.3816006 | P55: 0 | Q55: 17.41487479 | R55: 219.3055956 | S55: 12349.73769 | T55: 3.279692664e-55 | V55: 0 | W55: 28 | X55: 0 | Y55: 0 | Z55: 0 | AA55: 0 | AB55: 0 | AC55: 0 | AD55: 0 | AE55: 12349.73769 | AF55: 0 | AG55: -12349.73769 | AH55: -12349.73769 | AI55: 0 | AL55: 12191.75815 | AN55: 31092.1067
A56: 2051 | B56: 0 | C56: 0 | D56: 16563.54531 | E56: 901551.7572 | F56: 0 | G56: 8240.904874 | H56: -1730.590024 | I56: 10053.23046 | J56: 8240.904874 | K56: 13308.38788 | L56: 346.0180849 | M56: 632.1484243 | N56: 0 | O56: 314.4976957 | P56: 0 | Q56: 10.73017479 | R56: 135.1251388 | S56: 9679.424392 | T56: 2.406785737e-55 | V56: 0 | W56: 29 | X56: 0 | Y56: 0 | Z56: 0 | AA56: 0 | AB56: 0 | AC56: 0 | AD56: 0 | AE56: 9679.424392 | AF56: 0 | AG56: -9679.424392 | AH56: -9679.424392 | AI56: 0 | AL56: 9555.603871 | AN56: 20966.51305
A57: 2052 | B57: 0 | C57: 0 | D57: 10053.23046 | E57: 907840.3631 | F57: 0 | G57: 6288.605937 | H57: -1320.607247 | I57: 5085.231765 | J57: 6288.605937 | K57: 7569.23111 | L57: 196.8000089 | M57: 359.5384777 | N57: 0 | O57: 190.8841226 | P57: 0 | Q57: 5.668748449 | R57: 71.38657438 | S57: 7112.883869 | T57: 1.655945721e-55 | V57: 0 | W57: 30 | X57: 0 | Y57: 0 | Z57: 0 | AA57: 0 | AB57: 0 | AC57: 0 | AD57: 0 | AE57: 7112.883869 | AF57: 0 | AG57: -7112.883869 | AH57: -7112.883869 | AI57: 0 | AL57: 7021.894886 | AN57: 12725.60817
A58: 2053 | B58: 0 | C58: 0 | D58: 5085.231765 | E58: 912106.5058 | F58: 0 | G58: 4266.14266 | H58: -895.8899586 | I58: 1714.979064 | J58: 4266.14266 | K58: 3400.105415 | L58: 88.40274078 | M58: 161.5050072 | N58: 0 | O58: 96.55503352 | P58: 0 | Q58: 2.155734434 | R58: 27.14717329 | S58: 4641.908349 | T58: 1.011834359e-55 | V58: 0 | W58: 31 | X58: 0 | Y58: 0 | Z58: 0 | AA58: 0 | AB58: 0 | AC58: 0 | AD58: 0 | AE58: 4641.908349 | AF58: 0 | AG58: -4641.908349 | AH58: -4641.908349 | AI58: 0 | AL58: 4582.528423 | AN58: 6437.002235
A59: 2054 | B59: 0 | C59: 0 | D59: 1714.979064 | E59: 914277.3654 | F59: 0 | G59: 2170.859574 | H59: -455.8805106 | I59: -5.530864655e-11 | J59: 2170.859574 | K59: 857.4895319 | L59: 22.29472783 | M59: 40.73075277 | N59: 0 | O59: 32.56289362 | P59: 0 | Q59: 0.246869425 | R59: 3.108827764 | S59: 2269.803646 | T59: 4.632480846e-56 | V59: 0 | W59: 32 | X59: 0 | Y59: 0 | Z59: 0 | AA59: 0 | AB59: 0 | AC59: 0 | AD59: 0 | AE59: 2269.803646 | AF59: 0 | AG59: -2269.803646 | AH59: -2269.803646 | AI59: 0 | AL59: 2240.768007 | AN59: 2170.859574
A60: 2055 | B60: 0 | C60: 0 | D60: -5.530864655e-11 | E60: 914277.3654 | F60: 0 | G60: 0 | H60: 0 | I60: -5.530864655e-11 | J60: 0 | K60: -5.530864655e-11 | L60: -1.43802481e-12 | M60: -2.627160711e-12 | N60: 0 | O60: -7.162270776e-13 | P60: 0 | Q60: -5.396693022e-14 | R60: -6.796057918e-13 | S60: -5.514985321e-12 | T60: -1.053858216e-70 | V60: 0 | W60: 33 | X60: 0 | Y60: 0 | Z60: 0 | AA60: 0 | AB60: 0 | AC60: 0 | AD60: 0 | AE60: -5.514985321e-12 | AF60: 0 | AG60: 5.514985321e-12 | AH60: 5.514985321e-12 | AI60: 0 | AL60: -5.444436874e-12 | AN60: -4.774847184e-11
A61: 2056 | B61: 0 | C61: 0 | D61: -5.530864655e-11 | E61: 914277.3654 | F61: 0 | G61: 0 | H61: 0 | I61: -5.530864655e-11 | J61: 0 | K61: -5.530864655e-11 | L61: -1.43802481e-12 | M61: -2.627160711e-12 | N61: 0 | O61: -7.162270776e-13 | P61: 0 | Q61: -5.396693022e-14 | R61: -6.796057918e-13 | S61: -5.514985321e-12 | T61: -9.867216735e-71 | V61: 0 | W61: 34 | X61: 0 | Y61: 0 | Z61: 0 | AA61: 0 | AB61: 0 | AC61: 0 | AD61: 0 | AE61: -5.514985321e-12 | AF61: 0 | AG61: 5.514985321e-12 | AH61: 5.514985321e-12 | AI61: 0 | AL61: -5.444436874e-12 | AN61: -4.774847184e-11
A62: 2057 | B62: 0 | C62: 0 | D62: -5.530864655e-11 | E62: 914277.3654 | F62: 0 | G62: 0 | H62: 0 | I62: -5.530864655e-11 | J62: 0 | K62: -5.530864655e-11 | L62: -1.43802481e-12 | M62: -2.627160711e-12 | N62: 0 | O62: -7.162270776e-13 | P62: 0 | Q62: -5.396693022e-14 | R62: -6.796057918e-13 | S62: -5.514985321e-12 | T62: -9.238620965e-71 | V62: 0 | W62: 35 | X62: 0 | Y62: 0 | Z62: 0 | AA62: 0 | AB62: 0 | AC62: 0 | AD62: 0 | AE62: -5.514985321e-12 | AF62: 0 | AG62: 5.514985321e-12 | AH62: 5.514985321e-12 | AI62: 0 | AL62: -5.444436874e-12 | AN62: -4.774847184e-11
A63: 2058 | B63: 0 | C63: 0 | D63: -5.530864655e-11 | E63: 914277.3654 | F63: 0 | G63: 0 | H63: 0 | I63: -5.530864655e-11 | J63: 0 | K63: -5.530864655e-11 | L63: -1.43802481e-12 | M63: -2.627160711e-12 | N63: 0 | O63: -7.162270776e-13 | P63: 0 | Q63: -5.396693022e-14 | R63: -6.796057918e-13 | S63: -5.514985321e-12 | T63: -8.650070189e-71 | V63: 0 | W63: 36 | X63: 0 | Y63: 0 | Z63: 0 | AA63: 0 | AB63: 0 | AC63: 0 | AD63: 0 | AE63: -5.514985321e-12 | AF63: 0 | AG63: 5.514985321e-12 | AH63: 5.514985321e-12 | AI63: 0 | AL63: -5.444436874e-12 | AN63: -4.774847184e-11
A64: 2059 | B64: 0 | C64: 0 | D64: -5.530864655e-11 | E64: 914277.3654 | F64: 0 | G64: 0 | H64: 0 | I64: -5.530864655e-11 | J64: 0 | K64: -5.530864655e-11 | L64: -1.43802481e-12 | M64: -2.627160711e-12 | N64: 0 | O64: -7.162270776e-13 | P64: 0 | Q64: -5.396693022e-14 | R64: -6.796057918e-13 | S64: -5.514985321e-12 | T64: -8.099013323e-71 | V64: 0 | W64: 37 | X64: 0 | Y64: 0 | Z64: 0 | AA64: 0 | AB64: 0 | AC64: 0 | AD64: 0 | AE64: -5.514985321e-12 | AF64: 0 | AG64: 5.514985321e-12 | AH64: 5.514985321e-12 | AI64: 0 | AL64: -5.444436874e-12 | AN64: -4.774847184e-11
A65: 2060 | B65: 0 | C65: 0 | D65: -5.530864655e-11 | E65: 914277.3654 | F65: 0 | G65: 0 | H65: 0 | I65: -5.530864655e-11 | J65: 0 | K65: -5.530864655e-11 | L65: -1.43802481e-12 | M65: -2.627160711e-12 | N65: 0 | O65: -7.162270776e-13 | P65: 0 | Q65: -5.396693022e-14 | R65: -6.796057918e-13 | S65: -5.514985321e-12 | T65: -7.583061798e-71 | V65: 0 | W65: 38 | X65: 0 | Y65: 0 | Z65: 0 | AA65: 0 | AB65: 0 | AC65: 0 | AD65: 0 | AE65: -5.514985321e-12 | AF65: 0 | AG65: 5.514985321e-12 | AH65: 5.514985321e-12 | AI65: 0 | AL65: -5.444436874e-12 | AN65: -4.774847184e-11
A66: 2061 | B66: 0 | C66: 0 | D66: -5.530864655e-11 | E66: 914277.3654 | F66: 0 | G66: 0 | H66: 0 | I66: -5.530864655e-11 | J66: 0 | K66: -5.530864655e-11 | L66: -1.43802481e-12 | M66: -2.627160711e-12 | N66: 0 | O66: -7.162270776e-13 | P66: 0 | Q66: -5.396693022e-14 | R66: -6.796057918e-13 | S66: -5.514985321e-12 | T66: -7.099979212e-71 | V66: 0 | W66: 39 | X66: 0 | Y66: 0 | Z66: 0 | AA66: 0 | AB66: 0 | AC66: 0 | AD66: 0 | AE66: -5.514985321e-12 | AF66: 0 | AG66: 5.514985321e-12 | AH66: 5.514985321e-12 | AI66: 0 | AL66: -5.444436874e-12 | AN66: -4.774847184e-11
A67: 2062 | B67: 0 | C67: 0 | D67: -5.530864655e-11 | E67: 914277.3654 | F67: 0 | G67: 0 | H67: 0 | I67: -5.530864655e-11 | J67: 0 | K67: -5.530864655e-11 | L67: -1.43802481e-12 | M67: -2.627160711e-12 | N67: 0 | O67: -7.162270776e-13 | P67: 0 | Q67: -5.396693022e-14 | R67: -6.796057918e-13 | S67: -5.514985321e-12 | T67: -6.647671634e-71 | V67: 0 | W67: 40 | X67: 0 | Y67: 0 | Z67: 0 | AA67: 0 | AB67: 0 | AC67: 0 | AD67: 0 | AE67: -5.514985321e-12 | AF67: 0 | AG67: 5.514985321e-12 | AH67: 5.514985321e-12 | AI67: 0 | AL67: -5.444436874e-12 | AN67: -4.774847184e-11
A68: 2063 | B68: 0 | C68: 0 | D68: -5.530864655e-11 | E68: 914277.3654 | F68: 0 | G68: 0 | H68: 0 | I68: -5.530864655e-11 | J68: 0 | K68: -5.530864655e-11 | L68: -1.43802481e-12 | M68: -2.627160711e-12 | N68: 0 | O68: -7.162270776e-13 | P68: 0 | Q68: -5.396693022e-14 | R68: -6.796057918e-13 | S68: -5.514985321e-12 | T68: -6.224178527e-71 | V68: 0 | W68: 41 | X68: 0 | Y68: 0 | Z68: 0 | AA68: 0 | AB68: 0 | AC68: 0 | AD68: 0 | AE68: -5.514985321e-12 | AF68: 0 | AG68: 5.514985321e-12 | AH68: 5.514985321e-12 | AI68: 0 | AL68: -5.444436874e-12 | AN68: -4.774847184e-11
A69: 2064 | B69: 0 | C69: 0 | D69: -5.530864655e-11 | E69: 914277.3654 | F69: 0 | G69: 0 | H69: 0 | I69: -5.530864655e-11 | J69: 0 | K69: -5.530864655e-11 | L69: -1.43802481e-12 | M69: -2.627160711e-12 | N69: 0 | O69: -7.162270776e-13 | P69: 0 | Q69: -5.396693022e-14 | R69: -6.796057918e-13 | S69: -5.514985321e-12 | T69: -5.827664252e-71 | V69: 0 | W69: 42 | X69: 0 | Y69: 0 | Z69: 0 | AA69: 0 | AB69: 0 | AC69: 0 | AD69: 0 | AE69: -5.514985321e-12 | AF69: 0 | AG69: 5.514985321e-12 | AH69: 5.514985321e-12 | AI69: 0 | AL69: -5.444436874e-12 | AN69: -4.774847184e-11
A70: 2065 | B70: 0 | C70: 0 | D70: -5.530864655e-11 | E70: 914277.3654 | F70: 0 | G70: 0 | H70: 0 | I70: -5.530864655e-11 | J70: 0 | K70: -5.530864655e-11 | L70: -1.43802481e-12 | M70: -2.627160711e-12 | N70: 0 | O70: -7.162270776e-13 | P70: 0 | Q70: -5.396693022e-14 | R70: -6.796057918e-13 | S70: -5.514985321e-12 | T70: -5.456410108e-71 | V70: 0 | W70: 43 | X70: 0 | Y70: 0 | Z70: 0 | AA70: 0 | AB70: 0 | AC70: 0 | AD70: 0 | AE70: -5.514985321e-12 | AF70: 0 | AG70: 5.514985321e-12 | AH70: 5.514985321e-12 | AI70: 0 | AL70: -5.444436874e-12 | AN70: -4.774847184e-11
A71: 2066 | B71: 0 | C71: 0 | D71: -5.530864655e-11 | E71: 914277.3654 | F71: 0 | G71: 0 | H71: 0 | I71: -5.530864655e-11 | J71: 0 | K71: -5.530864655e-11 | L71: -1.43802481e-12 | M71: -2.627160711e-12 | N71: 0 | O71: -7.162270776e-13 | P71: 0 | Q71: -5.396693022e-14 | R71: -6.796057918e-13 | S71: -5.514985321e-12 | T71: -5.108806887e-71 | V71: 0 | W71: 44 | X71: 0 | Y71: 0 | Z71: 0 | AA71: 0 | AB71: 0 | AC71: 0 | AD71: 0 | AE71: -5.514985321e-12 | AF71: 0 | AG71: 5.514985321e-12 | AH71: 5.514985321e-12 | AI71: 0 | AL71: -5.444436874e-12 | AN71: -4.774847184e-11
A72: 2067 | B72: 0 | C72: 0 | D72: -5.530864655e-11 | E72: 914277.3654 | F72: 0 | G72: 0 | H72: 0 | I72: -5.530864655e-11 | J72: 0 | K72: -5.530864655e-11 | L72: -1.43802481e-12 | M72: -2.627160711e-12 | N72: 0 | O72: -7.162270776e-13 | P72: 0 | Q72: -5.396693022e-14 | R72: -6.796057918e-13 | S72: -5.514985321e-12 | T72: -4.783347896e-71 | V72: 0 | W72: 45 | X72: 0 | Y72: 0 | Z72: 0 | AA72: 0 | AB72: 0 | AC72: 0 | AD72: 0 | AE72: -5.514985321e-12 | AF72: 0 | AG72: 5.514985321e-12 | AH72: 5.514985321e-12 | AI72: 0 | AL72: -5.444436874e-12 | AN72: -4.774847184e-11
A73: 2068 | B73: 0 | C73: 0 | D73: -5.530864655e-11 | E73: 914277.3654 | F73: 0 | G73: 0 | H73: 0 | I73: -5.530864655e-11 | J73: 0 | K73: -5.530864655e-11 | L73: -1.43802481e-12 | M73: -2.627160711e-12 | N73: 0 | O73: -7.162270776e-13 | P73: 0 | Q73: -5.396693022e-14 | R73: -6.796057918e-13 | S73: -5.514985321e-12 | T73: -4.478622426e-71 | V73: 0 | W73: 46 | X73: 0 | Y73: 0 | Z73: 0 | AA73: 0 | AB73: 0 | AC73: 0 | AD73: 0 | AE73: -5.514985321e-12 | AF73: 0 | AG73: 5.514985321e-12 | AH73: 5.514985321e-12 | AI73: 0 | AL73: -5.444436874e-12 | AN73: -4.774847184e-11
A74: 2069 | B74: 0 | C74: 0 | D74: -5.530864655e-11 | E74: 914277.3654 | F74: 0 | G74: 0 | H74: 0 | I74: -5.530864655e-11 | J74: 0 | K74: -5.530864655e-11 | L74: -1.43802481e-12 | M74: -2.627160711e-12 | N74: 0 | O74: -7.162270776e-13 | P74: 0 | Q74: -5.396693022e-14 | R74: -6.796057918e-13 | S74: -5.514985321e-12 | T74: -4.193309639e-71 | V74: 0 | W74: 47 | X74: 0 | Y74: 0 | Z74: 0 | AA74: 0 | AB74: 0 | AC74: 0 | AD74: 0 | AE74: -5.514985321e-12 | AF74: 0 | AG74: 5.514985321e-12 | AH74: 5.514985321e-12 | AI74: 0 | AL74: -5.444436874e-12 | AN74: -4.774847184e-11
A75: 2070 | B75: 0 | C75: 0 | D75: -5.530864655e-11 | E75: 914277.3654 | F75: 0 | G75: 0 | H75: 0 | I75: -5.530864655e-11 | J75: 0 | K75: -5.530864655e-11 | L75: -1.43802481e-12 | M75: -2.627160711e-12 | N75: 0 | O75: -7.162270776e-13 | P75: 0 | Q75: -5.396693022e-14 | R75: -6.796057918e-13 | S75: -5.514985321e-12 | T75: -3.926172839e-71 | V75: 0 | W75: 48 | X75: 0 | Y75: 0 | Z75: 0 | AA75: 0 | AB75: 0 | AC75: 0 | AD75: 0 | AE75: -5.514985321e-12 | AF75: 0 | AG75: 5.514985321e-12 | AH75: 5.514985321e-12 | AI75: 0 | AL75: -5.444436874e-12 | AN75: -4.774847184e-11
A76: 2071 | B76: 0 | C76: 0 | D76: -5.530864655e-11 | E76: 914277.3654 | F76: 0 | G76: 0 | H76: 0 | I76: -5.530864655e-11 | J76: 0 | K76: -5.530864655e-11 | L76: -1.43802481e-12 | M76: -2.627160711e-12 | N76: 0 | O76: -7.162270776e-13 | P76: 0 | Q76: -5.396693022e-14 | R76: -6.796057918e-13 | S76: -5.514985321e-12 | T76: -3.676054117e-71 | V76: 0 | W76: 49 | X76: 0 | Y76: 0 | Z76: 0 | AA76: 0 | AB76: 0 | AC76: 0 | AD76: 0 | AE76: -5.514985321e-12 | AF76: 0 | AG76: 5.514985321e-12 | AH76: 5.514985321e-12 | AI76: 0 | AL76: -5.444436874e-12 | AN76: -4.774847184e-11
A77: 2072 | B77: 0 | C77: 0 | D77: -5.530864655e-11 | E77: 914277.3654 | F77: 0 | G77: 0 | H77: 0 | I77: -5.530864655e-11 | J77: 0 | K77: -5.530864655e-11 | L77: -1.43802481e-12 | M77: -2.627160711e-12 | N77: 0 | O77: -7.162270776e-13 | P77: 0 | Q77: -5.396693022e-14 | R77: -6.796057918e-13 | S77: -5.514985321e-12 | T77: -3.441869328e-71 | V77: 0 | W77: 50 | X77: 0 | Y77: 0 | Z77: 0 | AA77: 0 | AB77: 0 | AC77: 0 | AD77: 0 | AE77: -5.514985321e-12 | AF77: 0 | AG77: 5.514985321e-12 | AH77: 5.514985321e-12 | AI77: 0 | AL77: -5.444436874e-12 | AN77: -4.774847184e-11
A78: 2073 | B78: 0 | C78: 0 | D78: -5.530864655e-11 | E78: 914277.3654 | F78: 0 | G78: 0 | H78: 0 | I78: -5.530864655e-11 | J78: 0 | K78: -5.530864655e-11 | L78: -1.43802481e-12 | M78: -2.627160711e-12 | N78: 0 | O78: -7.162270776e-13 | P78: 0 | Q78: -5.396693022e-14 | R78: -6.796057918e-13 | S78: -5.514985321e-12 | T78: -3.222603393e-71 | V78: 0 | W78: 51 | X78: 0 | Y78: 0 | Z78: 0 | AA78: 0 | AB78: 0 | AC78: 0 | AD78: 0 | AE78: -5.514985321e-12 | AF78: 0 | AG78: 5.514985321e-12 | AH78: 5.514985321e-12 | AI78: 0 | AL78: -5.444436874e-12 | AN78: -4.774847184e-11
A79: 2074 | B79: 0 | C79: 0 | D79: -5.530864655e-11 | E79: 914277.3654 | F79: 0 | G79: 0 | H79: 0 | I79: -5.530864655e-11 | J79: 0 | K79: -5.530864655e-11 | L79: -1.43802481e-12 | M79: -2.627160711e-12 | N79: 0 | O79: -7.162270776e-13 | P79: 0 | Q79: -5.396693022e-14 | R79: -6.796057918e-13 | S79: -5.514985321e-12 | T79: -3.017305899e-71 | V79: 0 | W79: 52 | X79: 0 | Y79: 0 | Z79: 0 | AA79: 0 | AB79: 0 | AC79: 0 | AD79: 0 | AE79: -5.514985321e-12 | AF79: 0 | AG79: 5.514985321e-12 | AH79: 5.514985321e-12 | AI79: 0 | AL79: -5.444436874e-12 | AN79: -4.774847184e-11
A80: 2075 | B80: 0 | C80: 0 | D80: -5.530864655e-11 | E80: 914277.3654 | F80: 0 | G80: 0 | H80: 0 | I80: -5.530864655e-11 | J80: 0 | K80: -5.530864655e-11 | L80: -1.43802481e-12 | M80: -2.627160711e-12 | N80: 0 | O80: -7.162270776e-13 | P80: 0 | Q80: -5.396693022e-14 | R80: -6.796057918e-13 | S80: -5.514985321e-12 | T80: -2.825086981e-71 | V80: 0 | W80: 53 | X80: 0 | Y80: 0 | Z80: 0 | AA80: 0 | AB80: 0 | AC80: 0 | AD80: 0 | AE80: -5.514985321e-12 | AF80: 0 | AG80: 5.514985321e-12 | AH80: 5.514985321e-12 | AI80: 0 | AL80: -5.444436874e-12 | AN80: -4.774847184e-11
A81: 2076 | B81: 0 | C81: 0 | D81: -5.530864655e-11 | E81: 914277.3654 | F81: 0 | G81: 0 | H81: 0 | I81: -5.530864655e-11 | J81: 0 | K81: -5.530864655e-11 | L81: -1.43802481e-12 | M81: -2.627160711e-12 | N81: 0 | O81: -7.162270776e-13 | P81: 0 | Q81: -5.396693022e-14 | R81: -6.796057918e-13 | S81: -5.514985321e-12 | T81: -2.645113461e-71 | V81: 0 | W81: 54 | X81: 0 | Y81: 0 | Z81: 0 | AA81: 0 | AB81: 0 | AC81: 0 | AD81: 0 | AE81: -5.514985321e-12 | AF81: 0 | AG81: 5.514985321e-12 | AH81: 5.514985321e-12 | AI81: 0 | AL81: -5.444436874e-12 | AN81: -4.774847184e-11
A82: 2077 | B82: 0 | C82: 0 | D82: -5.530864655e-11 | E82: 914277.3654 | F82: 0 | G82: 0 | H82: 0 | I82: -5.530864655e-11 | J82: 0 | K82: -5.530864655e-11 | L82: -1.43802481e-12 | M82: -2.627160711e-12 | N82: 0 | O82: -7.162270776e-13 | P82: 0 | Q82: -5.396693022e-14 | R82: -6.796057918e-13 | S82: -5.514985321e-12 | T82: -2.476605241e-71 | V82: 0 | W82: 55 | X82: 0 | Y82: 0 | Z82: 0 | AA82: 0 | AB82: 0 | AC82: 0 | AD82: 0 | AE82: -5.514985321e-12 | AF82: 0 | AG82: 5.514985321e-12 | AH82: 5.514985321e-12 | AI82: 0 | AL82: -5.444436874e-12 | AN82: -4.774847184e-11
A83: 2078 | B83: 0 | C83: 0 | D83: -5.530864655e-11 | E83: 914277.3654 | F83: 0 | G83: 0 | H83: 0 | I83: -5.530864655e-11 | J83: 0 | K83: -5.530864655e-11 | L83: -1.43802481e-12 | M83: -2.627160711e-12 | N83: 0 | O83: -7.162270776e-13 | P83: 0 | Q83: -5.396693022e-14 | R83: -6.796057918e-13 | S83: -5.514985321e-12 | T83: -2.318831917e-71 | V83: 0 | W83: 56 | X83: 0 | Y83: 0 | Z83: 0 | AA83: 0 | AB83: 0 | AC83: 0 | AD83: 0 | AE83: -5.514985321e-12 | AF83: 0 | AG83: 5.514985321e-12 | AH83: 5.514985321e-12 | AI83: 0 | AL83: -5.444436874e-12 | AN83: -4.774847184e-11
A84: 2079 | B84: 0 | C84: 0 | D84: -5.530864655e-11 | E84: 914277.3654 | F84: 0 | G84: 0 | H84: 0 | I84: -5.530864655e-11 | J84: 0 | K84: -5.530864655e-11 | L84: -1.43802481e-12 | M84: -2.627160711e-12 | N84: 0 | O84: -7.162270776e-13 | P84: 0 | Q84: -5.396693022e-14 | R84: -6.796057918e-13 | S84: -5.514985321e-12 | T84: -2.171109619e-71 | V84: 0 | W84: 57 | X84: 0 | Y84: 0 | Z84: 0 | AA84: 0 | AB84: 0 | AC84: 0 | AD84: 0 | AE84: -5.514985321e-12 | AF84: 0 | AG84: 5.514985321e-12 | AH84: 5.514985321e-12 | AI84: 0 | AL84: -5.444436874e-12 | AN84: -4.774847184e-11
A85: 2080 | B85: 0 | C85: 0 | D85: -5.530864655e-11 | E85: 914277.3654 | F85: 0 | G85: 0 | H85: 0 | I85: -5.530864655e-11 | J85: 0 | K85: -5.530864655e-11 | L85: -1.43802481e-12 | M85: -2.627160711e-12 | N85: 0 | O85: -7.162270776e-13 | P85: 0 | Q85: -5.396693022e-14 | R85: -6.796057918e-13 | S85: -5.514985321e-12 | T85: -2.03279804e-71 | V85: 0 | W85: 58 | X85: 0 | Y85: 0 | Z85: 0 | AA85: 0 | AB85: 0 | AC85: 0 | AD85: 0 | AE85: -5.514985321e-12 | AF85: 0 | AG85: 5.514985321e-12 | AH85: 5.514985321e-12 | AI85: 0 | AL85: -5.444436874e-12 | AN85: -4.774847184e-11
A86: 2081 | B86: 0 | C86: 0 | D86: -5.530864655e-11 | E86: 914277.3654 | F86: 0 | G86: 0 | H86: 0 | I86: -5.530864655e-11 | J86: 0 | K86: -5.530864655e-11 | L86: -1.43802481e-12 | M86: -2.627160711e-12 | N86: 0 | O86: -7.162270776e-13 | P86: 0 | Q86: -5.396693022e-14 | R86: -6.796057918e-13 | S86: -5.514985321e-12 | T86: -1.903297667e-71 | V86: 0 | W86: 59 | X86: 0 | Y86: 0 | Z86: 0 | AA86: 0 | AB86: 0 | AC86: 0 | AD86: 0 | AE86: -5.514985321e-12 | AF86: 0 | AG86: 5.514985321e-12 | AH86: 5.514985321e-12 | AI86: 0 | AL86: -5.444436874e-12 | AN86: -4.774847184e-11
A87: 2082 | B87: 0 | C87: 0 | D87: -5.530864655e-11 | E87: 914277.3654 | F87: 0 | G87: 0 | H87: 0 | I87: -5.530864655e-11 | J87: 0 | K87: -5.530864655e-11 | L87: -1.43802481e-12 | M87: -2.627160711e-12 | N87: 0 | O87: -7.162270776e-13 | P87: 0 | Q87: -5.396693022e-14 | R87: -6.796057918e-13 | S87: -5.514985321e-12 | T87: -1.782047177e-71 | V87: 0 | W87: 60 | X87: 0 | Y87: 0 | Z87: 0 | AA87: 0 | AB87: 0 | AC87: 0 | AD87: 0 | AE87: -5.514985321e-12 | AF87: 0 | AG87: 5.514985321e-12 | AH87: 5.514985321e-12 | AI87: 0 | AL87: -5.444436874e-12 | AN87: -4.774847184e-11
A88: 2083 | B88: 0 | C88: 0 | D88: -5.530864655e-11 | E88: 914277.3654 | F88: 0 | G88: 0 | H88: 0 | I88: -5.530864655e-11 | J88: 0 | K88: -5.530864655e-11 | L88: -1.43802481e-12 | M88: =IF(A88=1,($N$3+$N$2)*K88,($N$3+$N$2)*K88) -> -2.627160711e-12 | N88: 0 | O88: -7.162270776e-13 | P88: 0 | Q88: -5.396693022e-14 | R88: -6.796057918e-13 | S88: -5.514985321e-12 | T88: -1.668521007e-71 | V88: 0 | W88: 61 | X88: 0 | Y88: 0 | Z88: 0 | AA88: 0 | AB88: 0 | AC88: 0 | AD88: 0 | AE88: -5.514985321e-12 | AF88: 0 | AG88: 5.514985321e-12 | AH88: 5.514985321e-12 | AI88: 0 | AL88: -5.444436874e-12 | AN88: -4.774847184e-11
A89: 2084 | B89: 0 | C89: 0 | D89: -5.530864655e-11 | E89: 914277.3654 | F89: 0 | G89: 0 | H89: 0 | I89: -5.530864655e-11 | J89: 0 | K89: -5.530864655e-11 | L89: -1.43802481e-12 | M89: =IF(A89=1,($N$3+$N$2)*K89,($N$3+$N$2)*K89) -> -2.627160711e-12 | N89: 0 | O89: -7.162270776e-13 | P89: 0 | Q89: -5.396693022e-14 | R89: -6.796057918e-13 | S89: -5.514985321e-12 | T89: -1.562227077e-71 | V89: 0 | W89: 62 | X89: 0 | Y89: 0 | Z89: 0 | AA89: 0 | AB89: 0 | AC89: 0 | AD89: 0 | AE89: -5.514985321e-12 | AF89: 0 | AG89: 5.514985321e-12 | AH89: 5.514985321e-12 | AI89: 0 | AL89: -5.444436874e-12 | AN89: -4.774847184e-11
A90: 2085 | B90: 0 | C90: 0 | D90: -5.530864655e-11 | E90: 914277.3654 | F90: 0 | G90: 0 | H90: 0 | I90: -5.530864655e-11 | J90: 0 | K90: -5.530864655e-11 | L90: -1.43802481e-12 | M90: -2.627160711e-12 | N90: 0 | O90: -7.162270776e-13 | P90: 0 | Q90: -5.396693022e-14 | R90: -6.796057918e-13 | S90: -5.514985321e-12 | T90: -1.462704653e-71 | V90: 0 | W90: 63 | X90: 0 | Y90: 0 | Z90: 0 | AA90: 0 | AB90: 0 | AC90: 0 | AD90: 0 | AE90: -5.514985321e-12 | AF90: 0 | AG90: 5.514985321e-12 | AH90: 5.514985321e-12 | AI90: 0 | AL90: -5.444436874e-12 | AN90: -4.774847184e-11
A91: 2086 | B91: 0 | C91: 0 | D91: -5.530864655e-11 | E91: 914277.3654 | F91: 0 | G91: 0 | H91: 0 | I91: -5.530864655e-11 | J91: 0 | K91: -5.530864655e-11 | L91: -1.43802481e-12 | M91: -2.627160711e-12 | N91: 0 | O91: -7.162270776e-13 | P91: 0 | Q91: -5.396693022e-14 | R91: -6.796057918e-13 | S91: -5.514985321e-12 | T91: -1.369522352e-71 | V91: 0 | W91: 64 | X91: 0 | Y91: 0 | Z91: 0 | AA91: 0 | AB91: 0 | AC91: 0 | AD91: 0 | AE91: -5.514985321e-12 | AF91: 0 | AG91: 5.514985321e-12 | AH91: 5.514985321e-12 | AI91: 0 | AL91: -5.444436874e-12 | AN91: -4.774847184e-11
A92: =1+A91 -> 2087 | B92: 0 | C92: 0 | D92: =I91+C92 -> -5.530864655e-11 | E92: =E91+J92 -> 914277.3654 | F92: =CA201 -> 0 | G92: 0 | H92: =(F92-G92)*$D$2 -> 0 | I92: =D92-J92-H92 -> -5.530864655e-11 | J92: =CA387 -> 0 | K92: =(+I92+D92)/2 -> -5.530864655e-11 | L92: -1.43802481e-12 | M92: -2.627160711e-12 | N92: 0 | O92: =AN92*$D$10 -> -7.162270776e-13 | P92: 0 | Q92: =(+AL92-(G92+L92+N92+O92+P92))*$D$1 -> -5.396693022e-14 | R92: =(+AL92-(G92+L92+N92+O92+P92+Q92))*$D$2 -> -6.796057918e-13 | S92: =J92+M92+L92+N92+O92+P92+Q92+R92 -> -5.514985321e-12 | T92: -1.282276274e-71 | V92: 0 | W92: 65 | X92: 0 | Y92: 0 | Z92: 0 | AA92: 0 | AB92: 0 | AC92: 0 | AD92: 0 | AE92: =S92 -> -5.514985321e-12 | AF92: =V92 -> 0 | AG92: =AF92-AE92 -> 5.514985321e-12 | AH92: 5.514985321e-12 | AI92: 0 | AL92: -5.444436874e-12 | AN92: -4.774847184e-11
A93: 2088 | B93: 0 | C93: =B93 -> 0 | D93: -5.530864655e-11 | E93: 914277.3654 | F93: 0 | G93: =CA294 -> 0 | H93: 0 | I93: -5.530864655e-11 | J93: 0 | K93: -5.530864655e-11 | L93: =IF(A93=1,$N$1*K93,$N$1*K93) -> -1.43802481e-12 | M93: -2.627160711e-12 | N93: 0 | O93: -7.162270776e-13 | P93: =AL93*$T$8 -> 0 | Q93: -5.396693022e-14 | R93: -6.796057918e-13 | S93: -5.514985321e-12 | T93: =S93/(1+$D$3)^(A93-1) -> -1.20058825e-71 | V93: 0 | W93: =1+W92 -> 66 | X93: 0 | Y93: =+X93 -> 0 | Z93: =X93*$Z$24 -> 0 | AA93: 0 | AB93: 0 | AC93: 0 | AD93: 0 | AE93: -5.514985321e-12 | AF93: 0 | AG93: 5.514985321e-12 | AH93: =AF93-AE93 -> 5.514985321e-12 | AI93: =IF(A93=1,AF93-T89,AF93) -> 0 | AL93: =(+J93+L93+M93+N93+O93-(($D$1+(1-$D$1)*$D$2)*(G93+L93+N93+O93)))/$T$16 -> -5.444436874e-12 | AN93: =C93-J92+AN92 -> -4.774847184e-11
A94: 2089 | B94: 0 | C94: 0 | D94: -5.530864655e-11 | E94: 914277.3654 | F94: 0 | G94: 0 | H94: 0 | I94: -5.530864655e-11 | J94: 0 | K94: -5.530864655e-11 | L94: -1.43802481e-12 | M94: -2.627160711e-12 | N94: 0 | O94: -7.162270776e-13 | P94: 0 | Q94: -5.396693022e-14 | R94: -6.796057918e-13 | S94: -5.514985321e-12 | T94: -1.1241042e-71 | V94: 0 | W94: 67 | X94: 0 | Y94: 0 | Z94: 0 | AA94: 0 | AB94: 0 | AC94: 0 | AD94: 0 | AE94: -5.514985321e-12 | AF94: 0 | AG94: 5.514985321e-12 | AH94: 5.514985321e-12 | AI94: 0 | AL94: -5.444436874e-12 | AN94: -4.774847184e-11
A95: 2090 | B95: 0 | C95: 0 | D95: -5.530864655e-11 | E95: 914277.3654 | F95: 0 | G95: 0 | H95: 0 | I95: -5.530864655e-11 | J95: 0 | K95: -5.530864655e-11 | L95: -1.43802481e-12 | M95: -2.627160711e-12 | N95: 0 | O95: -7.162270776e-13 | P95: 0 | Q95: -5.396693022e-14 | R95: -6.796057918e-13 | S95: -5.514985321e-12 | T95: -1.052492603e-71 | V95: 0 | W95: 68 | X95: 0 | Y95: 0 | Z95: 0 | AA95: 0 | AB95: 0 | AC95: 0 | AD95: 0 | AE95: -5.514985321e-12 | AF95: 0 | AG95: 5.514985321e-12 | AH95: 5.514985321e-12 | AI95: 0 | AL95: -5.444436874e-12 | AN95: -4.774847184e-11
A96: 2091 | B96: 0 | C96: 0 | D96: -5.530864655e-11 | E96: 914277.3654 | F96: 0 | G96: 0 | H96: 0 | I96: -5.530864655e-11 | J96: 0 | K96: -5.530864655e-11 | L96: -1.43802481e-12 | M96: -2.627160711e-12 | N96: 0 | O96: -7.162270776e-13 | P96: 0 | Q96: -5.396693022e-14 | R96: -6.796057918e-13 | S96: -5.514985321e-12 | T96: -9.854430575e-72 | V96: 0 | W96: 69 | X96: 0 | Y96: 0 | Z96: 0 | AA96: 0 | AB96: 0 | AC96: 0 | AD96: 0 | AE96: -5.514985321e-12 | AF96: 0 | AG96: 5.514985321e-12 | AH96: 5.514985321e-12 | AI96: 0 | AL96: -5.444436874e-12 | AN96: -4.774847184e-11
A97: 2092 | B97: 0 | C97: 0 | D97: -5.530864655e-11 | E97: 914277.3654 | F97: 0 | G97: 0 | H97: 0 | I97: -5.530864655e-11 | J97: 0 | K97: -5.530864655e-11 | L97: -1.43802481e-12 | M97: -2.627160711e-12 | N97: 0 | O97: -7.162270776e-13 | P97: 0 | Q97: -5.396693022e-14 | R97: -6.796057918e-13 | S97: -5.514985321e-12 | T97: -9.226649353e-72 | V97: 0 | W97: 70 | X97: 0 | Y97: 0 | Z97: 0 | AA97: 0 | AB97: 0 | AC97: 0 | AD97: 0 | AE97: -5.514985321e-12 | AF97: 0 | AG97: 5.514985321e-12 | AH97: 5.514985321e-12 | AI97: 0 | AL97: -5.444436874e-12 | AN97: -4.774847184e-11
A98: 2093 | B98: 0 | C98: 0 | D98: -5.530864655e-11 | E98: 914277.3654 | F98: 0 | G98: 0 | H98: 0 | I98: -5.530864655e-11 | J98: 0 | K98: -5.530864655e-11 | L98: -1.43802481e-12 | M98: -2.627160711e-12 | N98: 0 | O98: -7.162270776e-13 | P98: 0 | Q98: -5.396693022e-14 | R98: -6.796057918e-13 | S98: -5.514985321e-12 | T98: -8.638861234e-72 | V98: 0 | W98: 71 | X98: 0 | Y98: 0 | Z98: 0 | AA98: 0 | AB98: 0 | AC98: 0 | AD98: 0 | AE98: -5.514985321e-12 | AF98: 0 | AG98: 5.514985321e-12 | AH98: 5.514985321e-12 | AI98: 0 | AL98: -5.444436874e-12 | AN98: -4.774847184e-11
A99: 2094 | B99: 0 | C99: 0 | D99: -5.530864655e-11 | E99: 914277.3654 | F99: 0 | G99: 0 | H99: 0 | I99: -5.530864655e-11 | J99: 0 | K99: -5.530864655e-11 | L99: -1.43802481e-12 | M99: -2.627160711e-12 | N99: 0 | O99: -7.162270776e-13 | P99: 0 | Q99: -5.396693022e-14 | R99: -6.796057918e-13 | S99: -5.514985321e-12 | T99: -8.08851844e-72 | V99: 0 | W99: 72 | X99: 0 | Y99: 0 | Z99: 0 | AA99: 0 | AB99: 0 | AC99: 0 | AD99: 0 | AE99: -5.514985321e-12 | AF99: 0 | AG99: 5.514985321e-12 | AH99: 5.514985321e-12 | AI99: 0 | AL99: -5.444436874e-12 | AN99: -4.774847184e-11
A100: 2095 | B100: 0 | C100: 0 | D100: -5.530864655e-11 | E100: 914277.3654 | F100: 0 | G100: 0 | H100: 0 | I100: -5.530864655e-11 | J100: 0 | K100: -5.530864655e-11 | L100: -1.43802481e-12 | M100: -2.627160711e-12 | N100: 0 | O100: -7.162270776e-13 | P100: 0 | Q100: -5.396693022e-14 | R100: -6.796057918e-13 | S100: -5.514985321e-12 | T100: -7.573235496e-72 | V100: 0 | W100: 73 | X100: 0 | Y100: 0 | Z100: 0 | AA100: 0 | AB100: 0 | AC100: 0 | AD100: 0 | AE100: -5.514985321e-12 | AF100: 0 | AG100: 5.514985321e-12 | AH100: 5.514985321e-12 | AI100: 0 | AL100: -5.444436874e-12 | AN100: -4.774847184e-11
A101: 2096 | B101: 0 | C101: 0 | D101: -5.530864655e-11 | E101: 914277.3654 | F101: 0 | G101: 0 | H101: 0 | I101: -5.530864655e-11 | J101: 0 | K101: -5.530864655e-11 | L101: -1.43802481e-12 | M101: -2.627160711e-12 | N101: 0 | O101: -7.162270776e-13 | P101: 0 | Q101: -5.396693022e-14 | R101: -6.796057918e-13 | S101: -5.514985321e-12 | T101: -7.0907789e-72 | V101: 0 | W101: 74 | X101: 0 | Y101: 0 | Z101: 0 | AA101: 0 | AB101: 0 | AC101: 0 | AD101: 0 | AE101: -5.514985321e-12 | AF101: 0 | AG101: 5.514985321e-12 | AH101: 5.514985321e-12 | AI101: 0 | AL101: -5.444436874e-12 | AN101: -4.774847184e-11
A102: 2097 | B102: 0 | C102: 0 | D102: -5.530864655e-11 | E102: 914277.3654 | F102: 0 | G102: 0 | H102: 0 | I102: -5.530864655e-11 | J102: 0 | K102: -5.530864655e-11 | L102: -1.43802481e-12 | M102: -2.627160711e-12 | N102: 0 | O102: -7.162270776e-13 | P102: 0 | Q102: -5.396693022e-14 | R102: -6.796057918e-13 | S102: -5.514985321e-12 | T102: -6.639057432e-72 | V102: 0 | W102: 75 | X102: 0 | Y102: 0 | Z102: 0 | AA102: 0 | AB102: 0 | AC102: 0 | AD102: 0 | AE102: -5.514985321e-12 | AF102: 0 | AG102: 5.514985321e-12 | AH102: 5.514985321e-12 | AI102: 0 | AL102: -5.444436874e-12 | AN102: -4.774847184e-11
A103: 2098 | B103: 0 | C103: 0 | D103: -5.530864655e-11 | E103: 914277.3654 | F103: 0 | G103: 0 | H103: 0 | I103: -5.530864655e-11 | J103: 0 | K103: -5.530864655e-11 | L103: -1.43802481e-12 | M103: -2.627160711e-12 | N103: 0 | O103: -7.162270776e-13 | P103: 0 | Q103: -5.396693022e-14 | R103: -6.796057918e-13 | S103: -5.514985321e-12 | T103: -6.216113097e-72 | V103: 0 | W103: 76 | X103: 0 | Y103: 0 | Z103: 0 | AA103: 0 | AB103: 0 | AC103: 0 | AD103: 0 | AE103: -5.514985321e-12 | AF103: 0 | AG103: 5.514985321e-12 | AH103: 5.514985321e-12 | AI103: 0 | AL103: -5.444436874e-12 | AN103: -4.774847184e-11
A104: = | B104: = | C104: = | D104: = | E104: = | F104: = | G104: = | H104: = | I104: = | J104: = | K104: = | L104: = | M104: = | N104: = | O104: = | P104: = | Q104: = | R104: = | S104: = | T104: =
A106: (a) Time Period in Years
A107: (b) Capital Additions Tax Basis
A108: (c) Capital Additions Book Basis
A109: (d) Rate Base Beginning of Period = Previous(i) + Previous(c)
A110: (e) Accumulated Depreciation = Previous(e) + (j)
A111: (f) Tax Depreciation = Modified ACRS Schedules Times The Tax Basis
A112: (g) Book Depreciation on Tax Basis = Straight Line Depreciation of Tax Basis
A113: (h) Deferred Taxes = [(f)-(g)] * Federal Income Tax Rate
A114: (i) Rate Base End of Period = (d) - (j) - (h)
A115: (j) Book Depreciation = Straight Line Per Book Life
A116: (k) Average Rate Base = [(d) + (i)] / 2
A117: (l) Interest Expense = Weighted Cost of Debt * (k)
A118: (m) Equity Return = [Weighted Cost of Preferred + Weighted Cost of Common] * (k)
A119: (n) Operating and Maintenance Expense = Previous(n) * [1 + O&M Escalation Factor]
A120: (o) Property Taxes = Property Tax Rate * (d)
A121: (p) Miscellaneous Revenue Items = Revenue Requirements * Miscellaneous Revenue Items Percentage
A122: (q) State Income Tax = [Revenue Requirement - [(g) + (l) + (m) + (n) + (o) + (p)] * State Income Tax Rate
A123: (r) Federal Income Taxes = [Revenue Requirements - [(g) + (l) + (n) + (o) + Miscellaneous Revenue Items + State Tax] * Federal Income Tax Rate
A124: (s) Total Revenue Requirements = (j) + (l) + (m) + (n) + (o) + (p) + (q) + (r)
A125: (t) Present Value Revenue Requirements = Total Revenue Requirements / [1 + Discount Factor] ^ [(a) - .5]
A127: Revenue Requirements = [(j) + (l) + (m) + (n) + (o) - Federal Income Tax Rate * [(g) + (l) + (n) + (o)]] / Conversion Factor
A130: TAX DEPRECIATION
A132: Class => | B132: =$D$4 -> 4
C133: 1 | D133: 2 | E133: 3 | F133: 4 | G133: 5 | H133: 6 | I133: 7 | J133: 8 | K133: 9 | L133: 10 | M133: 11 | N133: 12 | O133: 13 | P133: 14 | Q133: 15 | R133: 16 | S133: 17 | T133: 18 | U133: 19 | V133: 20 | W133: 21 | X133: 22 | Y133: 23 | Z133: 24 | AA133: 25 | AB133: 26 | AC133: 27 | AD133: 28 | AE133: 29 | AF133: 30 | AG133: 31 | AH133: 32 | AI133: 33 | AJ133: 34 | AK133: 35 | AL133: 36 | AM133: 37 | AN133: 38 | AO133: 39 | AP133: 40 | AQ133: 41 | AR133: 42 | AS133: 43 | AT133: 44 | AU133: 45 | AV133: 46 | AW133: 47 | AX133: 48 | AY133: 49 | AZ133: 50 | BA133: 51 | BB133: 52 | BC133: 53 | BD133: 54 | BE133: 55 | BF133: 56 | BG133: 57 | BH133: 58 | BI133: 59 | BJ133: 60 | BK133: 61 | BL133: 62 | BM133: 63 | BN133: 64 | BO133: 65 | BP133: 66 | BQ133: 67 | BR133: 68 | BS133: 69 | BT133: 70 | BU133: 71 | BV133: 72 | BW133: 73 | BX133: 74 | BY133: 75 | BZ133: 76 | CA133: Total
C134: - | D134: - | E134: - | F134: - | G134: - | H134: - | I134: - | J134: - | K134: - | L134: - | M134: - | N134: - | O134: - | P134: - | Q134: - | R134: - | S134: - | T134: - | U134: - | V134: - | W134: - | X134: - | Y134: - | Z134: - | AA134: - | AB134: - | AC134: - | AD134: - | AE134: - | AF134: - | AG134: - | AH134: - | AI134: - | AJ134: - | AK134: - | AL134: - | AM134: - | AN134: - | AO134: - | AP134: - | AQ134: - | AR134: - | AS134: - | AT134: - | AU134: - | AV134: - | AW134: - | AX134: - | AY134: - | AZ134: - | BA134: - | BB134: - | BC134: - | BD134: - | BE134: - | BF134: - | BG134: - | BH134: - | BI134: - | BJ134: - | BK134: - | BL134: - | BM134: - | BN134: - | BO134: - | BP134: - | BQ134: - | BR134: - | BS134: - | BT134: - | BU134: - | BV134: - | BW134: - | BX134: - | BY134: - | BZ134: - | CA134: -
A135: Rate | B135: Capital | C135: =$B28 -> 0 | D135: =$B29 -> 57626.77908 | E135: =$B30 -> 117678.8428 | F135: =$B31 -> 242513.4205 | G135: =$B32 -> 133614.3263 | H135: =$B33 -> 76684.84408 | I135: =$B34 -> 14058.63473 | J135: =$B35 -> 14584.40364 | K135: =$B36 -> 13296.3559 | L135: =$B37 -> 13764.26887 | M135: =$B38 -> 14249.60837 | N135: =$B39 -> 14753.05491 | O135: =$B40 -> 15275.31577 | P135: =$B41 -> 15817.11361 | Q135: =$B42 -> 16379.2072 | R135: =$B43 -> 16962.40217 | S135: =$B44 -> 17567.49206 | T135: =$B45 -> 18195.35881 | U135: =$B46 -> 18846.88784 | V135: =$B47 -> 19522.98937 | W135: =$B48 -> 20224.63277 | X135: =$B49 -> 20952.83086 | Y135: =$B50 -> 21708.59574 | Z135: =$B51 -> 0 | AA135: =$B52 -> 0 | AB135: =$B53 -> 0 | AC135: =$B54 -> 0 | AD135: =$B55 -> 0 | AE135: =$B56 -> 0 | AF135: =$B57 -> 0 | AG135: =$B58 -> 0 | AH135: =$B59 -> 0 | AI135: =$B60 -> 0 | AJ135: =$B61 -> 0 | AK135: =$B62 -> 0 | AL135: =$B63 -> 0 | AM135: =$B64 -> 0 | AN135: =$B65 -> 0 | AO135: =$B66 -> 0 | AP135: =$B67 -> 0 | AQ135: =$B68 -> 0 | AR135: =$B69 -> 0 | AS135: =$B70 -> 0 | AT135: =$B71 -> 0 | AU135: =$B72 -> 0 | AV135: =$B73 -> 0 | AW135: =$B74 -> 0 | AX135: =$B75 -> 0 | AY135: =$B76 -> 0 | AZ135: =$B77 -> 0 | BA135: =$B78 -> 0 | BB135: =$B79 -> 0 | BC135: =$B80 -> 0 | BD135: =$B81 -> 0 | BE135: =$B82 -> 0 | BF135: =$B83 -> 0 | BG135: =$B84 -> 0 | BH135: =$B85 -> 0 | BI135: =$B86 -> 0 | BJ135: =$B87 -> 0 | BK135: =$B88 -> 0 | BL135: =$B89 -> 0 | BM135: =$B90 -> 0 | BN135: =$B91 -> 0 | BO135: =$B92 -> 0 | BP135: =$B93 -> 0 | BQ135: =$B94 -> 0 | BR135: =$B95 -> 0 | BS135: =$B96 -> 0 | BT135: =$B97 -> 0 | BU135: =$B98 -> 0 | BV135: =$B99 -> 0 | BW135: =$B100 -> 0 | BX135: =$B101 -> 0 | BY135: =$B102 -> 0 | BZ135: =$B103 -> 0 | CA135: =SUM($C135:$BZ135) -> 914277.3654 | CC135: 31.5 Year | CD135: 20 Years | CE135: 7 Years | CF135: 5 Years
C136: - | D136: - | E136: - | F136: - | G136: - | H136: - | I136: - | J136: - | K136: - | L136: - | M136: - | N136: - | O136: - | P136: - | Q136: - | R136: - | S136: - | T136: - | U136: - | V136: - | W136: - | X136: - | Y136: - | Z136: - | AA136: - | AB136: - | AC136: - | AD136: - | AE136: - | AF136: - | AG136: - | AH136: - | AI136: - | AJ136: - | AK136: - | AL136: - | AM136: - | AN136: - | AO136: - | AP136: - | AQ136: - | AR136: - | AS136: - | AT136: - | AU136: - | AV136: - | AW136: - | AX136: - | AY136: - | AZ136: - | BA136: - | BB136: - | BC136: - | BD136: - | BE136: - | BF136: - | BG136: - | BH136: - | BI136: - | BJ136: - | BK136: - | BL136: - | BM136: - | BN136: - | BO136: - | BP136: - | BQ136: - | BR136: - | BS136: - | BT136: - | BU136: - | BV136: - | BW136: - | BX136: - | BY136: - | BZ136: - | CA136: -
A137: =IF($B$132=1,CC137,IF($B$132=2,CD137,IF($B$132=3,CE137,IF($B$132=4,CF137,#VALUE!)))) -> 0.2 | B137: =+B136+1 -> 1 | C137: =C$135*$A137 -> 0 | CA137: =SUM($C137:$BZ137) -> 0 | CC137: 0.01587 | CD137: 0.0375 | CE137: 0.14286 | CF137: 0.2
A138: =IF($B$132=1,CC138,IF($B$132=2,CD138,IF($B$132=3,CE138,IF($B$132=4,CF138,#VALUE!)))) -> 0.32 | B138: =+B137+1 -> 2 | C138: =C$135*$A138 -> 0 | D138: =D$135*$A137 -> 11525.35582 | CA138: 11525.35582 | CC138: 0.03175 | CD138: 0.07219 | CE138: 0.2449 | CF138: 0.32
A139: 0.192 | B139: 3 | C139: 0 | D139: =D$135*$A138 -> 18440.56931 | E139: =E$135*$A137 -> 23535.76856 | CA139: 41976.33787 | CC139: 0.03175 | CD139: 0.06678 | CE139: 0.17493 | CF139: 0.192
A140: 0.1152 | B140: 4 | C140: 0 | D140: 11064.34158 | E140: =E$135*$A138 -> 37657.2297 | F140: =F$135*$A137 -> 48502.6841 | CA140: 97224.25539 | CC140: 0.03175 | CD140: 0.06178 | CE140: 0.12495 | CF140: 0.1152
A141: 0.1152 | B141: 5 | C141: 0 | D141: 6638.60495 | E141: 22594.33782 | F141: =F$135*$A138 -> 77604.29456 | G141: =G$135*$A137 -> 26722.86525 | CA141: 133560.1026 | CC141: 0.03175 | CD141: 0.05715 | CE141: 0.08925 | CF141: 0.1152
A142: 0.0576 | B142: 6 | C142: 0 | D142: 6638.60495 | E142: 13556.60269 | F142: 46562.57674 | G142: =G$135*$A138 -> 42756.5844 | H142: =H$135*$A137 -> 15336.96882 | CA142: 124851.3376 | CC142: 0.03175 | CD142: 0.05286 | CE142: 0.08925 | CF142: 0.0576
A143: 0 | B143: 7 | C143: 0 | D143: 3319.302475 | E143: 13556.60269 | F143: 27937.54604 | G143: 25653.95064 | H143: =H$135*$A138 -> 24539.15011 | I143: =I$135*$A137 -> 2811.726946 | CA143: 97818.27891 | CC143: 0.03175 | CD143: 0.0489 | CE143: 0.08925 | CF143: 0
A144: 0 | B144: 8 | C144: 0 | D144: 0 | E144: 6778.301346 | F144: 27937.54604 | G144: 15392.37039 | H144: 14723.49006 | I144: =I$135*$A138 -> 4498.763114 | J144: =J$135*$A137 -> 2916.880728 | CA144: 72247.35168 | CC144: 0.03175 | CD144: 0.04523 | CE144: 0.04461 | CF144: 0
A145: 0 | B145: 9 | C145: 0 | D145: 0 | E145: 0 | F145: 13968.77302 | G145: 15392.37039 | H145: 8834.094038 | I145: 2699.257868 | J145: =J$135*$A138 -> 4667.009165 | K145: =K$135*$A137 -> 2659.27118 | CA145: 48220.77566 | CC145: 0.03175 | CD145: 0.04461 | CE145: 0 | CF145: 0
A146: 0 | B146: 10 | C146: 0 | D146: 0 | E146: 0 | F146: 0 | G146: 7696.185193 | H146: 8834.094038 | I146: 1619.554721 | J146: 2800.205499 | K146: =K$135*$A138 -> 4254.833888 | L146: =L$135*$A137 -> 2752.853774 | CA146: 27957.72711 | CC146: 0.03175 | CD146: 0.04461 | CE146: 0 | CF146: 0
A147: 0 | B147: 11 | C147: 0 | D147: 0 | E147: 0 | F147: 0 | G147: 0 | H147: 4417.047019 | I147: 1619.554721 | J147: 1680.123299 | K147: 2552.900333 | L147: =L$135*$A138 -> 4404.566038 | M147: =M$135*$A137 -> 2849.921673 | CA147: 17524.11308 | CC147: 0.03175 | CD147: 0.04461 | CE147: 0 | CF147: 0
A148: 0 | B148: 12 | C148: 0 | D148: 0 | E148: 0 | F148: 0 | G148: 0 | H148: 0 | I148: 809.7773605 | J148: 1680.123299 | K148: 1531.7402 | L148: 2642.739623 | M148: =M$135*$A138 -> 4559.874677 | N148: =N$135*$A137 -> 2950.610982 | CA148: 14174.86614 | CC148: 0.03175 | CD148: 0.04461 | CE148: 0 | CF148: 0
A149: 0 | B149: 13 | C149: 0 | D149: 0 | E149: 0 | F149: 0 | G149: 0 | H149: 0 | I149: 0 | J149: 840.0616496 | K149: 1531.7402 | L149: 1585.643774 | M149: 2735.924806 | N149: =N$135*$A138 -> 4720.977571 | O149: =O$135*$A137 -> 3055.063154 | CA149: 14469.41115 | CC149: 0.03175 | CD149: 0.04461 | CE149: 0 | CF149: 0
A150: 0 | B150: 14 | C150: 0 | D150: 0 | E150: 0 | F150: 0 | G150: 0 | H150: 0 | I150: 0 | J150: 0 | K150: 765.8700998 | L150: 1585.643774 | M150: 1641.554884 | N150: 2832.586543 | O150: =O$135*$A138 -> 4888.101047 | P150: =P$135*$A137 -> 3163.422722 | CA150: 14877.17907 | CC150: 0.03175 | CD150: 0.04461 | CE150: 0 | CF150: 0
A151: 0 | B151: 15 | C151: 0 | D151: 0 | E151: 0 | F151: 0 | G151: 0 | H151: 0 | I151: 0 | J151: 0 | K151: 0 | L151: 792.8218868 | M151: 1641.554884 | N151: 1699.551926 | O151: 2932.860628 | P151: =P$135*$A138 -> 5061.476355 | Q151: =Q$135*$A137 -> 3275.84144 | CA151: 15404.10712 | CC151: 0.03175 | CD151: 0.04461 | CE151: 0 | CF151: 0
A152: 0 | B152: 16 | C152: 0 | D152: 0 | E152: 0 | F152: 0 | G152: 0 | H152: 0 | I152: 0 | J152: 0 | K152: 0 | L152: 0 | M152: 820.7774419 | N152: 1699.551926 | O152: 1759.716377 | P152: 3036.885813 | Q152: =Q$135*$A138 -> 5241.346304 | R152: =R$135*$A137 -> 3392.480434 | CA152: 15950.75829 | CC152: 0.03175 | CD152: 0.04461 | CE152: 0 | CF152: 0
A153: 0 | B153: 17 | C153: 0 | D153: 0 | E153: 0 | F153: 0 | G153: 0 | H153: 0 | I153: 0 | J153: 0 | K153: 0 | L153: 0 | M153: 0 | N153: 849.7759628 | O153: 1759.716377 | P153: 1822.131488 | Q153: 3144.807782 | R153: =R$135*$A138 -> 5427.968694 | S153: =S$135*$A137 -> 3513.498411 | CA153: 16517.89871 | CC153: 0.03175 | CD153: 0.04461 | CE153: 0 | CF153: 0
A154: 0 | B154: 18 | C154: 0 | D154: 0 | E154: 0 | F154: 0 | G154: 0 | H154: 0 | I154: 0 | J154: 0 | K154: 0 | L154: 0 | M154: 0 | N154: 0 | O154: 879.8581884 | P154: 1822.131488 | Q154: 1886.884669 | R154: 3256.781216 | S154: =S$135*$A138 -> 5621.597458 | T154: =T$135*$A137 -> 3639.071762 | CA154: 17106.32478 | CC154: 0.03175 | CD154: 0.04461 | CE154: 0 | CF154: 0
A155: 0 | B155: 19 | C155: 0 | D155: 0 | E155: 0 | F155: 0 | G155: 0 | H155: 0 | I155: 0 | J155: 0 | K155: 0 | L155: 0 | M155: 0 | N155: 0 | O155: 0 | P155: 911.0657439 | Q155: 1886.884669 | R155: 1954.06873 | S155: 3372.958475 | T155: =T$135*$A138 -> 5822.514819 | U155: =U$135*$A137 -> 3769.377568 | CA155: 17716.87001 | CC155: 0.03175 | CD155: 0.04461 | CE155: 0 | CF155: 0
A156: 0 | B156: 20 | C156: 0 | D156: 0 | E156: 0 | F156: 0 | G156: 0 | H156: 0 | I156: 0 | J156: 0 | K156: 0 | L156: 0 | M156: 0 | N156: 0 | O156: 0 | P156: 0 | Q156: 943.4423347 | R156: 1954.06873 | S156: 2023.775085 | T156: 3493.508892 | U156: =U$135*$A138 -> 6031.00411 | V156: =V$135*$A137 -> 3904.597873 | CA156: 18350.39702 | CC156: 0.03175 | CD156: 0.04461 | CE156: 0 | CF156: 0
A157: 0 | B157: 21 | C157: 0 | D157: 0 | E157: 0 | F157: 0 | G157: 0 | H157: 0 | I157: 0 | J157: 0 | K157: 0 | L157: 0 | M157: 0 | N157: 0 | O157: 0 | P157: 0 | Q157: 0 | R157: 977.0343649 | S157: 2023.775085 | T157: 2096.105335 | U157: 3618.602466 | V157: =V$135*$A138 -> 6247.356598 | W157: =W$135*$A137 -> 4044.926554 | CA157: 19007.8004 | CC157: 0.03175 | CD157: 0.02229 | CE157: 0 | CF157: 0
A158: 0 | B158: 22 | C158: 0 | D158: 0 | E158: 0 | F158: 0 | G158: 0 | H158: 0 | I158: 0 | J158: 0 | K158: 0 | L158: 0 | M158: 0 | N158: 0 | O158: 0 | P158: 0 | Q158: 0 | R158: 0 | S158: 1011.887542 | T158: 2096.105335 | U158: 2171.161479 | V158: 3748.413959 | W158: =W$135*$A138 -> 6471.882487 | X158: =X$135*$A137 -> 4190.566171 | CA158: 19690.01697 | CC158: 0.03175 | CD158: 0 | CE158: 0 | CF158: 0
A159: 0 | B159: 23 | C159: 0 | D159: 0 | E159: 0 | F159: 0 | G159: 0 | H159: 0 | I159: 0 | J159: 0 | K159: 0 | L159: 0 | M159: 0 | N159: 0 | O159: 0 | P159: 0 | Q159: 0 | R159: 0 | S159: 0 | T159: 1048.052667 | U159: 2171.161479 | V159: 2249.048375 | W159: 3883.129492 | X159: =X$135*$A138 -> 6704.905874 | Y159: =Y$135*$A137 -> 4341.719149 | CA159: 20398.01704 | CC159: 0.03175 | CD159: 0 | CE159: 0 | CF159: 0
A160: 0 | B160: 24 | C160: 0 | D160: 0 | E160: 0 | F160: 0 | G160: 0 | H160: 0 | I160: 0 | J160: 0 | K160: 0 | L160: 0 | M160: 0 | N160: 0 | O160: 0 | P160: 0 | Q160: 0 | R160: 0 | S160: 0 | T160: 0 | U160: 1085.58074 | V160: 2249.048375 | W160: 2329.877695 | X160: 4022.943524 | Y160: =Y$135*$A138 -> 6946.750638 | Z160: =Z$135*$A137 -> 0 | CA160: 16634.20097 | CC160: 0.03175 | CD160: 0 | CE160: 0 | CF160: 0
A161: 0 | B161: 25 | C161: 0 | D161: 0 | E161: 0 | F161: 0 | G161: 0 | H161: 0 | I161: 0 | J161: 0 | K161: 0 | L161: 0 | M161: 0 | N161: 0 | O161: 0 | P161: 0 | Q161: 0 | R161: 0 | S161: 0 | T161: 0 | U161: 0 | V161: 1124.524188 | W161: 2329.877695 | X161: 2413.766115 | Y161: 4168.050383 | Z161: =Z$135*$A138 -> 0 | AA161: =AA$135*$A137 -> 0 | CA161: 10036.21838 | CC161: 0.03175 | CD161: 0 | CE161: 0 | CF161: 0
A162: 0 | B162: 26 | C162: 0 | D162: 0 | E162: 0 | F162: 0 | G162: 0 | H162: 0 | I162: 0 | J162: 0 | K162: 0 | L162: 0 | M162: 0 | N162: 0 | O162: 0 | P162: 0 | Q162: 0 | R162: 0 | S162: 0 | T162: 0 | U162: 0 | V162: 0 | W162: 1164.938848 | X162: 2413.766115 | Y162: 2500.83023 | Z162: 0 | AA162: =AA$135*$A138 -> 0 | AB162: =AB$135*$A137 -> 0 | CA162: 6079.535192 | CC162: 0.03175 | CD162: 0 | CE162: 0 | CF162: 0
A163: 0 | B163: 27 | C163: 0 | D163: 0 | E163: 0 | F163: 0 | G163: 0 | H163: 0 | I163: 0 | J163: 0 | K163: 0 | L163: 0 | M163: 0 | N163: 0 | O163: 0 | P163: 0 | Q163: 0 | R163: 0 | S163: 0 | T163: 0 | U163: 0 | V163: 0 | W163: 0 | X163: 1206.883057 | Y163: 2500.83023 | Z163: 0 | AA163: 0 | AB163: =AB$135*$A138 -> 0 | AC163: =AC$135*$A137 -> 0 | CA163: 3707.713287 | CC163: 0.03175 | CD163: 0 | CE163: 0 | CF163: 0
A164: 0 | B164: 28 | C164: 0 | D164: 0 | E164: 0 | F164: 0 | G164: 0 | H164: 0 | I164: 0 | J164: 0 | K164: 0 | L164: 0 | M164: 0 | N164: 0 | O164: 0 | P164: 0 | Q164: 0 | R164: 0 | S164: 0 | T164: 0 | U164: 0 | V164: 0 | W164: 0 | X164: 0 | Y164: 1250.415115 | Z164: 0 | AA164: 0 | AB164: 0 | AC164: =AC$135*$A138 -> 0 | AD164: =AD$135*$A137 -> 0 | CA164: 1250.415115 | CC164: 0.03175 | CD164: 0 | CE164: 0 | CF164: 0
A165: 0 | B165: 29 | C165: 0 | D165: 0 | E165: 0 | F165: 0 | G165: 0 | H165: 0 | I165: 0 | J165: 0 | K165: 0 | L165: 0 | M165: 0 | N165: 0 | O165: 0 | P165: 0 | Q165: 0 | R165: 0 | S165: 0 | T165: 0 | U165: 0 | V165: 0 | W165: 0 | X165: 0 | Y165: 0 | Z165: 0 | AA165: 0 | AB165: 0 | AC165: 0 | AD165: =AD$135*$A138 -> 0 | AE165: =AE$135*$A137 -> 0 | CA165: 0 | CC165: 0.03175 | CD165: 0 | CE165: 0 | CF165: 0
A166: 0 | B166: 30 | C166: 0 | D166: 0 | E166: 0 | F166: 0 | G166: 0 | H166: 0 | I166: 0 | J166: 0 | K166: 0 | L166: 0 | M166: 0 | N166: 0 | O166: 0 | P166: 0 | Q166: 0 | R166: 0 | S166: 0 | T166: 0 | U166: 0 | V166: 0 | W166: 0 | X166: 0 | Y166: 0 | Z166: 0 | AA166: 0 | AB166: 0 | AC166: 0 | AD166: 0 | AE166: =AE$135*$A138 -> 0 | AF166: =AF$135*$A137 -> 0 | CA166: 0 | CC166: 0.03175 | CD166: 0 | CE166: 0 | CF166: 0
A167: 0 | B167: 31 | C167: 0 | D167: 0 | E167: 0 | F167: 0 | G167: 0 | H167: 0 | I167: 0 | J167: 0 | K167: 0 | L167: 0 | M167: 0 | N167: 0 | O167: 0 | P167: 0 | Q167: 0 | R167: 0 | S167: 0 | T167: 0 | U167: 0 | V167: 0 | W167: 0 | X167: 0 | Y167: 0 | Z167: 0 | AA167: 0 | AB167: 0 | AC167: 0 | AD167: 0 | AE167: 0 | AF167: =AF$135*$A138 -> 0 | AG167: =AG$135*$A137 -> 0 | CA167: 0 | CC167: 0.03175 | CD167: 0 | CE167: 0 | CF167: 0
A168: 0 | B168: 32 | C168: 0 | D168: 0 | E168: 0 | F168: 0 | G168: 0 | H168: 0 | I168: 0 | J168: 0 | K168: 0 | L168: 0 | M168: 0 | N168: 0 | O168: 0 | P168: 0 | Q168: 0 | R168: 0 | S168: 0 | T168: 0 | U168: 0 | V168: 0 | W168: 0 | X168: 0 | Y168: 0 | Z168: 0 | AA168: 0 | AB168: 0 | AC168: 0 | AD168: 0 | AE168: 0 | AF168: 0 | AG168: =AG$135*$A138 -> 0 | AH168: =AH$135*$A137 -> 0 | CA168: 0 | CC168: 0.03163 | CD168: 0 | CE168: 0 | CF168: 0
A169: 0 | B169: 33 | C169: 0 | D169: 0 | E169: 0 | F169: 0 | G169: 0 | H169: 0 | I169: 0 | J169: 0 | K169: 0 | L169: 0 | M169: 0 | N169: 0 | O169: 0 | P169: 0 | Q169: 0 | R169: 0 | S169: 0 | T169: 0 | U169: 0 | V169: 0 | W169: 0 | X169: 0 | Y169: 0 | Z169: 0 | AA169: 0 | AB169: 0 | AC169: 0 | AD169: 0 | AE169: 0 | AF169: 0 | AG169: 0 | AH169: =AH$135*$A138 -> 0 | AI169: =AI$135*$A137 -> 0 | CA169: 0
A170: 0 | B170: 34 | C170: 0 | D170: 0 | E170: 0 | F170: 0 | G170: 0 | H170: 0 | I170: 0 | J170: 0 | K170: 0 | L170: 0 | M170: 0 | N170: 0 | O170: 0 | P170: 0 | Q170: 0 | R170: 0 | S170: 0 | T170: 0 | U170: 0 | V170: 0 | W170: 0 | X170: 0 | Y170: 0 | Z170: 0 | AA170: 0 | AB170: 0 | AC170: 0 | AD170: 0 | AE170: 0 | AF170: 0 | AG170: 0 | AH170: 0 | AI170: =AI$135*$A138 -> 0 | AJ170: =AJ$135*$A137 -> 0 | CA170: 0
A171: 0 | B171: 35 | C171: 0 | D171: 0 | E171: 0 | F171: 0 | G171: 0 | H171: 0 | I171: 0 | J171: 0 | K171: 0 | L171: 0 | M171: 0 | N171: 0 | O171: 0 | P171: 0 | Q171: 0 | R171: 0 | S171: 0 | T171: 0 | U171: 0 | V171: 0 | W171: 0 | X171: 0 | Y171: 0 | Z171: 0 | AA171: 0 | AB171: 0 | AC171: 0 | AD171: 0 | AE171: 0 | AF171: 0 | AG171: 0 | AH171: 0 | AI171: 0 | AJ171: =AJ$135*$A138 -> 0 | AK171: =AK$135*$A137 -> 0 | CA171: 0
A172: 0 | B172: 36 | C172: 0 | D172: 0 | E172: 0 | F172: 0 | G172: 0 | H172: 0 | I172: 0 | J172: 0 | K172: 0 | L172: 0 | M172: 0 | N172: 0 | O172: 0 | P172: 0 | Q172: 0 | R172: 0 | S172: 0 | T172: 0 | U172: 0 | V172: 0 | W172: 0 | X172: 0 | Y172: 0 | Z172: 0 | AA172: 0 | AB172: 0 | AC172: 0 | AD172: 0 | AE172: 0 | AF172: 0 | AG172: 0 | AH172: 0 | AI172: 0 | AJ172: 0 | AK172: =AK$135*$A138 -> 0 | AL172: =AL$135*$A137 -> 0 | CA172: 0
A173: 0 | B173: 37 | C173: 0 | D173: 0 | E173: 0 | F173: 0 | G173: 0 | H173: 0 | I173: 0 | J173: 0 | K173: 0 | L173: 0 | M173: 0 | N173: 0 | O173: 0 | P173: 0 | Q173: 0 | R173: 0 | S173: 0 | T173: 0 | U173: 0 | V173: 0 | W173: 0 | X173: 0 | Y173: 0 | Z173: 0 | AA173: 0 | AB173: 0 | AC173: 0 | AD173: 0 | AE173: 0 | AF173: 0 | AG173: 0 | AH173: 0 | AI173: 0 | AJ173: 0 | AK173: 0 | AL173: =AL$135*$A138 -> 0 | AM173: =AM$135*$A137 -> 0 | CA173: 0
A174: 0 | B174: 38 | C174: 0 | D174: 0 | E174: 0 | F174: 0 | G174: 0 | H174: 0 | I174: 0 | J174: 0 | K174: 0 | L174: 0 | M174: 0 | N174: 0 | O174: 0 | P174: 0 | Q174: 0 | R174: 0 | S174: 0 | T174: 0 | U174: 0 | V174: 0 | W174: 0 | X174: 0 | Y174: 0 | Z174: 0 | AA174: 0 | AB174: 0 | AC174: 0 | AD174: 0 | AE174: 0 | AF174: 0 | AG174: 0 | AH174: 0 | AI174: 0 | AJ174: 0 | AK174: 0 | AL174: 0 | AM174: =AM$135*$A138 -> 0 | AN174: =AN$135*$A137 -> 0 | CA174: 0
A175: 0 | B175: 39 | C175: 0 | D175: 0 | E175: 0 | F175: 0 | G175: 0 | H175: 0 | I175: 0 | J175: 0 | K175: 0 | L175: 0 | M175: 0 | N175: 0 | O175: 0 | P175: 0 | Q175: 0 | R175: 0 | S175: 0 | T175: 0 | U175: 0 | V175: 0 | W175: 0 | X175: 0 | Y175: 0 | Z175: 0 | AA175: 0 | AB175: 0 | AC175: 0 | AD175: 0 | AE175: 0 | AF175: 0 | AG175: 0 | AH175: 0 | AI175: 0 | AJ175: 0 | AK175: 0 | AL175: 0 | AM175: 0 | AN175: =AN$135*$A138 -> 0 | AO175: =AO$135*$A137 -> 0 | CA175: 0
A176: 0 | B176: 40 | C176: 0 | D176: 0 | E176: 0 | F176: 0 | G176: 0 | H176: 0 | I176: 0 | J176: 0 | K176: 0 | L176: 0 | M176: 0 | N176: 0 | O176: 0 | P176: 0 | Q176: 0 | R176: 0 | S176: 0 | T176: 0 | U176: 0 | V176: 0 | W176: 0 | X176: 0 | Y176: 0 | Z176: 0 | AA176: 0 | AB176: 0 | AC176: 0 | AD176: 0 | AE176: 0 | AF176: 0 | AG176: 0 | AH176: 0 | AI176: 0 | AJ176: 0 | AK176: 0 | AL176: 0 | AM176: 0 | AN176: 0 | AO176: =AO$135*$A138 -> 0 | AP176: =AP$135*$A137 -> 0 | CA176: 0
A177: 0 | B177: 41 | C177: 0 | D177: 0 | E177: 0 | F177: 0 | G177: 0 | H177: 0 | I177: 0 | J177: 0 | K177: 0 | L177: 0 | M177: 0 | N177: 0 | O177: 0 | P177: 0 | Q177: 0 | R177: 0 | S177: 0 | T177: 0 | U177: 0 | V177: 0 | W177: 0 | X177: 0 | Y177: 0 | Z177: 0 | AA177: 0 | AB177: 0 | AC177: 0 | AD177: 0 | AE177: 0 | AF177: 0 | AG177: 0 | AH177: 0 | AI177: 0 | AJ177: 0 | AK177: 0 | AL177: 0 | AM177: 0 | AN177: 0 | AO177: 0 | AP177: =AP$135*$A138 -> 0 | AQ177: =AQ$135*$A137 -> 0 | CA177: 0
A178: 0 | B178: 42 | C178: 0 | D178: 0 | E178: 0 | F178: 0 | G178: 0 | H178: 0 | I178: 0 | J178: 0 | K178: 0 | L178: 0 | M178: 0 | N178: 0 | O178: 0 | P178: 0 | Q178: 0 | R178: 0 | S178: 0 | T178: 0 | U178: 0 | V178: 0 | W178: 0 | X178: 0 | Y178: 0 | Z178: 0 | AA178: 0 | AB178: 0 | AC178: 0 | AD178: 0 | AE178: 0 | AF178: 0 | AG178: 0 | AH178: 0 | AI178: 0 | AJ178: 0 | AK178: 0 | AL178: 0 | AM178: 0 | AN178: 0 | AO178: 0 | AP178: 0 | AQ178: =AQ$135*$A138 -> 0 | AR178: =AR$135*$A137 -> 0 | CA178: 0
A179: 0 | B179: 43 | C179: 0 | D179: 0 | E179: 0 | F179: 0 | G179: 0 | H179: 0 | I179: 0 | J179: 0 | K179: 0 | L179: 0 | M179: 0 | N179: 0 | O179: 0 | P179: 0 | Q179: 0 | R179: 0 | S179: 0 | T179: 0 | U179: 0 | V179: 0 | W179: 0 | X179: 0 | Y179: 0 | Z179: 0 | AA179: 0 | AB179: 0 | AC179: 0 | AD179: 0 | AE179: 0 | AF179: 0 | AG179: 0 | AH179: 0 | AI179: 0 | AJ179: 0 | AK179: 0 | AL179: 0 | AM179: 0 | AN179: 0 | AO179: 0 | AP179: 0 | AQ179: 0 | AR179: =AR$135*$A138 -> 0 | AS179: =AS$135*$A137 -> 0 | CA179: 0
A180: 0 | B180: 44 | C180: 0 | D180: 0 | E180: 0 | F180: 0 | G180: 0 | H180: 0 | I180: 0 | J180: 0 | K180: 0 | L180: 0 | M180: 0 | N180: 0 | O180: 0 | P180: 0 | Q180: 0 | R180: 0 | S180: 0 | T180: 0 | U180: 0 | V180: 0 | W180: 0 | X180: 0 | Y180: 0 | Z180: 0 | AA180: 0 | AB180: 0 | AC180: 0 | AD180: 0 | AE180: 0 | AF180: 0 | AG180: 0 | AH180: 0 | AI180: 0 | AJ180: 0 | AK180: 0 | AL180: 0 | AM180: 0 | AN180: 0 | AO180: 0 | AP180: 0 | AQ180: 0 | AR180: 0 | AS180: =AS$135*$A138 -> 0 | AT180: =AT$135*$A137 -> 0 | CA180: 0
A181: 0 | B181: 45 | C181: 0 | D181: 0 | E181: 0 | F181: 0 | G181: 0 | H181: 0 | I181: 0 | J181: 0 | K181: 0 | L181: 0 | M181: 0 | N181: 0 | O181: 0 | P181: 0 | Q181: 0 | R181: 0 | S181: 0 | T181: 0 | U181: 0 | V181: 0 | W181: 0 | X181: 0 | Y181: 0 | Z181: 0 | AA181: 0 | AB181: 0 | AC181: 0 | AD181: 0 | AE181: 0 | AF181: 0 | AG181: 0 | AH181: 0 | AI181: 0 | AJ181: 0 | AK181: 0 | AL181: 0 | AM181: 0 | AN181: 0 | AO181: 0 | AP181: 0 | AQ181: 0 | AR181: 0 | AS181: 0 | AT181: =AT$135*$A138 -> 0 | AU181: =AU$135*$A137 -> 0 | CA181: 0
A182: 0 | B182: 46 | C182: 0 | D182: 0 | E182: 0 | F182: 0 | G182: 0 | H182: 0 | I182: 0 | J182: 0 | K182: 0 | L182: 0 | M182: 0 | N182: 0 | O182: 0 | P182: 0 | Q182: 0 | R182: 0 | S182: 0 | T182: 0 | U182: 0 | V182: 0 | W182: 0 | X182: 0 | Y182: 0 | Z182: 0 | AA182: 0 | AB182: 0 | AC182: 0 | AD182: 0 | AE182: 0 | AF182: 0 | AG182: 0 | AH182: 0 | AI182: 0 | AJ182: 0 | AK182: 0 | AL182: 0 | AM182: 0 | AN182: 0 | AO182: 0 | AP182: 0 | AQ182: 0 | AR182: 0 | AS182: 0 | AT182: 0 | AU182: =AU$135*$A138 -> 0 | AV182: =AV$135*$A137 -> 0 | CA182: 0
A183: 0 | B183: 47 | C183: 0 | D183: 0 | E183: 0 | F183: 0 | G183: 0 | H183: 0 | I183: 0 | J183: 0 | K183: 0 | L183: 0 | M183: 0 | N183: 0 | O183: 0 | P183: 0 | Q183: 0 | R183: 0 | S183: 0 | T183: 0 | U183: 0 | V183: 0 | W183: 0 | X183: 0 | Y183: 0 | Z183: 0 | AA183: 0 | AB183: 0 | AC183: 0 | AD183: 0 | AE183: 0 | AF183: 0 | AG183: 0 | AH183: 0 | AI183: 0 | AJ183: 0 | AK183: 0 | AL183: 0 | AM183: 0 | AN183: 0 | AO183: 0 | AP183: 0 | AQ183: 0 | AR183: 0 | AS183: 0 | AT183: 0 | AU183: 0 | AV183: =AV$135*$A138 -> 0 | AW183: =AW$135*$A137 -> 0 | CA183: 0
A184: 0 | B184: 48 | C184: 0 | D184: 0 | E184: 0 | F184: 0 | G184: 0 | H184: 0 | I184: 0 | J184: 0 | K184: 0 | L184: 0 | M184: 0 | N184: 0 | O184: 0 | P184: 0 | Q184: 0 | R184: 0 | S184: 0 | T184: 0 | U184: 0 | V184: 0 | W184: 0 | X184: 0 | Y184: 0 | Z184: 0 | AA184: 0 | AB184: 0 | AC184: 0 | AD184: 0 | AE184: 0 | AF184: 0 | AG184: 0 | AH184: 0 | AI184: 0 | AJ184: 0 | AK184: 0 | AL184: 0 | AM184: 0 | AN184: 0 | AO184: 0 | AP184: 0 | AQ184: 0 | AR184: 0 | AS184: 0 | AT184: 0 | AU184: 0 | AV184: 0 | AW184: =AW$135*$A138 -> 0 | AX184: =AX$135*$A137 -> 0 | CA184: 0
A185: 0 | B185: 49 | C185: 0 | D185: 0 | E185: 0 | F185: 0 | G185: 0 | H185: 0 | I185: 0 | J185: 0 | K185: 0 | L185: 0 | M185: 0 | N185: 0 | O185: 0 | P185: 0 | Q185: 0 | R185: 0 | S185: 0 | T185: 0 | U185: 0 | V185: 0 | W185: 0 | X185: 0 | Y185: 0 | Z185: 0 | AA185: 0 | AB185: 0 | AC185: 0 | AD185: 0 | AE185: 0 | AF185: 0 | AG185: 0 | AH185: 0 | AI185: 0 | AJ185: 0 | AK185: 0 | AL185: 0 | AM185: 0 | AN185: 0 | AO185: 0 | AP185: 0 | AQ185: 0 | AR185: 0 | AS185: 0 | AT185: 0 | AU185: 0 | AV185: 0 | AW185: 0 | AX185: =AX$135*$A138 -> 0 | AY185: =AY$135*$A137 -> 0 | CA185: 0
A186: 0 | B186: 50 | C186: 0 | D186: 0 | E186: 0 | F186: 0 | G186: 0 | H186: 0 | I186: 0 | J186: 0 | K186: 0 | L186: 0 | M186: 0 | N186: 0 | O186: 0 | P186: 0 | Q186: 0 | R186: 0 | S186: 0 | T186: 0 | U186: 0 | V186: 0 | W186: 0 | X186: 0 | Y186: 0 | Z186: 0 | AA186: 0 | AB186: 0 | AC186: 0 | AD186: 0 | AE186: 0 | AF186: 0 | AG186: 0 | AH186: 0 | AI186: 0 | AJ186: 0 | AK186: 0 | AL186: 0 | AM186: 0 | AN186: 0 | AO186: 0 | AP186: 0 | AQ186: 0 | AR186: 0 | AS186: 0 | AT186: 0 | AU186: 0 | AV186: 0 | AW186: 0 | AX186: 0 | AY186: =AY$135*$A138 -> 0 | AZ186: =AZ$135*$A137 -> 0 | CA186: 0
A187: 0 | B187: 51 | C187: 0 | D187: 0 | E187: 0 | F187: 0 | G187: 0 | H187: 0 | I187: 0 | J187: 0 | K187: 0 | L187: 0 | M187: 0 | N187: 0 | O187: 0 | P187: 0 | Q187: 0 | R187: 0 | S187: 0 | T187: 0 | U187: 0 | V187: 0 | W187: 0 | X187: 0 | Y187: 0 | Z187: 0 | AA187: 0 | AB187: 0 | AC187: 0 | AD187: 0 | AE187: 0 | AF187: 0 | AG187: 0 | AH187: 0 | AI187: 0 | AJ187: 0 | AK187: 0 | AL187: 0 | AM187: 0 | AN187: 0 | AO187: 0 | AP187: 0 | AQ187: 0 | AR187: 0 | AS187: 0 | AT187: 0 | AU187: 0 | AV187: 0 | AW187: 0 | AX187: 0 | AY187: 0 | AZ187: =AZ$135*$A138 -> 0 | BA187: =BA$135*$A137 -> 0 | CA187: 0
A188: 0 | B188: 52 | C188: 0 | D188: 0 | E188: 0 | F188: 0 | G188: 0 | H188: 0 | I188: 0 | J188: 0 | K188: 0 | L188: 0 | M188: 0 | N188: 0 | O188: 0 | P188: 0 | Q188: 0 | R188: 0 | S188: 0 | T188: 0 | U188: 0 | V188: 0 | W188: 0 | X188: 0 | Y188: 0 | Z188: 0 | AA188: 0 | AB188: 0 | AC188: 0 | AD188: 0 | AE188: 0 | AF188: 0 | AG188: 0 | AH188: 0 | AI188: 0 | AJ188: 0 | AK188: 0 | AL188: 0 | AM188: 0 | AN188: 0 | AO188: 0 | AP188: 0 | AQ188: 0 | AR188: 0 | AS188: 0 | AT188: 0 | AU188: 0 | AV188: 0 | AW188: 0 | AX188: 0 | AY188: 0 | AZ188: 0 | BA188: =BA$135*$A138 -> 0 | BB188: =BB$135*$A137 -> 0 | CA188: 0
A189: 0 | B189: 53 | C189: 0 | D189: 0 | E189: 0 | F189: 0 | G189: 0 | H189: 0 | I189: 0 | J189: 0 | K189: 0 | L189: 0 | M189: 0 | N189: 0 | O189: 0 | P189: 0 | Q189: 0 | R189: 0 | S189: 0 | T189: 0 | U189: 0 | V189: 0 | W189: 0 | X189: 0 | Y189: 0 | Z189: 0 | AA189: 0 | AB189: 0 | AC189: 0 | AD189: 0 | AE189: 0 | AF189: 0 | AG189: 0 | AH189: 0 | AI189: 0 | AJ189: 0 | AK189: 0 | AL189: 0 | AM189: 0 | AN189: 0 | AO189: 0 | AP189: 0 | AQ189: 0 | AR189: 0 | AS189: 0 | AT189: 0 | AU189: 0 | AV189: 0 | AW189: 0 | AX189: 0 | AY189: 0 | AZ189: 0 | BA189: 0 | BB189: =BB$135*$A138 -> 0 | BC189: =BC$135*$A137 -> 0 | CA189: 0
A190: 0 | B190: 54 | C190: 0 | D190: 0 | E190: 0 | F190: 0 | G190: 0 | H190: 0 | I190: 0 | J190: 0 | K190: 0 | L190: 0 | M190: 0 | N190: 0 | O190: 0 | P190: 0 | Q190: 0 | R190: 0 | S190: 0 | T190: 0 | U190: 0 | V190: 0 | W190: 0 | X190: 0 | Y190: 0 | Z190: 0 | AA190: 0 | AB190: 0 | AC190: 0 | AD190: 0 | AE190: 0 | AF190: 0 | AG190: 0 | AH190: 0 | AI190: 0 | AJ190: 0 | AK190: 0 | AL190: 0 | AM190: 0 | AN190: 0 | AO190: 0 | AP190: 0 | AQ190: 0 | AR190: 0 | AS190: 0 | AT190: 0 | AU190: 0 | AV190: 0 | AW190: 0 | AX190: 0 | AY190: 0 | AZ190: 0 | BA190: 0 | BB190: 0 | BC190: =BC$135*$A138 -> 0 | BD190: =BD$135*$A137 -> 0 | CA190: 0
A191: 0 | B191: 55 | C191: 0 | D191: 0 | E191: 0 | F191: 0 | G191: 0 | H191: 0 | I191: 0 | J191: 0 | K191: 0 | L191: 0 | M191: 0 | N191: 0 | O191: 0 | P191: 0 | Q191: 0 | R191: 0 | S191: 0 | T191: 0 | U191: 0 | V191: 0 | W191: 0 | X191: 0 | Y191: 0 | Z191: 0 | AA191: 0 | AB191: 0 | AC191: 0 | AD191: 0 | AE191: 0 | AF191: 0 | AG191: 0 | AH191: 0 | AI191: 0 | AJ191: 0 | AK191: 0 | AL191: 0 | AM191: 0 | AN191: 0 | AO191: 0 | AP191: 0 | AQ191: 0 | AR191: 0 | AS191: 0 | AT191: 0 | AU191: 0 | AV191: 0 | AW191: 0 | AX191: 0 | AY191: 0 | AZ191: 0 | BA191: 0 | BB191: 0 | BC191: 0 | BD191: =BD$135*$A138 -> 0 | BE191: =BE$135*$A137 -> 0 | CA191: 0
A192: 0 | B192: 56 | C192: 0 | D192: 0 | E192: 0 | F192: 0 | G192: 0 | H192: 0 | I192: 0 | J192: 0 | K192: 0 | L192: 0 | M192: 0 | N192: 0 | O192: 0 | P192: 0 | Q192: 0 | R192: 0 | S192: 0 | T192: 0 | U192: 0 | V192: 0 | W192: 0 | X192: 0 | Y192: 0 | Z192: 0 | AA192: 0 | AB192: 0 | AC192: 0 | AD192: 0 | AE192: 0 | AF192: 0 | AG192: 0 | AH192: 0 | AI192: 0 | AJ192: 0 | AK192: 0 | AL192: 0 | AM192: 0 | AN192: 0 | AO192: 0 | AP192: 0 | AQ192: 0 | AR192: 0 | AS192: 0 | AT192: 0 | AU192: 0 | AV192: 0 | AW192: 0 | AX192: 0 | AY192: 0 | AZ192: 0 | BA192: 0 | BB192: 0 | BC192: 0 | BD192: 0 | BE192: =BE$135*$A138 -> 0 | BF192: =BF$135*$A137 -> 0 | CA192: 0
A193: 0 | B193: 57 | C193: 0 | D193: 0 | E193: 0 | F193: 0 | G193: 0 | H193: 0 | I193: 0 | J193: 0 | K193: 0 | L193: 0 | M193: 0 | N193: 0 | O193: 0 | P193: 0 | Q193: 0 | R193: 0 | S193: 0 | T193: 0 | U193: 0 | V193: 0 | W193: 0 | X193: 0 | Y193: 0 | Z193: 0 | AA193: 0 | AB193: 0 | AC193: 0 | AD193: 0 | AE193: 0 | AF193: 0 | AG193: 0 | AH193: 0 | AI193: 0 | AJ193: 0 | AK193: 0 | AL193: 0 | AM193: 0 | AN193: 0 | AO193: 0 | AP193: 0 | AQ193: 0 | AR193: 0 | AS193: 0 | AT193: 0 | AU193: 0 | AV193: 0 | AW193: 0 | AX193: 0 | AY193: 0 | AZ193: 0 | BA193: 0 | BB193: 0 | BC193: 0 | BD193: 0 | BE193: 0 | BF193: =BF$135*$A138 -> 0 | BG193: =BG$135*$A137 -> 0 | CA193: 0
A194: 0 | B194: 58 | C194: 0 | D194: 0 | E194: 0 | F194: 0 | G194: 0 | H194: 0 | I194: 0 | J194: 0 | K194: 0 | L194: 0 | M194: 0 | N194: 0 | O194: 0 | P194: 0 | Q194: 0 | R194: 0 | S194: 0 | T194: 0 | U194: 0 | V194: 0 | W194: 0 | X194: 0 | Y194: 0 | Z194: 0 | AA194: 0 | AB194: 0 | AC194: 0 | AD194: 0 | AE194: 0 | AF194: 0 | AG194: 0 | AH194: 0 | AI194: 0 | AJ194: 0 | AK194: 0 | AL194: 0 | AM194: 0 | AN194: 0 | AO194: 0 | AP194: 0 | AQ194: 0 | AR194: 0 | AS194: 0 | AT194: 0 | AU194: 0 | AV194: 0 | AW194: 0 | AX194: 0 | AY194: 0 | AZ194: 0 | BA194: 0 | BB194: 0 | BC194: 0 | BD194: 0 | BE194: 0 | BF194: 0 | BG194: =BG$135*$A138 -> 0 | BH194: =BH$135*$A137 -> 0 | CA194: 0
A195: 0 | B195: 59 | C195: 0 | D195: 0 | E195: 0 | F195: 0 | G195: 0 | H195: 0 | I195: 0 | J195: 0 | K195: 0 | L195: 0 | M195: 0 | N195: 0 | O195: 0 | P195: 0 | Q195: 0 | R195: 0 | S195: 0 | T195: 0 | U195: 0 | V195: 0 | W195: 0 | X195: 0 | Y195: 0 | Z195: 0 | AA195: 0 | AB195: 0 | AC195: 0 | AD195: 0 | AE195: 0 | AF195: 0 | AG195: 0 | AH195: 0 | AI195: 0 | AJ195: 0 | AK195: 0 | AL195: 0 | AM195: 0 | AN195: 0 | AO195: 0 | AP195: 0 | AQ195: 0 | AR195: 0 | AS195: 0 | AT195: 0 | AU195: 0 | AV195: 0 | AW195: 0 | AX195: 0 | AY195: 0 | AZ195: 0 | BA195: 0 | BB195: 0 | BC195: 0 | BD195: 0 | BE195: 0 | BF195: 0 | BG195: 0 | BH195: =BH$135*$A138 -> 0 | BI195: =BI$135*$A137 -> 0 | CA195: 0
A196: 0 | B196: 60 | C196: 0 | D196: 0 | E196: 0 | F196: 0 | G196: 0 | H196: 0 | I196: 0 | J196: 0 | K196: 0 | L196: 0 | M196: 0 | N196: 0 | O196: 0 | P196: 0 | Q196: 0 | R196: 0 | S196: 0 | T196: 0 | U196: 0 | V196: 0 | W196: 0 | X196: 0 | Y196: 0 | Z196: 0 | AA196: 0 | AB196: 0 | AC196: 0 | AD196: 0 | AE196: 0 | AF196: 0 | AG196: 0 | AH196: 0 | AI196: 0 | AJ196: 0 | AK196: 0 | AL196: 0 | AM196: 0 | AN196: 0 | AO196: 0 | AP196: 0 | AQ196: 0 | AR196: 0 | AS196: 0 | AT196: 0 | AU196: 0 | AV196: 0 | AW196: 0 | AX196: 0 | AY196: 0 | AZ196: 0 | BA196: 0 | BB196: 0 | BC196: 0 | BD196: 0 | BE196: 0 | BF196: 0 | BG196: 0 | BH196: 0 | BI196: =BI$135*$A138 -> 0 | BJ196: =BJ$135*$A137 -> 0 | CA196: 0
A197: 0 | B197: 61 | C197: 0 | D197: 0 | E197: 0 | F197: 0 | G197: 0 | H197: 0 | I197: 0 | J197: 0 | K197: 0 | L197: 0 | M197: 0 | N197: 0 | O197: 0 | P197: 0 | Q197: 0 | R197: 0 | S197: 0 | T197: 0 | U197: 0 | V197: 0 | W197: 0 | X197: 0 | Y197: 0 | Z197: 0 | AA197: 0 | AB197: 0 | AC197: 0 | AD197: 0 | AE197: 0 | AF197: 0 | AG197: 0 | AH197: 0 | AI197: 0 | AJ197: 0 | AK197: 0 | AL197: 0 | AM197: 0 | AN197: 0 | AO197: 0 | AP197: 0 | AQ197: 0 | AR197: 0 | AS197: 0 | AT197: 0 | AU197: 0 | AV197: 0 | AW197: 0 | AX197: 0 | AY197: 0 | AZ197: 0 | BA197: 0 | BB197: 0 | BC197: 0 | BD197: 0 | BE197: 0 | BF197: 0 | BG197: 0 | BH197: 0 | BI197: 0 | BJ197: =BJ$135*$A138 -> 0 | BK197: =BK$135*$A137 -> 0 | CA197: 0
A198: 0 | B198: 62 | C198: 0 | D198: 0 | E198: 0 | F198: 0 | G198: 0 | H198: 0 | I198: 0 | J198: 0 | K198: 0 | L198: 0 | M198: 0 | N198: 0 | O198: 0 | P198: 0 | Q198: 0 | R198: 0 | S198: 0 | T198: 0 | U198: 0 | V198: 0 | W198: 0 | X198: 0 | Y198: 0 | Z198: 0 | AA198: 0 | AB198: 0 | AC198: 0 | AD198: 0 | AE198: 0 | AF198: 0 | AG198: 0 | AH198: 0 | AI198: 0 | AJ198: 0 | AK198: 0 | AL198: 0 | AM198: 0 | AN198: 0 | AO198: 0 | AP198: 0 | AQ198: 0 | AR198: 0 | AS198: 0 | AT198: 0 | AU198: 0 | AV198: 0 | AW198: 0 | AX198: 0 | AY198: 0 | AZ198: 0 | BA198: 0 | BB198: 0 | BC198: 0 | BD198: 0 | BE198: 0 | BF198: 0 | BG198: 0 | BH198: 0 | BI198: 0 | BJ198: 0 | BK198: =BK$135*$A138 -> 0 | BL198: =BL$135*$A137 -> 0 | CA198: 0
A199: 0 | B199: 63 | C199: 0 | D199: 0 | E199: 0 | F199: 0 | G199: 0 | H199: 0 | I199: 0 | J199: 0 | K199: 0 | L199: 0 | M199: 0 | N199: 0 | O199: 0 | P199: 0 | Q199: 0 | R199: 0 | S199: 0 | T199: 0 | U199: 0 | V199: 0 | W199: 0 | X199: 0 | Y199: 0 | Z199: 0 | AA199: 0 | AB199: 0 | AC199: 0 | AD199: 0 | AE199: 0 | AF199: 0 | AG199: 0 | AH199: 0 | AI199: 0 | AJ199: 0 | AK199: 0 | AL199: 0 | AM199: 0 | AN199: 0 | AO199: 0 | AP199: 0 | AQ199: 0 | AR199: 0 | AS199: 0 | AT199: 0 | AU199: 0 | AV199: 0 | AW199: 0 | AX199: 0 | AY199: 0 | AZ199: 0 | BA199: 0 | BB199: 0 | BC199: 0 | BD199: 0 | BE199: 0 | BF199: 0 | BG199: 0 | BH199: 0 | BI199: 0 | BJ199: 0 | BK199: 0 | BL199: =BL$135*$A138 -> 0 | BM199: =BM$135*$A137 -> 0 | CA199: 0
A200: 0 | B200: 64 | C200: 0 | D200: 0 | E200: 0 | F200: 0 | G200: 0 | H200: 0 | I200: 0 | J200: 0 | K200: 0 | L200: 0 | M200: 0 | N200: 0 | O200: 0 | P200: 0 | Q200: 0 | R200: 0 | S200: 0 | T200: 0 | U200: 0 | V200: 0 | W200: 0 | X200: 0 | Y200: 0 | Z200: 0 | AA200: 0 | AB200: 0 | AC200: 0 | AD200: 0 | AE200: 0 | AF200: 0 | AG200: 0 | AH200: 0 | AI200: 0 | AJ200: 0 | AK200: 0 | AL200: 0 | AM200: 0 | AN200: 0 | AO200: 0 | AP200: 0 | AQ200: 0 | AR200: 0 | AS200: 0 | AT200: 0 | AU200: 0 | AV200: 0 | AW200: 0 | AX200: 0 | AY200: 0 | AZ200: 0 | BA200: 0 | BB200: 0 | BC200: 0 | BD200: 0 | BE200: 0 | BF200: 0 | BG200: 0 | BH200: 0 | BI200: 0 | BJ200: 0 | BK200: 0 | BL200: 0 | BM200: =BM$135*$A138 -> 0 | BN200: =BN$135*$A137 -> 0 | CA200: 0
A201: 0 | B201: 65 | C201: 0 | D201: 0 | E201: 0 | F201: 0 | G201: 0 | H201: 0 | I201: 0 | J201: 0 | K201: 0 | L201: 0 | M201: 0 | N201: 0 | O201: 0 | P201: 0 | Q201: 0 | R201: 0 | S201: 0 | T201: 0 | U201: 0 | V201: 0 | W201: 0 | X201: 0 | Y201: 0 | Z201: 0 | AA201: 0 | AB201: 0 | AC201: 0 | AD201: 0 | AE201: 0 | AF201: 0 | AG201: 0 | AH201: 0 | AI201: 0 | AJ201: 0 | AK201: 0 | AL201: 0 | AM201: 0 | AN201: 0 | AO201: 0 | AP201: 0 | AQ201: 0 | AR201: 0 | AS201: 0 | AT201: 0 | AU201: 0 | AV201: 0 | AW201: 0 | AX201: 0 | AY201: 0 | AZ201: 0 | BA201: 0 | BB201: 0 | BC201: 0 | BD201: 0 | BE201: 0 | BF201: 0 | BG201: 0 | BH201: 0 | BI201: 0 | BJ201: 0 | BK201: 0 | BL201: 0 | BM201: 0 | BN201: =BN$135*$A138 -> 0 | BO201: =BO$135*$A137 -> 0 | CA201: =SUM($C201:$BZ201) -> 0
A202: =IF($B$132=1,CC202,IF($B$132=2,CD202,IF($B$132=3,CE202,IF($B$132=4,CF202,#VALUE!)))) -> 0 | B202: =+B201+1 -> 66 | C202: =C$135*$A202 -> 0 | D202: 0 | E202: 0 | F202: 0 | G202: 0 | H202: 0 | I202: 0 | J202: 0 | K202: 0 | L202: 0 | M202: 0 | N202: 0 | O202: 0 | P202: 0 | Q202: 0 | R202: 0 | S202: 0 | T202: 0 | U202: 0 | V202: 0 | W202: 0 | X202: 0 | Y202: 0 | Z202: 0 | AA202: 0 | AB202: 0 | AC202: 0 | AD202: 0 | AE202: 0 | AF202: 0 | AG202: 0 | AH202: 0 | AI202: 0 | AJ202: 0 | AK202: 0 | AL202: 0 | AM202: 0 | AN202: 0 | AO202: 0 | AP202: 0 | AQ202: 0 | AR202: 0 | AS202: 0 | AT202: 0 | AU202: 0 | AV202: 0 | AW202: 0 | AX202: 0 | AY202: 0 | AZ202: 0 | BA202: 0 | BB202: 0 | BC202: 0 | BD202: 0 | BE202: 0 | BF202: 0 | BG202: 0 | BH202: 0 | BI202: 0 | BJ202: 0 | BK202: 0 | BL202: 0 | BM202: 0 | BN202: 0 | BO202: =BO$135*$A138 -> 0 | BP202: =BP$135*$A137 -> 0 | CA202: 0
A203: 0 | B203: 67 | C203: 0 | D203: =D$135*$A202 -> 0 | E203: 0 | F203: 0 | G203: 0 | H203: 0 | I203: 0 | J203: 0 | K203: 0 | L203: 0 | M203: 0 | N203: 0 | O203: 0 | P203: 0 | Q203: 0 | R203: 0 | S203: 0 | T203: 0 | U203: 0 | V203: 0 | W203: 0 | X203: 0 | Y203: 0 | Z203: 0 | AA203: 0 | AB203: 0 | AC203: 0 | AD203: 0 | AE203: 0 | AF203: 0 | AG203: 0 | AH203: 0 | AI203: 0 | AJ203: 0 | AK203: 0 | AL203: 0 | AM203: 0 | AN203: 0 | AO203: 0 | AP203: 0 | AQ203: 0 | AR203: 0 | AS203: 0 | AT203: 0 | AU203: 0 | AV203: 0 | AW203: 0 | AX203: 0 | AY203: 0 | AZ203: 0 | BA203: 0 | BB203: 0 | BC203: 0 | BD203: 0 | BE203: 0 | BF203: 0 | BG203: 0 | BH203: 0 | BI203: 0 | BJ203: 0 | BK203: 0 | BL203: 0 | BM203: 0 | BN203: 0 | BO203: 0 | BP203: =BP$135*$A138 -> 0 | BQ203: =BQ$135*$A137 -> 0 | CA203: 0
A204: 0 | B204: 68 | C204: 0 | D204: 0 | E204: =E$135*$A202 -> 0 | F204: 0 | G204: 0 | H204: 0 | I204: 0 | J204: 0 | K204: 0 | L204: 0 | M204: 0 | N204: 0 | O204: 0 | P204: 0 | Q204: 0 | R204: 0 | S204: 0 | T204: 0 | U204: 0 | V204: 0 | W204: 0 | X204: 0 | Y204: 0 | Z204: 0 | AA204: 0 | AB204: 0 | AC204: 0 | AD204: 0 | AE204: 0 | AF204: 0 | AG204: 0 | AH204: 0 | AI204: 0 | AJ204: 0 | AK204: 0 | AL204: 0 | AM204: 0 | AN204: 0 | AO204: 0 | AP204: 0 | AQ204: 0 | AR204: 0 | AS204: 0 | AT204: 0 | AU204: 0 | AV204: 0 | AW204: 0 | AX204: 0 | AY204: 0 | AZ204: 0 | BA204: 0 | BB204: 0 | BC204: 0 | BD204: 0 | BE204: 0 | BF204: 0 | BG204: 0 | BH204: 0 | BI204: 0 | BJ204: 0 | BK204: 0 | BL204: 0 | BM204: 0 | BN204: 0 | BO204: 0 | BP204: 0 | BQ204: =BQ$135*$A138 -> 0 | BR204: =BR$135*$A137 -> 0 | CA204: 0
A205: 0 | B205: 69 | C205: 0 | D205: 0 | E205: 0 | F205: =F$135*$A202 -> 0 | G205: 0 | H205: 0 | I205: 0 | J205: 0 | K205: 0 | L205: 0 | M205: 0 | N205: 0 | O205: 0 | P205: 0 | Q205: 0 | R205: 0 | S205: 0 | T205: 0 | U205: 0 | V205: 0 | W205: 0 | X205: 0 | Y205: 0 | Z205: 0 | AA205: 0 | AB205: 0 | AC205: 0 | AD205: 0 | AE205: 0 | AF205: 0 | AG205: 0 | AH205: 0 | AI205: 0 | AJ205: 0 | AK205: 0 | AL205: 0 | AM205: 0 | AN205: 0 | AO205: 0 | AP205: 0 | AQ205: 0 | AR205: 0 | AS205: 0 | AT205: 0 | AU205: 0 | AV205: 0 | AW205: 0 | AX205: 0 | AY205: 0 | AZ205: 0 | BA205: 0 | BB205: 0 | BC205: 0 | BD205: 0 | BE205: 0 | BF205: 0 | BG205: 0 | BH205: 0 | BI205: 0 | BJ205: 0 | BK205: 0 | BL205: 0 | BM205: 0 | BN205: 0 | BO205: 0 | BP205: 0 | BQ205: 0 | BR205: =BR$135*$A138 -> 0 | BS205: =BS$135*$A137 -> 0 | CA205: 0
... 177 more rows

Sheet 3rd party cont.
A1: State Income Tax Rate ............ | D1: 0.0164024 | I1: Debt ........................... | L1: 0.5 | M1: 0.052 | N1: =ROUND(L1*M1,4) -> 0.026 | O1: =N1*(1-D2) -> 0.02054 | Q1: Gross Revenue | T1: 1
A2: Federal Income Tax Rate ........ | D2: 0.21 | I2: Preferred Stock ................. | L2: 0 | M2: 0 | N2: =ROUND(L2*M2,4) -> 0 | O2: =N2 -> 0 | Q2: Uncollectables | T2: 0
A3: Discount Factor ...................... | D3: =+O4 -> 0.06804 | I3: Common Equity ...................... | L3: 0.5 | M3: 0.095 | N3: =ROUND(L3*M3,4) -> 0.0475 | O3: =N3 -> 0.0475 | Q3: Commission Fees | T3: 0
A4: Capital Class ........................... | D4: 4 | E4: (1) General Structures. | N4: =SUM(N1:N3) -> 0.0735 | O4: =SUM(O1:O3) -> 0.06804 | Q4: Excise Tax | T4: 0
E5: (2) Generation, Transmission, | Q5: Franchise Fees | T5: 0
E6: and Distribution. | Q6: ERSA | T6: 0
E7: (3) Other Equipment. | N7: IRR CALC | T7: -
E8: (4) Transportation Equipment. | I8: Principal ...................... | L8: =T24 -> 2.145369484e-52 | N8: =L8 -> 2.145369484e-52 | O8: pv princ | Q8: Misc. Revenue Items | T8: =SUM(T2:T6) -> 0
A9: Book Life (Years) .............. | D9: 10 | I9: Interest ....................... | L9: =D3 -> 0.06804 | N9: =V20 -> 0 | O9: pv lvlized margin | T9: -
A10: Property Tax Rate ............... | D10: 0.015 | I10: Term ............................. | L10: 10 | N10: =IRR($AI$28:$AI$102,0.059065190478108) ->  | O10: IRR | Q10: Before State Income Tax | T10: =T1-T8 -> 1
A11: O&M Escalation Factor .......... | D11: 0.03 | I11: Levelized Gr. Mar. Requirement ....... | L11: =PMT($L$9,$L$10,-$L$8) -> 3.026908032e-53 | Q11: State Income Tax | T11: 0
T12: -
B13: Idaho | C13: Oregon | D13: Washington | Q13: Before Federal Income Tax | T13: =T10-T11 -> 1
A14: Electric | B14: 0.35 | C14: 0 | D14: 0.65 | E14: =SUM(B14:D14) -> 1 | K14: Lev ROE | L14: =PMT(L9,L10,-L15) -> 4881.809342 | Q14: Federal Income Tax | T14: =T13*D2 -> 0.21 | V14: (v) | W14: (w) | X14: (x) | Y14: (y) | Z14: (z) | AA14: (aa) | AB14: (ab) | AC14: (ac) | AD14: (ad) | AE14: (ae) | AF14: (af) | AG14: (ag) | AH14: (ah)
A15: Gas | B15: 0 | C15: 0 | D15: 0 | E15: =SUM(B15:D15) -> 0 | K15: NPV equity | L15: =NPV(L9,$M$28:$M$103) -> 34600.60457 | T15: - | V15: PV GM
B16: =SUM(B14:B15) -> 0.35 | C16: =SUM(C14:C15) -> 0 | D16: 0.65 | E16: 1 | Q16: Conversion Factor | T16: =T13-T14 -> 0.79 | V16: =NPV(O4,$V$29:$V$103)+V28 -> 0
A17: ...................................................................................................................................................................................................................... | V17: TERM
B18: Capital Additions | V18: =L10 -> 10 | AD18: pv of contribution to fixed costs | AG18: =NPV(O4,20,AG28:AG28) -> 18.72589042
B19: ----------------- | D19: Rate | E19: Accum. | G19: Book Dep. | I19: Rate | K19: Average | P19: Misc. | Q19: State | R19: Federal | S19: Total | T19: Present Val | V19: LEVELIZED | AE19: Interest ....................... | AG19: =O4 -> 0.06804 | AL19: Inter.
B20: Tax | C20: Book | D20: Base | E20: Book | F20: Tax | G20: on Tax | H20: Deferred | I20: Base | J20: Book | K20: Rate | L20: Interest | M20: Equity | N20: O&M & A&G | O20: Property | P20: Revenue | Q20: Income | R20: Income | S20: Gross Marg | T20: Gross Marg | V20: =PMT(L9,V18,-V16) -> 0 | AE20: Term ............................. | AG20: 50 | AH20: per kwh | AL20: Revenue | AN20: Net Book
B21: Basis | C21: Basis | D21: BOP | E21: Deprec. | F21: Deprec. | G21: Basis | H21: Taxes | I21: EOP | J21: Deprec. | K21: Base | L21: Expense | M21: Return | N21: Expense | O21: Taxes | P21: Items | Q21: Tax | R21: Taxes | S21: Reqmnt | T21: Reqmnt | AD21: levelized cont. to fixed costs | AG21: =PMT(AG19,AG20,-AG18) -> 1.323347304 | AH21: =AG21/(400*1000) -> 3.308368259e-06 | AL21: Requirement | AN21: BOP
A22: (a) | B22: (b) | C22: (c) | D22: (d) | E22: (e) | F22: (f) | G22: (g) | H22: (h) | I22: (i) | J22: (j) | K22: (k) | L22: (l) | M22: (m) | N22: (n) | O22: (o) | P22: (p) | Q22: (q) | R22: (r) | S22: (s) | T22: (t) | W22: - | X22: - | Y22: - | Z22: - | AA22: - | AB22: - | AC22: - | AD22: - | AE22: - | AF22: - | AG22: - | AH22: -
B23: - | C23: - | D23: - | E23: - | F23: - | G23: - | H23: - | I23: - | J23: - | K23: - | L23: - | M23: - | N23: - | O23: - | P23: - | Q23: - | R23: - | S23: - | T23: - | Z23: RES LOAD @ | AG23: ANNUAL | AH23: CUMULATIVE | AL23: - | AN23: -
A24: Total => | B24: =SUM(B25:B104) -> 417501.4228 | C24: =SUM(C25:C104) -> 417501.4228 | F24: =SUM(F25:F104) -> 417501.4228 | G24: =SUM(G25:G104) -> 417501.4228 | H24: =SUM(H25:H104) -> -1.534772309e-12 | J24: =SUM(J25:J104) -> 417501.4228 | L24: =SUM(L25:L104) -> 48116.73169 | M24: 87905.56752 | N24: 2286308.772 | O24: 34443.86738 | P24: 0 | Q24: 1075.500479 | R24: 13543.78231 | S24: 3006328.803 | T24: 2.145369484e-52 | V24: Offsets | X24: NEW | Y24: CUML | Z24: 12000 | AA24: COMM | AB24: COMM | AC24: TOTAL | AD24: TOTAL | AE24: REVENUE | AF24: ESTIMATED | AG24: (SHORTFALL) | AH24: (SHORTFALL)
A25: Period | B25: - | C25: - | D25: - | E25: - | F25: - | G25: - | H25: - | I25: - | J25: - | K25: - | L25: - | M25: - | N25: - | O25: - | P25: - | Q25: - | R25: - | S25: - | T25: - | W25: YR | X25: CUST | Y25: CUST | Z25: KWH EA | AA25: CUST | AB25: LOAD | AC25: CUST | AD25: LOAD | AE25: REQ | AF25: MARGIN | AG25: EXCESS | AH25: EXCESS | AI25: 0.05906519048 | AL25: - | AN25: -
W26: - | X26: - | Y26: - | Z26: - | AA26: - | AB26: - | AC26: - | AD26: - | AE26: - | AF26: - | AG26: - | AH26: - | AJ26: =NPV(AI25,$AI$28:$AI$103) -> 0
S27: =-PMT(O4,20,NPV(O4,S28:S51)) -> 117433.1587
A28: 2023 | B28: =HLOOKUP($A28,'AEG Input File'!$AC$2:$AZ$8,7,FALSE)*Inflation!$B4/100 -> 0 | C28: =B28 -> 0 | D28: =I27+C28 -> 0 | E28: =E27+J28 -> 0 | F28: =CA137 -> 0 | G28: =CA229 -> 0 | H28: =(F28-G28)*$D$2 -> 0 | I28: =D28-J28-H28 -> 0 | J28: =CA323 -> 0 | K28: =(+I28+D28)/2 -> 0 | L28: =IF(A28=1,$N$1*K28,$N$1*K28) -> 0 | M28: =IF(A28=1,($N$3+$N$2)*K28,($N$3+$N$2)*K28) -> 0 | N28: =HLOOKUP($A28,'AEG Input File'!$BA$2:$BX$8,7,FALSE)*Inflation!$B4/100 -> 0 | O28: =AN28*$D$10 -> 0 | P28: =AL28*$T$8 -> 0 | Q28: =(+AL28-(G28+L28+N28+O28+P28))*$D$1 -> 0 | R28: =(+AL28-(G28+L28+N28+O28+P28+Q28))*$D$2 -> 0 | S28: =J28+M28+L28+N28+O28+P28+Q28+R28 -> 0 | T28: =S28/(1+$D$3)^(A28-1) -> 0 | V28: 0 | W28: =1+W27 -> 1 | X28: 0 | Y28: =+X28 -> 0 | Z28: =X28*$Z$24 -> 0 | AA28: 0 | AB28: 0 | AC28: =Y28+AA28 -> 0 | AD28: 0 | AE28: =S28 -> 0 | AF28: =V28 -> 0 | AG28: =AF28-AE28 -> 0 | AH28: =AF28-AE28 -> 0 | AI28: =IF(A28=1,AF28-T24,AF28) -> 0 | AL28: =(+J28+L28+M28+N28+O28-(($D$1+(1-$D$1)*$D$2)*(G28+L28+N28+O28)))/$T$16 -> 0 | AN28: =C28-J27+AN27 -> 0
A29: =1+A28 -> 2024 | B29: =HLOOKUP($A29,'AEG Input File'!$AC$2:$AZ$8,7,FALSE)*Inflation!$B5/100 -> 16604.47918 | C29: =B29 -> 16604.47918 | D29: =I28+C29 -> 16604.47918 | E29: 1660.447918 | F29: 3320.895835 | G29: =CA230 -> 1660.447918 | H29: 348.6940627 | I29: 14595.3372 | J29: 1660.447918 | K29: 15599.90819 | L29: =IF(A29=1,$N$1*K29,$N$1*K29) -> 405.5976128 | M29: 740.9956389 | N29: =HLOOKUP($A29,'AEG Input File'!$BA$2:$BX$8,7,FALSE)*Inflation!$B5/100 -> 90492.15532 | O29: 249.0671876 | P29: =AL29*$T$8 -> 0 | Q29: -9.583803734 | R29: -120.688883 | S29: 93417.99099 | T29: =S29/(1+$D$3)^(A29-1) -> 1.373666823e-53 | V29: 0 | W29: =1+W28 -> 2 | X29: 0 | Y29: =+X29 -> 0 | Z29: =X29*$Z$24 -> 0 | AA29: 0 | AB29: 0 | AC29: 0 | AD29: 0 | AE29: 93417.99099 | AF29: 0 | AG29: -93417.99099 | AH29: =AF29-AE29 -> -93417.99099 | AI29: =IF(A29=1,AF29-T25,AF29) -> 0 | AL29: =(+J29+L29+M29+N29+O29-(($D$1+(1-$D$1)*$D$2)*(G29+L29+N29+O29)))/$T$16 -> 92222.97527 | AN29: =C29-J28+AN28 -> 16604.47918
A30: 2025 | B30: =HLOOKUP($A30,'AEG Input File'!$AC$2:$AZ$8,7,FALSE)*Inflation!$B6/100 -> 16862.49961 | C30: 16862.49961 | D30: 31457.8368 | E30: 5007.145796 | F30: 8685.933258 | G30: 3346.697878 | H30: 1121.23943 | I30: 26989.8995 | J30: 3346.697878 | K30: 29223.86815 | L30: 759.8205719 | M30: 1388.133737 | N30: =HLOOKUP($A30,'AEG Input File'!$BA$2:$BX$8,7,FALSE)*Inflation!$B6/100 -> 92150.95737 | O30: 477.097963 | P30: 0 | Q30: 2.795824179 | R30: 35.20782629 | S30: 98160.71117 | T30: 1.351453365e-53 | V30: 0 | W30: 3 | X30: 0 | Y30: 0 | Z30: 0 | AA30: 0 | AB30: 0 | AC30: 0 | AD30: 0 | AE30: 98160.71117 | AF30: 0 | AG30: -98160.71117 | AH30: -98160.71117 | AI30: 0 | AL30: 96905.02592 | AN30: 31806.53087
A31: 2026 | B31: =HLOOKUP($A31,'AEG Input File'!$AC$2:$AZ$8,7,FALSE)*Inflation!$B7/100 -> 17080.39084 | C31: 17080.39084 | D31: 44070.29034 | E31: 10061.88276 | F31: 12000.13804 | G31: 5054.736962 | H31: 1458.534227 | I31: 37557.01915 | J31: 5054.736962 | K31: 40813.65474 | L31: 1061.155023 | M31: 1938.6486 | N31: =HLOOKUP($A31,'AEG Input File'!$BA$2:$BX$8,7,FALSE)*Inflation!$B7/100 -> 93515.50371 | O31: 683.1033574 | P31: 0 | Q31: 13.26276791 | R31: 167.0180952 | S31: 102433.4285 | T31: 1.320436616e-53 | V31: 0 | W31: 4 | X31: 0 | Y31: 0 | Z31: 0 | AA31: 0 | AB31: 0 | AC31: 0 | AD31: 0 | AE31: 102433.4285 | AF31: 0 | AG31: -102433.4285 | AH31: -102433.4285 | AI31: 0 | AL31: 101123.0861 | AN31: 45540.22383
A32: 2027 | B32: =HLOOKUP($A32,'AEG Input File'!$AC$2:$AZ$8,7,FALSE)*Inflation!$B8/100 -> 17299.79126 | C32: 17299.79126 | D32: 54856.81041 | E32: 16846.59885 | F32: 14076.11925 | G32: 6784.716088 | H32: 1531.194663 | I32: 46540.89965 | J32: 6784.716088 | K32: 50698.85503 | L32: 1318.170231 | M32: 2408.195614 | N32: =HLOOKUP($A32,'AEG Input File'!$BA$2:$BX$8,7,FALSE)*Inflation!$B8/100 -> 94721.09417 | O32: 866.7791719 | P32: 0 | Q32: 22.10340779 | R32: 278.3483124 | S32: 106399.407 | T32: 1.284184841e-53 | V32: 0 | W32: 5 | X32: 0 | Y32: 0 | Z32: 0 | AA32: 0 | AB32: 0 | AC32: 0 | AD32: 0 | AE32: 106399.407 | AF32: 0 | AG32: -106399.407 | AH32: -106399.407 | AI32: 0 | AL32: 105038.3312 | AN32: 57785.27813
A33: 2028 | B33: =HLOOKUP($A33,'AEG Input File'!$AC$2:$AZ$8,7,FALSE)*Inflation!$B9/100 -> 17520.77525 | C33: 17520.77525 | D33: 64061.6749 | E33: 25383.39246 | F33: 16174.91925 | G33: 8536.793613 | H33: 1604.006384 | I33: 53920.87491 | J33: 8536.793613 | K33: 58991.27491 | L33: 1533.773148 | M33: 2802.085558 | N33: =HLOOKUP($A33,'AEG Input File'!$BA$2:$BX$8,7,FALSE)*Inflation!$B9/100 -> 95935.54894 | O33: 1027.820059 | P33: 0 | Q33: 29.38211638 | R33: 370.009122 | S33: 110235.4126 | T33: 1.245724326e-53 | V33: 0 | W33: 6 | X33: 0 | Y33: 0 | Z33: 0 | AA33: 0 | AB33: 0 | AC33: 0 | AD33: 0 | AE33: 110235.4126 | AF33: 0 | AG33: -110235.4126 | AH33: -110235.4126 | AI33: 0 | AL33: 108825.2661 | AN33: 68521.33729
A34: 2029 | B34: =HLOOKUP($A34,'AEG Input File'!$AC$2:$AZ$8,7,FALSE)*Inflation!$B10/100 -> 17737.54657 | C34: 17737.54657 | D34: 71658.42148 | E34: 35693.94073 | F34: 17342.3563 | G34: 10310.54827 | H34: 1476.679685 | I34: 59871.19352 | J34: 10310.54827 | K34: 65764.8075 | L34: 1709.884995 | M34: 3123.828356 | N34: =HLOOKUP($A34,'AEG Input File'!$BA$2:$BX$8,7,FALSE)*Inflation!$B10/100 -> 97127.12082 | O34: 1165.831354 | P34: 0 | Q34: 35.18001245 | R34: 443.0220529 | S34: 113915.4159 | T34: 1.205301773e-53 | V34: 0 | W34: 7 | X34: 0 | Y34: 0 | Z34: 0 | AA34: 0 | AB34: 0 | AC34: 0 | AD34: 0 | AE34: 113915.4159 | AF34: 0 | AG34: -113915.4159 | AH34: -113915.4159 | AI34: 0 | AL34: 112458.1943 | AN34: 77722.09024
A35: 2030 | B35: =HLOOKUP($A35,'AEG Input File'!$AC$2:$AZ$8,7,FALSE)*Inflation!$B11/100 -> 17955.73493 | C35: 17955.73493 | D35: 77826.92845 | E35: 47800.06249 | F35: 17563.02769 | G35: 12106.12176 | H35: 1145.950245 | I35: 64574.85644 | J35: 12106.12176 | K35: 71200.89244 | L35: 1851.223204 | M35: 3382.042391 | N35: =HLOOKUP($A35,'AEG Input File'!$BA$2:$BX$8,7,FALSE)*Inflation!$B11/100 -> 98326.65038 | O35: 1280.509153 | P35: 0 | Q35: 39.66651259 | R35: 499.5205691 | S35: 117485.734 | T35: 1.163887253e-53 | V35: 0 | W35: 8 | X35: 0 | Y35: 0 | Z35: 0 | AA35: 0 | AB35: 0 | AC35: 0 | AD35: 0 | AE35: 117485.734 | AF35: 0 | AG35: -117485.734 | AH35: -117485.734 | AI35: 0 | AL35: 115982.8404 | AN35: 85367.2769
A36: 2031 | B36: =HLOOKUP($A36,'AEG Input File'!$AC$2:$AZ$8,7,FALSE)*Inflation!$B12/100 -> 18175.32728 | C36: 18175.32728 | D36: 82750.18372 | E36: 61723.71699 | F36: 17781.66935 | G36: 13923.65449 | H36: 810.18312 | I36: 68016.34611 | J36: 13923.65449 | K36: 75383.26492 | L36: 1959.964888 | M36: 3580.705083 | N36: =HLOOKUP($A36,'AEG Input File'!$BA$2:$BX$8,7,FALSE)*Inflation!$B12/100 -> 99534.06618 | O36: 1371.547236 | P36: 0 | Q36: 42.92367624 | R36: 540.5380454 | S36: 120953.3996 | T36: 1.121905659e-53 | V36: 0 | W36: 9 | X36: 0 | Y36: 0 | Z36: 0 | AA36: 0 | AB36: 0 | AC36: 0 | AD36: 0 | AE36: 120953.3996 | AF36: 0 | AG36: -120953.3996 | AH36: -120953.3996 | AI36: 0 | AL36: 119406.1472 | AN36: 91436.48242
A37: 2032 | B37: =HLOOKUP($A37,'AEG Input File'!$AC$2:$AZ$8,7,FALSE)*Inflation!$B13/100 -> 18396.31034 | C37: 18396.31034 | D37: 86412.65644 | E37: 77487.00251 | F37: 18001.09455 | G37: 15763.28552 | H37: 469.939896 | I37: 70179.43102 | J37: 15763.28552 | K37: 78296.04373 | L37: 2035.697137 | M37: 3719.062077 | N37: =HLOOKUP($A37,'AEG Input File'!$BA$2:$BX$8,7,FALSE)*Inflation!$B13/100 -> 100749.2995 | O37: 1438.637074 | P37: 0 | Q37: 44.93601623 | R37: 565.8794518 | S37: 124316.7967 | T37: 1.079643942e-53 | V37: 0 | W37: 10 | X37: 0 | Y37: 0 | Z37: 0 | AA37: 0 | AB37: 0 | AC37: 0 | AD37: 0 | AE37: 124316.7967 | AF37: 0 | AG37: -124316.7967 | AH37: -124316.7967 | AI37: 0 | AL37: 122726.5193 | AN37: 95909.13826
A38: 2033 | B38: =HLOOKUP($A38,'AEG Input File'!$AC$2:$AZ$8,7,FALSE)*Inflation!$B14/100 -> 18618.67053 | C38: 18618.67053 | D38: 88798.10155 | E38: 95112.15509 | F38: 18221.27893 | G38: 17625.15258 | H38: 125.1865348 | I38: 71047.76244 | J38: 17625.15258 | K38: 79922.93199 | L38: 2077.996232 | M38: 3796.33927 | N38: =HLOOKUP($A38,'AEG Input File'!$BA$2:$BX$8,7,FALSE)*Inflation!$B14/100 -> 101972.2976 | O38: 1481.467849 | P38: 0 | Q38: 45.68763494 | R38: 575.3445896 | S38: 127574.2858 | T38: 1.037352526e-53 | V38: 0 | W38: 11 | X38: 0 | Y38: 0 | Z38: 0 | AA38: 0 | AB38: 0 | AC38: 0 | AD38: 0 | AE38: 127574.2858 | AF38: 0 | AG38: -127574.2858 | AH38: -127574.2858 | AI38: 0 | AL38: 125942.3381 | AN38: 98764.52326
A39: 2034 | B39: =HLOOKUP($A39,'AEG Input File'!$AC$2:$AZ$8,7,FALSE)*Inflation!$B15/100 -> 18842.39404 | C39: 18842.39404 | D39: 89890.15648 | E39: 112961.0992 | F39: 18442.52601 | G39: 17848.94406 | H39: 124.6522087 | I39: 71916.56021 | J39: 17848.94406 | K39: 80903.35835 | L39: 2103.487317 | M39: 3842.909521 | N39: =HLOOKUP($A39,'AEG Input File'!$BA$2:$BX$8,7,FALSE)*Inflation!$B15/100 -> 103202.9631 | O39: 1499.726471 | P39: 0 | Q39: 46.25147564 | R39: 582.445038 | S39: 129126.727 | T39: 9.830867622e-54 | V39: 0 | W39: 12 | X39: 0 | Y39: 0 | Z39: 0 | AA39: 0 | AB39: 0 | AC39: 0 | AD39: 0 | AE39: 129126.727 | AF39: 0 | AG39: -129126.727 | AH39: -129126.727 | AI39: 0 | AL39: 127474.9203 | AN39: 99981.76473
A40: 2035 | B40: =HLOOKUP($A40,'AEG Input File'!$AC$2:$AZ$8,7,FALSE)*Inflation!$B16/100 -> 19067.46684 | C40: 19067.46684 | D40: 90984.02705 | E40: 131030.5399 | F40: 18665.14719 | G40: 18069.44079 | H40: 125.0983443 | I40: 72789.48792 | J40: 18069.44079 | K40: 81886.75749 | L40: 2129.055695 | M40: 3889.620981 | N40: =HLOOKUP($A40,'AEG Input File'!$BA$2:$BX$8,7,FALSE)*Inflation!$B16/100 -> 104441.2454 | O40: 1518.004313 | P40: 0 | Q40: 46.81705941 | R40: 589.567437 | S40: 130683.7517 | T40: 9.315577444e-54 | V40: 0 | W40: 13 | X40: 0 | Y40: 0 | Z40: 0 | AA40: 0 | AB40: 0 | AC40: 0 | AD40: 0 | AE40: 130683.7517 | AF40: 0 | AG40: -130683.7517 | AH40: -130683.7517 | AI40: 0 | AL40: 129012.0273 | AN40: 101200.2875
A41: 2036 | B41: =HLOOKUP($A41,'AEG Input File'!$AC$2:$AZ$8,7,FALSE)*Inflation!$B17/100 -> 19293.87464 | C41: 19293.87464 | D41: 92083.36256 | E41: 149321.3291 | F41: 18889.12862 | G41: 18290.78917 | H41: 125.6512851 | I41: 73666.92211 | J41: 18290.78917 | K41: 82875.14233 | L41: 2154.753701 | M41: 3936.569261 | N41: =HLOOKUP($A41,'AEG Input File'!$BA$2:$BX$8,7,FALSE)*Inflation!$B17/100 -> 105687.0709 | O41: 1536.37082 | P41: 0 | Q41: 47.38524292 | R41: 596.7225744 | S41: 132249.6617 | T41: 8.826636431e-54 | V41: 0 | W41: 14 | X41: 0 | Y41: 0 | Z41: 0 | AA41: 0 | AB41: 0 | AC41: 0 | AD41: 0 | AE41: 132249.6617 | AF41: 0 | AG41: -132249.6617 | AH41: -132249.6617 | AI41: 0 | AL41: 130557.9059 | AN41: 102424.7214
A42: 2037 | B42: =HLOOKUP($A42,'AEG Input File'!$AC$2:$AZ$8,7,FALSE)*Inflation!$B18/100 -> 19521.60293 | C42: 19521.60293 | D42: 93188.52504 | E42: 167834.2994 | F42: 19114.45622 | G42: 18512.97033 | H42: 126.3120355 | I42: 74549.24267 | J42: 18512.97033 | K42: 83868.88385 | L42: 2180.59098 | M42: 3983.771983 | N42: =HLOOKUP($A42,'AEG Input File'!$BA$2:$BX$8,7,FALSE)*Inflation!$B18/100 -> 106940.3602 | O42: 1554.833027 | P42: 0 | Q42: 47.95641396 | R42: 603.9153338 | S42: 133824.3983 | T42: 8.362737215e-54 | V42: 0 | W42: 15 | X42: 0 | Y42: 0 | Z42: 0 | AA42: 0 | AB42: 0 | AC42: 0 | AD42: 0 | AE42: 133824.3983 | AF42: 0 | AG42: -133824.3983 | AH42: -133824.3983 | AI42: 0 | AL42: 132112.4983 | AN42: 103655.5351
A43: 2038 | B43: =HLOOKUP($A43,'AEG Input File'!$AC$2:$AZ$8,7,FALSE)*Inflation!$B19/100 -> 19750.63701 | C43: 19750.63701 | D43: 94299.87967 | E43: 186570.256 | F43: 19341.11567 | G43: 18735.95651 | H43: 127.0834228 | I43: 75436.83974 | J43: 18735.95651 | K43: 84868.35971 | L43: 2206.577352 | M43: 4031.247086 | N43: =HLOOKUP($A43,'AEG Input File'!$BA$2:$BX$8,7,FALSE)*Inflation!$B19/100 -> 108201.0467 | O43: 1573.398027 | P43: 0 | Q43: 48.53096585 | R43: 611.1506683 | S43: 135407.9073 | T43: 7.922635193e-54 | V43: 0 | W43: 16 | X43: 0 | Y43: 0 | Z43: 0 | AA43: 0 | AB43: 0 | AC43: 0 | AD43: 0 | AE43: 135407.9073 | AF43: 0 | AG43: -135407.9073 | AH43: -135407.9073 | AI43: 0 | AL43: 133675.7508 | AN43: 104893.2018
A44: 2039 | B44: =HLOOKUP($A44,'AEG Input File'!$AC$2:$AZ$8,7,FALSE)*Inflation!$B20/100 -> 19980.96196 | C44: 19980.96196 | D44: 95417.8017 | E44: 205530.554 | F44: 19569.09243 | G44: 18960.29805 | H44: 127.8468205 | I44: 76329.65683 | J44: 18960.29805 | K44: =(+I44+D44)/2 -> 85873.72927 | L44: 2232.716961 | M44: 4079.00214 | N44: =HLOOKUP($A44,'AEG Input File'!$BA$2:$BX$8,7,FALSE)*Inflation!$B20/100 -> 109469.0394 | O44: 1592.073109 | P44: 0 | Q44: 49.10892908 | R44: =(+AL44-(G44+L44+N44+O44+P44+Q44))*$D$2 -> 618.4289618 | S44: 137000.6675 | T44: 7.505174559e-54 | V44: 0 | W44: 17 | X44: 0 | Y44: 0 | Z44: 0 | AA44: 0 | AB44: 0 | AC44: =Y44+AA44 -> 0 | AD44: 0 | AE44: 137000.6675 | AF44: 0 | AG44: -137000.6675 | AH44: -137000.6675 | AI44: 0 | AL44: 135248.1363 | AN44: 106138.2072
A45: 2040 | B45: =HLOOKUP($A45,'AEG Input File'!$AC$2:$AZ$8,7,FALSE)*Inflation!$B21/100 -> 20212.56268 | C45: 20212.56268 | D45: 96542.21951 | E45: 224716.5348 | F45: 19798.37177 | G45: 19185.98082 | H45: 128.6020995 | I45: 77227.63659 | J45: 19185.98082 | K45: 86884.92805 | L45: 2259.008129 | M45: 4127.034082 | N45: =HLOOKUP($A45,'AEG Input File'!$BA$2:$BX$8,7,FALSE)*Inflation!$B21/100 -> 110744.2791 | O45: 1610.857078 | P45: 0 | Q45: 49.69026057 | R45: 625.7496719 | S45: 138602.5991 | T45: 7.109220275e-54 | V45: 0 | W45: 18 | X45: 0 | Y45: 0 | Z45: 0 | AA45: 0 | AB45: 0 | AC45: 0 | AD45: 0 | AE45: 138602.5991 | AF45: 0 | AG45: -138602.5991 | AH45: -138602.5991 | AI45: 0 | AL45: 136829.5757 | AN45: 107390.4719
A46: 2041 | B46: =HLOOKUP($A46,'AEG Input File'!$AC$2:$AZ$8,7,FALSE)*Inflation!$B22/100 -> 20445.42388 | C46: 20445.42388 | D46: 97673.06047 | E46: 244129.5253 | F46: 20028.93875 | G46: 19412.99048 | H46: 129.3491357 | I46: 78130.72085 | J46: 19412.99048 | K46: 87901.89066 | L46: 2285.449157 | M46: 4175.339806 | N46: =HLOOKUP($A46,'AEG Input File'!$BA$2:$BX$8,7,FALSE)*Inflation!$B22/100 -> 112026.692 | O46: 1629.748724 | P46: 0 | Q46: 50.27492032 | R46: 633.1122947 | S46: 140213.6074 | T46: 6.733691897e-54 | V46: 0 | W46: 19 | X46: 0 | Y46: 0 | Z46: 0 | AA46: 0 | AB46: 0 | AC46: 0 | AD46: 0 | AE46: 140213.6074 | AF46: 0 | AG46: -140213.6074 | AH46: -140213.6074 | AI46: 0 | AL46: 138419.9757 | AN46: 108649.9149
A47: 2042 | B47: =HLOOKUP($A47,'AEG Input File'!$AC$2:$AZ$8,7,FALSE)*Inflation!$B23/100 -> 20679.53011 | C47: 20679.53011 | D47: 98810.25096 | E47: 263770.8378 | F47: 20260.77823 | G47: 19641.31246 | H47: 130.087811 | I47: =D47-J47-H47 -> 79038.85069 | J47: 19641.31246 | K47: 88924.55082 | L47: 2312.038321 | M47: 4223.916164 | N47: =HLOOKUP($A47,'AEG Input File'!$BA$2:$BX$8,7,FALSE)*Inflation!$B23/100 -> 113316.1841 | O47: 1648.746818 | P47: 0 | Q47: 50.86287298 | R47: 640.5163852 | S47: 141833.5771 | T47: 6.37756093e-54 | V47: 0 | W47: 20 | X47: 0 | Y47: 0 | Z47: 0 | AA47: 0 | AB47: 0 | AC47: 0 | AD47: 0 | AE47: 141833.5771 | AF47: 0 | AG47: -141833.5771 | AH47: -141833.5771 | AI47: 0 | AL47: 140019.2226 | AN47: 109916.4546
A48: 2043 | B48: =HLOOKUP($A48,'AEG Input File'!$AC$2:$AZ$8,7,FALSE)*Inflation!$B24/100 -> 20914.86576 | C48: 20914.86576 | D48: =I47+C48 -> 99953.71645 | E48: 283641.7698 | F48: 20493.8749 | G48: 19870.93199 | H48: 130.8180127 | I48: 79951.96645 | J48: 19870.93199 | K48: 89952.84145 | L48: 2338.773878 | M48: 4272.759969 | N48: =HLOOKUP($A48,'AEG Input File'!$BA$2:$BX$8,7,FALSE)*Inflation!$B24/100 -> 114612.6846 | O48: 1667.850118 | P48: 0 | Q48: 51.4540762 | R48: 647.96141 | S48: 143462.4161 | T48: 6.039850412e-54 | V48: 0 | W48: 21 | X48: 0 | Y48: 0 | Z48: 0 | AA48: 0 | AB48: 0 | AC48: 0 | AD48: 0 | AE48: 143462.4161 | AF48: 0 | AG48: -143462.4161 | AH48: -143462.4161 | AI48: 0 | AL48: 141627.2252 | AN48: 111190.0079
A49: 2044 | B49: =HLOOKUP($A49,'AEG Input File'!$AC$2:$AZ$8,7,FALSE)*Inflation!$B25/100 -> 21151.41505 | C49: 21151.41505 | D49: 101103.3815 | E49: 303743.6038 | F49: 20728.2133 | G49: 20101.83409 | H49: 131.539634 | I49: 80870.00778 | J49: 20101.83409 | K49: 90986.69464 | L49: 2365.654061 | M49: 4321.867995 | N49: =HLOOKUP($A49,'AEG Input File'!$BA$2:$BX$8,7,FALSE)*Inflation!$B25/100 -> 115916.1123 | O49: 1687.057364 | P49: 0 | Q49: 52.04848972 | R49: 655.446862 | S49: 145100.0212 | T49: 5.719630849e-54 | V49: 0 | W49: 22 | X49: 0 | Y49: 0 | Z49: 0 | AA49: 0 | AB49: 0 | AC49: 0 | AD49: 0 | AE49: 145100.0212 | AF49: 0 | AG49: -145100.0212 | AH49: -145100.0212 | AI49: 0 | AL49: 143243.8819 | AN49: 112470.4909
A50: 2045 | B50: =HLOOKUP($A50,'AEG Input File'!$AC$2:$AZ$8,7,FALSE)*Inflation!$B26/100 -> 21389.16209 | C50: 21389.16209 | D50: 102259.1699 | E50: 324077.6075 | F50: 20963.77777 | G50: 20334.00361 | H50: 132.2525737 | I50: 81792.91369 | J50: 20334.00361 | K50: 92026.04178 | L50: 2392.677086 | M50: 4371.236985 | N50: =HLOOKUP($A50,'AEG Input File'!$BA$2:$BX$8,7,FALSE)*Inflation!$B26/100 -> 117226.4005 | O50: 1706.367284 | P50: 0 | Q50: 52.64606872 | R50: 662.972177 | S50: 146746.3037 | T50: 5.416018969e-54 | V50: 0 | W50: 23 | X50: 0 | Y50: 0 | Z50: 0 | AA50: 0 | AB50: 0 | AC50: 0 | AD50: 0 | AE50: 146746.3037 | AF50: 0 | AG50: -146746.3037 | AH50: -146746.3037 | AI50: 0 | AL50: 144869.1049 | AN50: 113757.8189
A51: 2046 | B51: ='AEG Input File'!$AZ$676*Inflation!B26/100 -> 0 | C51: 0 | D51: 81792.91369 | E51: 342482.2236 | F51: 16874.93438 | G51: 18404.61615 | H51: -321.2331712 | I51: 63709.53071 | J51: 18404.61615 | K51: 72751.2222 | L51: 1891.531777 | M51: 3455.683055 | N51: ='AEG Input File'!$BX$676*Inflation!$B$26/100 -> 0 | O51: 1401.35723 | P51: 0 | Q51: 65.91125964 | R51: 830.0207852 | S51: 26049.12025 | T51: 9.001575914e-55 | V51: 0 | W51: 24 | X51: 0 | Y51: 0 | Z51: 0 | AA51: 0 | AB51: 0 | AC51: 0 | AD51: 0 | AE51: 26049.12025 | AF51: 0 | AG51: -26049.12025 | AH51: -26049.12025 | AI51: 0 | AL51: 25715.89634 | AN51: 93423.81532
A52: 2047 | B52: 0 | C52: 0 | D52: 63709.53071 | E52: 358934.6795 | F52: 10143.89561 | G52: 16452.45585 | H52: -1324.797652 | I52: 48581.87251 | J52: 16452.45585 | K52: 56145.70161 | L52: 1459.788242 | M52: 2666.920827 | N52: 0 | O52: 1125.287988 | P52: 0 | Q52: 50.25019468 | R52: 632.8009247 | S52: 22387.50403 | T52: 7.243419647e-55 | V52: 0 | W52: 25 | X52: 0 | Y52: 0 | Z52: 0 | AA52: 0 | AB52: 0 | AC52: 0 | AD52: 0 | AE52: 22387.50403 | AF52: 0 | AG52: -22387.50403 | AH52: -22387.50403 | AI52: 0 | AL52: 22101.12002 | AN52: 75019.19917
A53: 2048 | B53: 0 | C53: 0 | D53: 48581.87251 | E53: 373412.0716 | F53: 6105.370755 | G53: 14477.39215 | H53: -1758.124494 | I53: 35862.60485 | J53: 14477.39215 | K53: 42222.23868 | L53: 1097.778206 | M53: 2005.556337 | N53: 0 | O53: 878.5011498 | P53: 0 | Q53: 37.2137521 | R53: 468.6329454 | S53: 18965.07454 | T53: 5.745198067e-55 | V53: 0 | W53: 26 | X53: 0 | Y53: 0 | Z53: 0 | AA53: 0 | AB53: 0 | AC53: 0 | AD53: 0 | AE53: 18965.07454 | AF53: 0 | AG53: -18965.07454 | AH53: -18965.07454 | AI53: 0 | AL53: 18722.47072 | AN53: 58566.74332
A54: 2049 | B54: 0 | C54: 0 | D54: 35862.60485 | E54: 385891.3676 | F54: 3682.35298 | G54: 12479.29596 | H54: -1847.358025 | I54: 25230.66692 | J54: 12479.29596 | K54: 30546.63588 | L54: 794.212533 | M54: 1450.965204 | N54: 0 | O54: 661.3402675 | P54: 0 | Q54: 26.37669702 | R54: 332.1618627 | S54: 15744.35252 | T54: 4.465681433e-55 | V54: 0 | W54: 27 | X54: 0 | Y54: 0 | Z54: 0 | AA54: 0 | AB54: 0 | AC54: 0 | AD54: 0 | AE54: 15744.35252 | AF54: 0 | AG54: -15744.35252 | AH54: -15744.35252 | AI54: 0 | AL54: 15542.94861 | AN54: 44089.35116
A55: 2050 | B55: 0 | C55: 0 | D55: 25230.66692 | E55: 396349.4073 | F55: 1232.015737 | G55: 10458.03969 | H55: -1937.46503 | I55: 16710.09226 | J55: 10458.03969 | K55: 20970.37959 | L55: 545.2298693 | M55: 996.0930304 | N55: 0 | O55: 474.1508281 | P55: 0 | Q55: 17.59354251 | R55: 221.5555589 | S55: 12712.66252 | T55: 3.376073814e-55 | V55: 0 | W55: 28 | X55: 0 | Y55: 0 | Z55: 0 | AA55: 0 | AB55: 0 | AC55: 0 | AD55: 0 | AE55: 12712.66252 | AF55: 0 | AG55: -12712.66252 | AH55: -12712.66252 | AI55: 0 | AL55: 12550.0404 | AN55: 31610.05521
A56: 2051 | B56: 0 | C56: 0 | D56: 16710.09226 | E56: 404762.9046 | F56: 0 | G56: 8413.497302 | H56: -1766.834433 | I56: 10063.42939 | J56: 8413.497302 | K56: 13386.76082 | L56: 348.0557814 | M56: 635.8711391 | N56: 0 | O56: 317.2802327 | P56: 0 | Q56: 10.7597369 | R56: 135.4974146 | S56: 9860.961607 | T56: 2.451924906e-55 | V56: 0 | W56: 29 | X56: 0 | Y56: 0 | Z56: 0 | AA56: 0 | AB56: 0 | AC56: 0 | AD56: 0 | AE56: 9860.961607 | AF56: 0 | AG56: -9860.961607 | AH56: -9860.961607 | AI56: 0 | AL56: 9734.818836 | AN56: 21152.01552
A57: 2052 | B57: 0 | C57: 0 | D57: 10063.42939 | E57: 411108.4488 | F57: 0 | G57: 6345.54429 | H57: -1332.564301 | I57: 5050.4494 | J57: 6345.54429 | K57: 7556.939395 | L57: 196.4804243 | M57: 358.9546212 | N57: 0 | O57: 191.0777732 | P57: 0 | Q57: 5.641341369 | R57: 71.0414369 | S57: 7168.739887 | T57: 1.668949523e-55 | V57: 0 | W57: 30 | X57: 0 | Y57: 0 | Z57: 0 | AA57: 0 | AB57: 0 | AC57: 0 | AD57: 0 | AE57: 7168.739887 | AF57: 0 | AG57: -7168.739887 | AH57: -7168.739887 | AI57: 0 | AL57: 7077.036386 | AN57: 12738.51821
A58: 2053 | B58: 0 | C58: 0 | D58: 5050.4494 | E58: 415362.5066 | F58: 0 | G58: 4254.057715 | H58: -893.3521201 | I58: 1689.743805 | J58: 4254.057715 | K58: 3370.096603 | L58: 87.62251167 | M58: 160.0795886 | N58: 0 | O58: 95.89460886 | P58: 0 | Q58: 2.129778045 | R58: 26.82030438 | S58: 4626.604506 | T58: 1.008498456e-55 | V58: 0 | W58: 31 | X58: 0 | Y58: 0 | Z58: 0 | AA58: 0 | AB58: 0 | AC58: 0 | AD58: 0 | AE58: 4626.604506 | AF58: 0 | AG58: -4626.604506 | AH58: -4626.604506 | AI58: 0 | AL58: 4567.420348 | AN58: 6392.973924
A59: 2054 | B59: 0 | C59: 0 | D59: 1689.743805 | E59: 417501.4228 | F59: 0 | G59: 2138.916209 | H59: -449.1724039 | I59: -6.423306331e-12 | J59: 2138.916209 | K59: 844.8719027 | L59: 21.96666947 | M59: 40.13141538 | N59: 0 | O59: 32.08374314 | P59: 0 | Q59: 0.2432368362 | R59: 3.063082557 | S59: 2236.404357 | T59: 4.564315668e-56 | V59: 0 | W59: 32 | X59: 0 | Y59: 0 | Z59: 0 | AA59: 0 | AB59: 0 | AC59: 0 | AD59: 0 | AE59: 2236.404357 | AF59: 0 | AG59: -2236.404357 | AH59: -2236.404357 | AI59: 0 | AL59: 2207.795966 | AN59: 2138.916209
A60: 2055 | B60: 0 | C60: 0 | D60: -6.423306331e-12 | E60: 417501.4228 | F60: 0 | G60: 0 | H60: 0 | I60: -6.423306331e-12 | J60: 0 | K60: -6.423306331e-12 | L60: -1.670059646e-13 | M60: -3.051070507e-13 | N60: 0 | O60: -2.933120413e-13 | P60: 0 | Q60: -6.210951426e-15 | R60: -7.821453888e-14 | S60: -8.49850547e-13 | T60: -1.623978903e-71 | V60: 0 | W60: 33 | X60: 0 | Y60: 0 | Z60: 0 | AA60: 0 | AB60: 0 | AC60: 0 | AD60: 0 | AE60: -8.49850547e-13 | AF60: 0 | AG60: 8.49850547e-13 | AH60: 8.49850547e-13 | AI60: 0 | AL60: -8.389791425e-13 | AN60: -1.955413609e-11
A61: 2056 | B61: 0 | C61: 0 | D61: -6.423306331e-12 | E61: 417501.4228 | F61: 0 | G61: 0 | H61: 0 | I61: -6.423306331e-12 | J61: 0 | K61: -6.423306331e-12 | L61: -1.670059646e-13 | M61: -3.051070507e-13 | N61: 0 | O61: -2.933120413e-13 | P61: 0 | Q61: -6.210951426e-15 | R61: -7.821453888e-14 | S61: -8.49850547e-13 | T61: -1.520522549e-71 | V61: 0 | W61: 34 | X61: 0 | Y61: 0 | Z61: 0 | AA61: 0 | AB61: 0 | AC61: 0 | AD61: 0 | AE61: -8.49850547e-13 | AF61: 0 | AG61: 8.49850547e-13 | AH61: 8.49850547e-13 | AI61: 0 | AL61: -8.389791425e-13 | AN61: -1.955413609e-11
A62: 2057 | B62: 0 | C62: 0 | D62: -6.423306331e-12 | E62: 417501.4228 | F62: 0 | G62: 0 | H62: 0 | I62: -6.423306331e-12 | J62: 0 | K62: -6.423306331e-12 | L62: -1.670059646e-13 | M62: -3.051070507e-13 | N62: 0 | O62: -2.933120413e-13 | P62: 0 | Q62: -6.210951426e-15 | R62: -7.821453888e-14 | S62: -8.49850547e-13 | T62: -1.423656932e-71 | V62: 0 | W62: 35 | X62: 0 | Y62: 0 | Z62: 0 | AA62: 0 | AB62: 0 | AC62: 0 | AD62: 0 | AE62: -8.49850547e-13 | AF62: 0 | AG62: 8.49850547e-13 | AH62: 8.49850547e-13 | AI62: 0 | AL62: -8.389791425e-13 | AN62: -1.955413609e-11
A63: 2058 | B63: 0 | C63: 0 | D63: -6.423306331e-12 | E63: 417501.4228 | F63: 0 | G63: 0 | H63: 0 | I63: -6.423306331e-12 | J63: 0 | K63: -6.423306331e-12 | L63: -1.670059646e-13 | M63: -3.051070507e-13 | N63: 0 | O63: -2.933120413e-13 | P63: 0 | Q63: -6.210951426e-15 | R63: -7.821453888e-14 | S63: -8.49850547e-13 | T63: -1.332962185e-71 | V63: 0 | W63: 36 | X63: 0 | Y63: 0 | Z63: 0 | AA63: 0 | AB63: 0 | AC63: 0 | AD63: 0 | AE63: -8.49850547e-13 | AF63: 0 | AG63: 8.49850547e-13 | AH63: 8.49850547e-13 | AI63: 0 | AL63: -8.389791425e-13 | AN63: -1.955413609e-11
A64: 2059 | B64: 0 | C64: 0 | D64: -6.423306331e-12 | E64: 417501.4228 | F64: 0 | G64: 0 | H64: 0 | I64: -6.423306331e-12 | J64: 0 | K64: -6.423306331e-12 | L64: -1.670059646e-13 | M64: -3.051070507e-13 | N64: 0 | O64: -2.933120413e-13 | P64: 0 | Q64: -6.210951426e-15 | R64: -7.821453888e-14 | S64: -8.49850547e-13 | T64: -1.24804519e-71 | V64: 0 | W64: 37 | X64: 0 | Y64: 0 | Z64: 0 | AA64: 0 | AB64: 0 | AC64: 0 | AD64: 0 | AE64: -8.49850547e-13 | AF64: 0 | AG64: 8.49850547e-13 | AH64: 8.49850547e-13 | AI64: 0 | AL64: -8.389791425e-13 | AN64: -1.955413609e-11
A65: 2060 | B65: 0 | C65: 0 | D65: -6.423306331e-12 | E65: 417501.4228 | F65: 0 | G65: 0 | H65: 0 | I65: -6.423306331e-12 | J65: 0 | K65: -6.423306331e-12 | L65: -1.670059646e-13 | M65: -3.051070507e-13 | N65: 0 | O65: -2.933120413e-13 | P65: 0 | Q65: -6.210951426e-15 | R65: -7.821453888e-14 | S65: -8.49850547e-13 | T65: -1.168537873e-71 | V65: 0 | W65: 38 | X65: 0 | Y65: 0 | Z65: 0 | AA65: 0 | AB65: 0 | AC65: 0 | AD65: 0 | AE65: -8.49850547e-13 | AF65: 0 | AG65: 8.49850547e-13 | AH65: 8.49850547e-13 | AI65: 0 | AL65: -8.389791425e-13 | AN65: -1.955413609e-11
A66: 2061 | B66: 0 | C66: 0 | D66: -6.423306331e-12 | E66: 417501.4228 | F66: 0 | G66: 0 | H66: 0 | I66: -6.423306331e-12 | J66: 0 | K66: -6.423306331e-12 | L66: -1.670059646e-13 | M66: -3.051070507e-13 | N66: 0 | O66: -2.933120413e-13 | P66: 0 | Q66: -6.210951426e-15 | R66: -7.821453888e-14 | S66: -8.49850547e-13 | T66: -1.094095608e-71 | V66: 0 | W66: 39 | X66: 0 | Y66: 0 | Z66: 0 | AA66: 0 | AB66: 0 | AC66: 0 | AD66: 0 | AE66: -8.49850547e-13 | AF66: 0 | AG66: 8.49850547e-13 | AH66: 8.49850547e-13 | AI66: 0 | AL66: -8.389791425e-13 | AN66: -1.955413609e-11
A67: 2062 | B67: 0 | C67: 0 | D67: -6.423306331e-12 | E67: 417501.4228 | F67: 0 | G67: 0 | H67: 0 | I67: -6.423306331e-12 | J67: 0 | K67: -6.423306331e-12 | L67: -1.670059646e-13 | M67: -3.051070507e-13 | N67: 0 | O67: -2.933120413e-13 | P67: 0 | Q67: -6.210951426e-15 | R67: -7.821453888e-14 | S67: -8.49850547e-13 | T67: -1.024395723e-71 | V67: 0 | W67: 40 | X67: 0 | Y67: 0 | Z67: 0 | AA67: 0 | AB67: 0 | AC67: 0 | AD67: 0 | AE67: -8.49850547e-13 | AF67: 0 | AG67: 8.49850547e-13 | AH67: 8.49850547e-13 | AI67: 0 | AL67: -8.389791425e-13 | AN67: -1.955413609e-11
A68: 2063 | B68: 0 | C68: 0 | D68: -6.423306331e-12 | E68: 417501.4228 | F68: 0 | G68: 0 | H68: 0 | I68: -6.423306331e-12 | J68: 0 | K68: -6.423306331e-12 | L68: -1.670059646e-13 | M68: -3.051070507e-13 | N68: 0 | O68: -2.933120413e-13 | P68: 0 | Q68: -6.210951426e-15 | R68: -7.821453888e-14 | S68: -8.49850547e-13 | T68: -9.591361024e-72 | V68: 0 | W68: 41 | X68: 0 | Y68: 0 | Z68: 0 | AA68: 0 | AB68: 0 | AC68: 0 | AD68: 0 | AE68: -8.49850547e-13 | AF68: 0 | AG68: 8.49850547e-13 | AH68: 8.49850547e-13 | AI68: 0 | AL68: -8.389791425e-13 | AN68: -1.955413609e-11
A69: 2064 | B69: 0 | C69: 0 | D69: -6.423306331e-12 | E69: 417501.4228 | F69: 0 | G69: 0 | H69: 0 | I69: -6.423306331e-12 | J69: 0 | K69: -6.423306331e-12 | L69: -1.670059646e-13 | M69: -3.051070507e-13 | N69: 0 | O69: -2.933120413e-13 | P69: 0 | Q69: -6.210951426e-15 | R69: -7.821453888e-14 | S69: -8.49850547e-13 | T69: -8.980338774e-72 | V69: 0 | W69: 42 | X69: 0 | Y69: 0 | Z69: 0 | AA69: 0 | AB69: 0 | AC69: 0 | AD69: 0 | AE69: -8.49850547e-13 | AF69: 0 | AG69: 8.49850547e-13 | AH69: 8.49850547e-13 | AI69: 0 | AL69: -8.389791425e-13 | AN69: -1.955413609e-11
A70: 2065 | B70: 0 | C70: 0 | D70: -6.423306331e-12 | E70: 417501.4228 | F70: 0 | G70: 0 | H70: 0 | I70: -6.423306331e-12 | J70: 0 | K70: -6.423306331e-12 | L70: -1.670059646e-13 | M70: -3.051070507e-13 | N70: 0 | O70: -2.933120413e-13 | P70: 0 | Q70: -6.210951426e-15 | R70: -7.821453888e-14 | S70: -8.49850547e-13 | T70: -8.408241989e-72 | V70: 0 | W70: 43 | X70: 0 | Y70: 0 | Z70: 0 | AA70: 0 | AB70: 0 | AC70: 0 | AD70: 0 | AE70: -8.49850547e-13 | AF70: 0 | AG70: 8.49850547e-13 | AH70: 8.49850547e-13 | AI70: 0 | AL70: -8.389791425e-13 | AN70: -1.955413609e-11
A71: 2066 | B71: 0 | C71: 0 | D71: -6.423306331e-12 | E71: 417501.4228 | F71: 0 | G71: 0 | H71: 0 | I71: -6.423306331e-12 | J71: 0 | K71: -6.423306331e-12 | L71: -1.670059646e-13 | M71: -3.051070507e-13 | N71: 0 | O71: -2.933120413e-13 | P71: 0 | Q71: -6.210951426e-15 | R71: -7.821453888e-14 | S71: -8.49850547e-13 | T71: -7.872590904e-72 | V71: 0 | W71: 44 | X71: 0 | Y71: 0 | Z71: 0 | AA71: 0 | AB71: 0 | AC71: 0 | AD71: 0 | AE71: -8.49850547e-13 | AF71: 0 | AG71: 8.49850547e-13 | AH71: 8.49850547e-13 | AI71: 0 | AL71: -8.389791425e-13 | AN71: -1.955413609e-11
A72: 2067 | B72: 0 | C72: 0 | D72: -6.423306331e-12 | E72: 417501.4228 | F72: 0 | G72: 0 | H72: 0 | I72: -6.423306331e-12 | J72: 0 | K72: -6.423306331e-12 | L72: -1.670059646e-13 | M72: -3.051070507e-13 | N72: 0 | O72: -2.933120413e-13 | P72: 0 | Q72: -6.210951426e-15 | R72: -7.821453888e-14 | S72: -8.49850547e-13 | T72: -7.371063728e-72 | V72: 0 | W72: 45 | X72: 0 | Y72: 0 | Z72: 0 | AA72: 0 | AB72: 0 | AC72: 0 | AD72: 0 | AE72: -8.49850547e-13 | AF72: 0 | AG72: 8.49850547e-13 | AH72: 8.49850547e-13 | AI72: 0 | AL72: -8.389791425e-13 | AN72: -1.955413609e-11
A73: 2068 | B73: 0 | C73: 0 | D73: -6.423306331e-12 | E73: 417501.4228 | F73: 0 | G73: 0 | H73: 0 | I73: -6.423306331e-12 | J73: 0 | K73: -6.423306331e-12 | L73: -1.670059646e-13 | M73: -3.051070507e-13 | N73: 0 | O73: -2.933120413e-13 | P73: 0 | Q73: -6.210951426e-15 | R73: -7.821453888e-14 | S73: -8.49850547e-13 | T73: -6.901486581e-72 | V73: 0 | W73: 46 | X73: 0 | Y73: 0 | Z73: 0 | AA73: 0 | AB73: 0 | AC73: 0 | AD73: 0 | AE73: -8.49850547e-13 | AF73: 0 | AG73: 8.49850547e-13 | AH73: 8.49850547e-13 | AI73: 0 | AL73: -8.389791425e-13 | AN73: -1.955413609e-11
A74: 2069 | B74: 0 | C74: 0 | D74: -6.423306331e-12 | E74: 417501.4228 | F74: 0 | G74: 0 | H74: 0 | I74: -6.423306331e-12 | J74: 0 | K74: -6.423306331e-12 | L74: -1.670059646e-13 | M74: -3.051070507e-13 | N74: 0 | O74: -2.933120413e-13 | P74: 0 | Q74: -6.210951426e-15 | R74: -7.821453888e-14 | S74: -8.49850547e-13 | T74: -6.461824071e-72 | V74: 0 | W74: 47 | X74: 0 | Y74: 0 | Z74: 0 | AA74: 0 | AB74: 0 | AC74: 0 | AD74: 0 | AE74: -8.49850547e-13 | AF74: 0 | AG74: 8.49850547e-13 | AH74: 8.49850547e-13 | AI74: 0 | AL74: -8.389791425e-13 | AN74: -1.955413609e-11
A75: 2070 | B75: 0 | C75: 0 | D75: -6.423306331e-12 | E75: 417501.4228 | F75: 0 | G75: 0 | H75: 0 | I75: -6.423306331e-12 | J75: 0 | K75: -6.423306331e-12 | L75: -1.670059646e-13 | M75: -3.051070507e-13 | N75: 0 | O75: -2.933120413e-13 | P75: 0 | Q75: -6.210951426e-15 | R75: -7.821453888e-14 | S75: -8.49850547e-13 | T75: -6.050170472e-72 | V75: 0 | W75: 48 | X75: 0 | Y75: 0 | Z75: 0 | AA75: 0 | AB75: 0 | AC75: 0 | AD75: 0 | AE75: -8.49850547e-13 | AF75: 0 | AG75: 8.49850547e-13 | AH75: 8.49850547e-13 | AI75: 0 | AL75: -8.389791425e-13 | AN75: -1.955413609e-11
A76: 2071 | B76: 0 | C76: 0 | D76: -6.423306331e-12 | E76: 417501.4228 | F76: 0 | G76: 0 | H76: 0 | I76: -6.423306331e-12 | J76: 0 | K76: -6.423306331e-12 | L76: -1.670059646e-13 | M76: -3.051070507e-13 | N76: 0 | O76: -2.933120413e-13 | P76: 0 | Q76: -6.210951426e-15 | R76: -7.821453888e-14 | S76: -8.49850547e-13 | T76: -5.664741463e-72 | V76: 0 | W76: 49 | X76: 0 | Y76: 0 | Z76: 0 | AA76: 0 | AB76: 0 | AC76: 0 | AD76: 0 | AE76: -8.49850547e-13 | AF76: 0 | AG76: 8.49850547e-13 | AH76: 8.49850547e-13 | AI76: 0 | AL76: -8.389791425e-13 | AN76: -1.955413609e-11
A77: 2072 | B77: 0 | C77: 0 | D77: -6.423306331e-12 | E77: 417501.4228 | F77: 0 | G77: 0 | H77: 0 | I77: -6.423306331e-12 | J77: 0 | K77: -6.423306331e-12 | L77: -1.670059646e-13 | M77: -3.051070507e-13 | N77: 0 | O77: -2.933120413e-13 | P77: 0 | Q77: -6.210951426e-15 | R77: -7.821453888e-14 | S77: -8.49850547e-13 | T77: -5.303866394e-72 | V77: 0 | W77: 50 | X77: 0 | Y77: 0 | Z77: 0 | AA77: 0 | AB77: 0 | AC77: 0 | AD77: 0 | AE77: -8.49850547e-13 | AF77: 0 | AG77: 8.49850547e-13 | AH77: 8.49850547e-13 | AI77: 0 | AL77: -8.389791425e-13 | AN77: -1.955413609e-11
A78: 2073 | B78: 0 | C78: 0 | D78: -6.423306331e-12 | E78: 417501.4228 | F78: 0 | G78: 0 | H78: 0 | I78: -6.423306331e-12 | J78: 0 | K78: -6.423306331e-12 | L78: -1.670059646e-13 | M78: -3.051070507e-13 | N78: 0 | O78: -2.933120413e-13 | P78: 0 | Q78: -6.210951426e-15 | R78: -7.821453888e-14 | S78: -8.49850547e-13 | T78: -4.965981043e-72 | V78: 0 | W78: 51 | X78: 0 | Y78: 0 | Z78: 0 | AA78: 0 | AB78: 0 | AC78: 0 | AD78: 0 | AE78: -8.49850547e-13 | AF78: 0 | AG78: 8.49850547e-13 | AH78: 8.49850547e-13 | AI78: 0 | AL78: -8.389791425e-13 | AN78: -1.955413609e-11
A79: 2074 | B79: 0 | C79: 0 | D79: -6.423306331e-12 | E79: 417501.4228 | F79: 0 | G79: 0 | H79: 0 | I79: -6.423306331e-12 | J79: 0 | K79: -6.423306331e-12 | L79: -1.670059646e-13 | M79: -3.051070507e-13 | N79: 0 | O79: -2.933120413e-13 | P79: 0 | Q79: -6.210951426e-15 | R79: -7.821453888e-14 | S79: -8.49850547e-13 | T79: -4.649620841e-72 | V79: 0 | W79: 52 | X79: 0 | Y79: 0 | Z79: 0 | AA79: 0 | AB79: 0 | AC79: 0 | AD79: 0 | AE79: -8.49850547e-13 | AF79: 0 | AG79: 8.49850547e-13 | AH79: 8.49850547e-13 | AI79: 0 | AL79: -8.389791425e-13 | AN79: -1.955413609e-11
A80: 2075 | B80: 0 | C80: 0 | D80: -6.423306331e-12 | E80: 417501.4228 | F80: 0 | G80: 0 | H80: 0 | I80: -6.423306331e-12 | J80: 0 | K80: -6.423306331e-12 | L80: -1.670059646e-13 | M80: -3.051070507e-13 | N80: 0 | O80: -2.933120413e-13 | P80: 0 | Q80: -6.210951426e-15 | R80: -7.821453888e-14 | S80: -8.49850547e-13 | T80: -4.353414518e-72 | V80: 0 | W80: 53 | X80: 0 | Y80: 0 | Z80: 0 | AA80: 0 | AB80: 0 | AC80: 0 | AD80: 0 | AE80: -8.49850547e-13 | AF80: 0 | AG80: 8.49850547e-13 | AH80: 8.49850547e-13 | AI80: 0 | AL80: -8.389791425e-13 | AN80: -1.955413609e-11
A81: 2076 | B81: 0 | C81: 0 | D81: -6.423306331e-12 | E81: 417501.4228 | F81: 0 | G81: 0 | H81: 0 | I81: -6.423306331e-12 | J81: 0 | K81: -6.423306331e-12 | L81: -1.670059646e-13 | M81: -3.051070507e-13 | N81: 0 | O81: -2.933120413e-13 | P81: 0 | Q81: -6.210951426e-15 | R81: -7.821453888e-14 | S81: -8.49850547e-13 | T81: -4.07607816e-72 | V81: 0 | W81: 54 | X81: 0 | Y81: 0 | Z81: 0 | AA81: 0 | AB81: 0 | AC81: 0 | AD81: 0 | AE81: -8.49850547e-13 | AF81: 0 | AG81: 8.49850547e-13 | AH81: 8.49850547e-13 | AI81: 0 | AL81: -8.389791425e-13 | AN81: -1.955413609e-11
A82: 2077 | B82: 0 | C82: 0 | D82: -6.423306331e-12 | E82: 417501.4228 | F82: 0 | G82: 0 | H82: 0 | I82: -6.423306331e-12 | J82: 0 | K82: -6.423306331e-12 | L82: -1.670059646e-13 | M82: -3.051070507e-13 | N82: 0 | O82: -2.933120413e-13 | P82: 0 | Q82: -6.210951426e-15 | R82: -7.821453888e-14 | S82: -8.49850547e-13 | T82: -3.816409647e-72 | V82: 0 | W82: 55 | X82: 0 | Y82: 0 | Z82: 0 | AA82: 0 | AB82: 0 | AC82: 0 | AD82: 0 | AE82: -8.49850547e-13 | AF82: 0 | AG82: 8.49850547e-13 | AH82: 8.49850547e-13 | AI82: 0 | AL82: -8.389791425e-13 | AN82: -1.955413609e-11
A83: 2078 | B83: 0 | C83: 0 | D83: -6.423306331e-12 | E83: 417501.4228 | F83: 0 | G83: 0 | H83: 0 | I83: -6.423306331e-12 | J83: 0 | K83: -6.423306331e-12 | L83: -1.670059646e-13 | M83: -3.051070507e-13 | N83: 0 | O83: -2.933120413e-13 | P83: 0 | Q83: -6.210951426e-15 | R83: -7.821453888e-14 | S83: -8.49850547e-13 | T83: -3.573283442e-72 | V83: 0 | W83: 56 | X83: 0 | Y83: 0 | Z83: 0 | AA83: 0 | AB83: 0 | AC83: 0 | AD83: 0 | AE83: -8.49850547e-13 | AF83: 0 | AG83: 8.49850547e-13 | AH83: 8.49850547e-13 | AI83: 0 | AL83: -8.389791425e-13 | AN83: -1.955413609e-11
A84: 2079 | B84: 0 | C84: 0 | D84: -6.423306331e-12 | E84: 417501.4228 | F84: 0 | G84: 0 | H84: 0 | I84: -6.423306331e-12 | J84: 0 | K84: -6.423306331e-12 | L84: -1.670059646e-13 | M84: -3.051070507e-13 | N84: 0 | O84: -2.933120413e-13 | P84: 0 | Q84: -6.210951426e-15 | R84: -7.821453888e-14 | S84: -8.49850547e-13 | T84: -3.345645708e-72 | V84: 0 | W84: 57 | X84: 0 | Y84: 0 | Z84: 0 | AA84: 0 | AB84: 0 | AC84: 0 | AD84: 0 | AE84: -8.49850547e-13 | AF84: 0 | AG84: 8.49850547e-13 | AH84: 8.49850547e-13 | AI84: 0 | AL84: -8.389791425e-13 | AN84: -1.955413609e-11
A85: 2080 | B85: 0 | C85: 0 | D85: -6.423306331e-12 | E85: 417501.4228 | F85: 0 | G85: 0 | H85: 0 | I85: -6.423306331e-12 | J85: 0 | K85: -6.423306331e-12 | L85: -1.670059646e-13 | M85: -3.051070507e-13 | N85: 0 | O85: -2.933120413e-13 | P85: 0 | Q85: -6.210951426e-15 | R85: -7.821453888e-14 | S85: -8.49850547e-13 | T85: -3.132509745e-72 | V85: 0 | W85: 58 | X85: 0 | Y85: 0 | Z85: 0 | AA85: 0 | AB85: 0 | AC85: 0 | AD85: 0 | AE85: -8.49850547e-13 | AF85: 0 | AG85: 8.49850547e-13 | AH85: 8.49850547e-13 | AI85: 0 | AL85: -8.389791425e-13 | AN85: -1.955413609e-11
A86: 2081 | B86: 0 | C86: 0 | D86: -6.423306331e-12 | E86: 417501.4228 | F86: 0 | G86: 0 | H86: 0 | I86: -6.423306331e-12 | J86: 0 | K86: -6.423306331e-12 | L86: -1.670059646e-13 | M86: -3.051070507e-13 | N86: 0 | O86: -2.933120413e-13 | P86: 0 | Q86: -6.210951426e-15 | R86: -7.821453888e-14 | S86: -8.49850547e-13 | T86: -2.93295171e-72 | V86: 0 | W86: 59 | X86: 0 | Y86: 0 | Z86: 0 | AA86: 0 | AB86: 0 | AC86: 0 | AD86: 0 | AE86: -8.49850547e-13 | AF86: 0 | AG86: 8.49850547e-13 | AH86: 8.49850547e-13 | AI86: 0 | AL86: -8.389791425e-13 | AN86: -1.955413609e-11
A87: 2082 | B87: 0 | C87: 0 | D87: -6.423306331e-12 | E87: 417501.4228 | F87: 0 | G87: 0 | H87: 0 | I87: -6.423306331e-12 | J87: 0 | K87: -6.423306331e-12 | L87: -1.670059646e-13 | M87: -3.051070507e-13 | N87: 0 | O87: -2.933120413e-13 | P87: 0 | Q87: -6.210951426e-15 | R87: -7.821453888e-14 | S87: -8.49850547e-13 | T87: -2.746106616e-72 | V87: 0 | W87: 60 | X87: 0 | Y87: 0 | Z87: 0 | AA87: 0 | AB87: 0 | AC87: 0 | AD87: 0 | AE87: -8.49850547e-13 | AF87: 0 | AG87: 8.49850547e-13 | AH87: 8.49850547e-13 | AI87: 0 | AL87: -8.389791425e-13 | AN87: -1.955413609e-11
A88: 2083 | B88: 0 | C88: 0 | D88: -6.423306331e-12 | E88: 417501.4228 | F88: 0 | G88: 0 | H88: 0 | I88: -6.423306331e-12 | J88: 0 | K88: -6.423306331e-12 | L88: -1.670059646e-13 | M88: =IF(A88=1,($N$3+$N$2)*K88,($N$3+$N$2)*K88) -> -3.051070507e-13 | N88: 0 | O88: -2.933120413e-13 | P88: 0 | Q88: -6.210951426e-15 | R88: -7.821453888e-14 | S88: -8.49850547e-13 | T88: -2.571164578e-72 | V88: 0 | W88: 61 | X88: 0 | Y88: 0 | Z88: 0 | AA88: 0 | AB88: 0 | AC88: 0 | AD88: 0 | AE88: -8.49850547e-13 | AF88: 0 | AG88: 8.49850547e-13 | AH88: 8.49850547e-13 | AI88: 0 | AL88: -8.389791425e-13 | AN88: -1.955413609e-11
A89: 2084 | B89: 0 | C89: 0 | D89: -6.423306331e-12 | E89: 417501.4228 | F89: 0 | G89: 0 | H89: 0 | I89: -6.423306331e-12 | J89: 0 | K89: -6.423306331e-12 | L89: -1.670059646e-13 | M89: =IF(A89=1,($N$3+$N$2)*K89,($N$3+$N$2)*K89) -> -3.051070507e-13 | N89: 0 | O89: -2.933120413e-13 | P89: 0 | Q89: -6.210951426e-15 | R89: -7.821453888e-14 | S89: -8.49850547e-13 | T89: -2.407367307e-72 | V89: 0 | W89: 62 | X89: 0 | Y89: 0 | Z89: 0 | AA89: 0 | AB89: 0 | AC89: 0 | AD89: 0 | AE89: -8.49850547e-13 | AF89: 0 | AG89: 8.49850547e-13 | AH89: 8.49850547e-13 | AI89: 0 | AL89: -8.389791425e-13 | AN89: -1.955413609e-11
A90: 2085 | B90: 0 | C90: 0 | D90: -6.423306331e-12 | E90: 417501.4228 | F90: 0 | G90: 0 | H90: 0 | I90: -6.423306331e-12 | J90: 0 | K90: -6.423306331e-12 | L90: -1.670059646e-13 | M90: -3.051070507e-13 | N90: 0 | O90: -2.933120413e-13 | P90: 0 | Q90: -6.210951426e-15 | R90: -7.821453888e-14 | S90: -8.49850547e-13 | T90: -2.254004819e-72 | V90: 0 | W90: 63 | X90: 0 | Y90: 0 | Z90: 0 | AA90: 0 | AB90: 0 | AC90: 0 | AD90: 0 | AE90: -8.49850547e-13 | AF90: 0 | AG90: 8.49850547e-13 | AH90: 8.49850547e-13 | AI90: 0 | AL90: -8.389791425e-13 | AN90: -1.955413609e-11
A91: 2086 | B91: 0 | C91: 0 | D91: -6.423306331e-12 | E91: 417501.4228 | F91: 0 | G91: 0 | H91: 0 | I91: -6.423306331e-12 | J91: 0 | K91: -6.423306331e-12 | L91: -1.670059646e-13 | M91: -3.051070507e-13 | N91: 0 | O91: -2.933120413e-13 | P91: 0 | Q91: -6.210951426e-15 | R91: -7.821453888e-14 | S91: -8.49850547e-13 | T91: -2.110412362e-72 | V91: 0 | W91: 64 | X91: 0 | Y91: 0 | Z91: 0 | AA91: 0 | AB91: 0 | AC91: 0 | AD91: 0 | AE91: -8.49850547e-13 | AF91: 0 | AG91: 8.49850547e-13 | AH91: 8.49850547e-13 | AI91: 0 | AL91: -8.389791425e-13 | AN91: -1.955413609e-11
A92: =1+A91 -> 2087 | B92: 0 | C92: 0 | D92: =I91+C92 -> -6.423306331e-12 | E92: =E91+J92 -> 417501.4228 | F92: =CA201 -> 0 | G92: 0 | H92: =(F92-G92)*$D$2 -> 0 | I92: =D92-J92-H92 -> -6.423306331e-12 | J92: =CA387 -> 0 | K92: =(+I92+D92)/2 -> -6.423306331e-12 | L92: -1.670059646e-13 | M92: -3.051070507e-13 | N92: 0 | O92: =AN92*$D$10 -> -2.933120413e-13 | P92: 0 | Q92: =(+AL92-(G92+L92+N92+O92+P92))*$D$1 -> -6.210951426e-15 | R92: =(+AL92-(G92+L92+N92+O92+P92+Q92))*$D$2 -> -7.821453888e-14 | S92: =J92+M92+L92+N92+O92+P92+Q92+R92 -> -8.49850547e-13 | T92: -1.975967531e-72 | V92: 0 | W92: 65 | X92: 0 | Y92: 0 | Z92: 0 | AA92: 0 | AB92: 0 | AC92: 0 | AD92: 0 | AE92: =S92 -> -8.49850547e-13 | AF92: =V92 -> 0 | AG92: =AF92-AE92 -> 8.49850547e-13 | AH92: 8.49850547e-13 | AI92: 0 | AL92: -8.389791425e-13 | AN92: -1.955413609e-11
A93: 2088 | B93: 0 | C93: =B93 -> 0 | D93: -6.423306331e-12 | E93: 417501.4228 | F93: 0 | G93: =CA294 -> 0 | H93: 0 | I93: -6.423306331e-12 | J93: 0 | K93: -6.423306331e-12 | L93: =IF(A93=1,$N$1*K93,$N$1*K93) -> -1.670059646e-13 | M93: -3.051070507e-13 | N93: 0 | O93: -2.933120413e-13 | P93: =AL93*$T$8 -> 0 | Q93: -6.210951426e-15 | R93: -7.821453888e-14 | S93: -8.49850547e-13 | T93: =S93/(1+$D$3)^(A93-1) -> -1.850087573e-72 | V93: 0 | W93: =1+W92 -> 66 | X93: 0 | Y93: =+X93 -> 0 | Z93: =X93*$Z$24 -> 0 | AA93: 0 | AB93: 0 | AC93: 0 | AD93: 0 | AE93: -8.49850547e-13 | AF93: 0 | AG93: 8.49850547e-13 | AH93: =AF93-AE93 -> 8.49850547e-13 | AI93: =IF(A93=1,AF93-T89,AF93) -> 0 | AL93: =(+J93+L93+M93+N93+O93-(($D$1+(1-$D$1)*$D$2)*(G93+L93+N93+O93)))/$T$16 -> -8.389791425e-13 | AN93: =C93-J92+AN92 -> -1.955413609e-11
A94: 2089 | B94: 0 | C94: 0 | D94: -6.423306331e-12 | E94: 417501.4228 | F94: 0 | G94: 0 | H94: 0 | I94: -6.423306331e-12 | J94: 0 | K94: -6.423306331e-12 | L94: -1.670059646e-13 | M94: -3.051070507e-13 | N94: 0 | O94: -2.933120413e-13 | P94: 0 | Q94: -6.210951426e-15 | R94: -7.821453888e-14 | S94: -8.49850547e-13 | T94: -1.732226857e-72 | V94: 0 | W94: 67 | X94: 0 | Y94: 0 | Z94: 0 | AA94: 0 | AB94: 0 | AC94: 0 | AD94: 0 | AE94: -8.49850547e-13 | AF94: 0 | AG94: 8.49850547e-13 | AH94: 8.49850547e-13 | AI94: 0 | AL94: -8.389791425e-13 | AN94: -1.955413609e-11
A95: 2090 | B95: 0 | C95: 0 | D95: -6.423306331e-12 | E95: 417501.4228 | F95: 0 | G95: 0 | H95: 0 | I95: -6.423306331e-12 | J95: 0 | K95: -6.423306331e-12 | L95: -1.670059646e-13 | M95: -3.051070507e-13 | N95: 0 | O95: -2.933120413e-13 | P95: 0 | Q95: -6.210951426e-15 | R95: -7.821453888e-14 | S95: -8.49850547e-13 | T95: -1.621874515e-72 | V95: 0 | W95: 68 | X95: 0 | Y95: 0 | Z95: 0 | AA95: 0 | AB95: 0 | AC95: 0 | AD95: 0 | AE95: -8.49850547e-13 | AF95: 0 | AG95: 8.49850547e-13 | AH95: 8.49850547e-13 | AI95: 0 | AL95: -8.389791425e-13 | AN95: -1.955413609e-11
A96: 2091 | B96: 0 | C96: 0 | D96: -6.423306331e-12 | E96: 417501.4228 | F96: 0 | G96: 0 | H96: 0 | I96: -6.423306331e-12 | J96: 0 | K96: -6.423306331e-12 | L96: -1.670059646e-13 | M96: -3.051070507e-13 | N96: 0 | O96: -2.933120413e-13 | P96: 0 | Q96: -6.210951426e-15 | R96: -7.821453888e-14 | S96: -8.49850547e-13 | T96: -1.518552222e-72 | V96: 0 | W96: 69 | X96: 0 | Y96: 0 | Z96: 0 | AA96: 0 | AB96: 0 | AC96: 0 | AD96: 0 | AE96: -8.49850547e-13 | AF96: 0 | AG96: 8.49850547e-13 | AH96: 8.49850547e-13 | AI96: 0 | AL96: -8.389791425e-13 | AN96: -1.955413609e-11
A97: 2092 | B97: 0 | C97: 0 | D97: -6.423306331e-12 | E97: 417501.4228 | F97: 0 | G97: 0 | H97: 0 | I97: -6.423306331e-12 | J97: 0 | K97: -6.423306331e-12 | L97: -1.670059646e-13 | M97: -3.051070507e-13 | N97: 0 | O97: -2.933120413e-13 | P97: 0 | Q97: -6.210951426e-15 | R97: -7.821453888e-14 | S97: -8.49850547e-13 | T97: -1.421812125e-72 | V97: 0 | W97: 70 | X97: 0 | Y97: 0 | Z97: 0 | AA97: 0 | AB97: 0 | AC97: 0 | AD97: 0 | AE97: -8.49850547e-13 | AF97: 0 | AG97: 8.49850547e-13 | AH97: 8.49850547e-13 | AI97: 0 | AL97: -8.389791425e-13 | AN97: -1.955413609e-11
A98: 2093 | B98: 0 | C98: 0 | D98: -6.423306331e-12 | E98: 417501.4228 | F98: 0 | G98: 0 | H98: 0 | I98: -6.423306331e-12 | J98: 0 | K98: -6.423306331e-12 | L98: -1.670059646e-13 | M98: -3.051070507e-13 | N98: 0 | O98: -2.933120413e-13 | P98: 0 | Q98: -6.210951426e-15 | R98: -7.821453888e-14 | S98: -8.49850547e-13 | T98: -1.331234902e-72 | V98: 0 | W98: 71 | X98: 0 | Y98: 0 | Z98: 0 | AA98: 0 | AB98: 0 | AC98: 0 | AD98: 0 | AE98: -8.49850547e-13 | AF98: 0 | AG98: 8.49850547e-13 | AH98: 8.49850547e-13 | AI98: 0 | AL98: -8.389791425e-13 | AN98: -1.955413609e-11
A99: 2094 | B99: 0 | C99: 0 | D99: -6.423306331e-12 | E99: 417501.4228 | F99: 0 | G99: 0 | H99: 0 | I99: -6.423306331e-12 | J99: 0 | K99: -6.423306331e-12 | L99: -1.670059646e-13 | M99: -3.051070507e-13 | N99: 0 | O99: -2.933120413e-13 | P99: 0 | Q99: -6.210951426e-15 | R99: -7.821453888e-14 | S99: -8.49850547e-13 | T99: -1.246427945e-72 | V99: 0 | W99: 72 | X99: 0 | Y99: 0 | Z99: 0 | AA99: 0 | AB99: 0 | AC99: 0 | AD99: 0 | AE99: -8.49850547e-13 | AF99: 0 | AG99: 8.49850547e-13 | AH99: 8.49850547e-13 | AI99: 0 | AL99: -8.389791425e-13 | AN99: -1.955413609e-11
A100: 2095 | B100: 0 | C100: 0 | D100: -6.423306331e-12 | E100: 417501.4228 | F100: 0 | G100: 0 | H100: 0 | I100: -6.423306331e-12 | J100: 0 | K100: -6.423306331e-12 | L100: -1.670059646e-13 | M100: -3.051070507e-13 | N100: 0 | O100: -2.933120413e-13 | P100: 0 | Q100: -6.210951426e-15 | R100: -7.821453888e-14 | S100: -8.49850547e-13 | T100: -1.167023655e-72 | V100: 0 | W100: 73 | X100: 0 | Y100: 0 | Z100: 0 | AA100: 0 | AB100: 0 | AC100: 0 | AD100: 0 | AE100: -8.49850547e-13 | AF100: 0 | AG100: 8.49850547e-13 | AH100: 8.49850547e-13 | AI100: 0 | AL100: -8.389791425e-13 | AN100: -1.955413609e-11
A101: 2096 | B101: 0 | C101: 0 | D101: -6.423306331e-12 | E101: 417501.4228 | F101: 0 | G101: 0 | H101: 0 | I101: -6.423306331e-12 | J101: 0 | K101: -6.423306331e-12 | L101: -1.670059646e-13 | M101: -3.051070507e-13 | N101: 0 | O101: -2.933120413e-13 | P101: 0 | Q101: -6.210951426e-15 | R101: -7.821453888e-14 | S101: -8.49850547e-13 | T101: -1.092677854e-72 | V101: 0 | W101: 74 | X101: 0 | Y101: 0 | Z101: 0 | AA101: 0 | AB101: 0 | AC101: 0 | AD101: 0 | AE101: -8.49850547e-13 | AF101: 0 | AG101: 8.49850547e-13 | AH101: 8.49850547e-13 | AI101: 0 | AL101: -8.389791425e-13 | AN101: -1.955413609e-11
A102: 2097 | B102: 0 | C102: 0 | D102: -6.423306331e-12 | E102: 417501.4228 | F102: 0 | G102: 0 | H102: 0 | I102: -6.423306331e-12 | J102: 0 | K102: -6.423306331e-12 | L102: -1.670059646e-13 | M102: -3.051070507e-13 | N102: 0 | O102: -2.933120413e-13 | P102: 0 | Q102: -6.210951426e-15 | R102: -7.821453888e-14 | S102: -8.49850547e-13 | T102: -1.023068288e-72 | V102: 0 | W102: 75 | X102: 0 | Y102: 0 | Z102: 0 | AA102: 0 | AB102: 0 | AC102: 0 | AD102: 0 | AE102: -8.49850547e-13 | AF102: 0 | AG102: 8.49850547e-13 | AH102: 8.49850547e-13 | AI102: 0 | AL102: -8.389791425e-13 | AN102: -1.955413609e-11
A103: 2098 | B103: 0 | C103: 0 | D103: -6.423306331e-12 | E103: 417501.4228 | F103: 0 | G103: 0 | H103: 0 | I103: -6.423306331e-12 | J103: 0 | K103: -6.423306331e-12 | L103: -1.670059646e-13 | M103: -3.051070507e-13 | N103: 0 | O103: -2.933120413e-13 | P103: 0 | Q103: -6.210951426e-15 | R103: -7.821453888e-14 | S103: -8.49850547e-13 | T103: -9.578932324e-73 | V103: 0 | W103: 76 | X103: 0 | Y103: 0 | Z103: 0 | AA103: 0 | AB103: 0 | AC103: 0 | AD103: 0 | AE103: -8.49850547e-13 | AF103: 0 | AG103: 8.49850547e-13 | AH103: 8.49850547e-13 | AI103: 0 | AL103: -8.389791425e-13 | AN103: -1.955413609e-11
A104: = | B104: = | C104: = | D104: = | E104: = | F104: = | G104: = | H104: = | I104: = | J104: = | K104: = | L104: = | M104: = | N104: = | O104: = | P104: = | Q104: = | R104: = | S104: = | T104: =
A106: (a) Time Period in Years
A107: (b) Capital Additions Tax Basis
A108: (c) Capital Additions Book Basis
A109: (d) Rate Base Beginning of Period = Previous(i) + Previous(c)
A110: (e) Accumulated Depreciation = Previous(e) + (j)
A111: (f) Tax Depreciation = Modified ACRS Schedules Times The Tax Basis
A112: (g) Book Depreciation on Tax Basis = Straight Line Depreciation of Tax Basis
A113: (h) Deferred Taxes = [(f)-(g)] * Federal Income Tax Rate
A114: (i) Rate Base End of Period = (d) - (j) - (h)
A115: (j) Book Depreciation = Straight Line Per Book Life
A116: (k) Average Rate Base = [(d) + (i)] / 2
A117: (l) Interest Expense = Weighted Cost of Debt * (k)
A118: (m) Equity Return = [Weighted Cost of Preferred + Weighted Cost of Common] * (k)
A119: (n) Operating and Maintenance Expense = Previous(n) * [1 + O&M Escalation Factor]
A120: (o) Property Taxes = Property Tax Rate * (d)
A121: (p) Miscellaneous Revenue Items = Revenue Requirements * Miscellaneous Revenue Items Percentage
A122: (q) State Income Tax = [Revenue Requirement - [(g) + (l) + (m) + (n) + (o) + (p)] * State Income Tax Rate
A123: (r) Federal Income Taxes = [Revenue Requirements - [(g) + (l) + (n) + (o) + Miscellaneous Revenue Items + State Tax] * Federal Income Tax Rate
A124: (s) Total Revenue Requirements = (j) + (l) + (m) + (n) + (o) + (p) + (q) + (r)
A125: (t) Present Value Revenue Requirements = Total Revenue Requirements / [1 + Discount Factor] ^ [(a) - .5]
A127: Revenue Requirements = [(j) + (l) + (m) + (n) + (o) - Federal Income Tax Rate * [(g) + (l) + (n) + (o)]] / Conversion Factor
A130: TAX DEPRECIATION
A132: Class => | B132: =$D$4 -> 4
C133: 1 | D133: 2 | E133: 3 | F133: 4 | G133: 5 | H133: 6 | I133: 7 | J133: 8 | K133: 9 | L133: 10 | M133: 11 | N133: 12 | O133: 13 | P133: 14 | Q133: 15 | R133: 16 | S133: 17 | T133: 18 | U133: 19 | V133: 20 | W133: 21 | X133: 22 | Y133: 23 | Z133: 24 | AA133: 25 | AB133: 26 | AC133: 27 | AD133: 28 | AE133: 29 | AF133: 30 | AG133: 31 | AH133: 32 | AI133: 33 | AJ133: 34 | AK133: 35 | AL133: 36 | AM133: 37 | AN133: 38 | AO133: 39 | AP133: 40 | AQ133: 41 | AR133: 42 | AS133: 43 | AT133: 44 | AU133: 45 | AV133: 46 | AW133: 47 | AX133: 48 | AY133: 49 | AZ133: 50 | BA133: 51 | BB133: 52 | BC133: 53 | BD133: 54 | BE133: 55 | BF133: 56 | BG133: 57 | BH133: 58 | BI133: 59 | BJ133: 60 | BK133: 61 | BL133: 62 | BM133: 63 | BN133: 64 | BO133: 65 | BP133: 66 | BQ133: 67 | BR133: 68 | BS133: 69 | BT133: 70 | BU133: 71 | BV133: 72 | BW133: 73 | BX133: 74 | BY133: 75 | BZ133: 76 | CA133: Total
C134: - | D134: - | E134: - | F134: - | G134: - | H134: - | I134: - | J134: - | K134: - | L134: - | M134: - | N134: - | O134: - | P134: - | Q134: - | R134: - | S134: - | T134: - | U134: - | V134: - | W134: - | X134: - | Y134: - | Z134: - | AA134: - | AB134: - | AC134: - | AD134: - | AE134: - | AF134: - | AG134: - | AH134: - | AI134: - | AJ134: - | AK134: - | AL134: - | AM134: - | AN134: - | AO134: - | AP134: - | AQ134: - | AR134: - | AS134: - | AT134: - | AU134: - | AV134: - | AW134: - | AX134: - | AY134: - | AZ134: - | BA134: - | BB134: - | BC134: - | BD134: - | BE134: - | BF134: - | BG134: - | BH134: - | BI134: - | BJ134: - | BK134: - | BL134: - | BM134: - | BN134: - | BO134: - | BP134: - | BQ134: - | BR134: - | BS134: - | BT134: - | BU134: - | BV134: - | BW134: - | BX134: - | BY134: - | BZ134: - | CA134: -
A135: Rate | B135: Capital | C135: =$B28 -> 0 | D135: =$B29 -> 16604.47918 | E135: =$B30 -> 16862.49961 | F135: =$B31 -> 17080.39084 | G135: =$B32 -> 17299.79126 | H135: =$B33 -> 17520.77525 | I135: =$B34 -> 17737.54657 | J135: =$B35 -> 17955.73493 | K135: =$B36 -> 18175.32728 | L135: =$B37 -> 18396.31034 | M135: =$B38 -> 18618.67053 | N135: =$B39 -> 18842.39404 | O135: =$B40 -> 19067.46684 | P135: =$B41 -> 19293.87464 | Q135: =$B42 -> 19521.60293 | R135: =$B43 -> 19750.63701 | S135: =$B44 -> 19980.96196 | T135: =$B45 -> 20212.56268 | U135: =$B46 -> 20445.42388 | V135: =$B47 -> 20679.53011 | W135: =$B48 -> 20914.86576 | X135: =$B49 -> 21151.41505 | Y135: =$B50 -> 21389.16209 | Z135: =$B51 -> 0 | AA135: =$B52 -> 0 | AB135: =$B53 -> 0 | AC135: =$B54 -> 0 | AD135: =$B55 -> 0 | AE135: =$B56 -> 0 | AF135: =$B57 -> 0 | AG135: =$B58 -> 0 | AH135: =$B59 -> 0 | AI135: =$B60 -> 0 | AJ135: =$B61 -> 0 | AK135: =$B62 -> 0 | AL135: =$B63 -> 0 | AM135: =$B64 -> 0 | AN135: =$B65 -> 0 | AO135: =$B66 -> 0 | AP135: =$B67 -> 0 | AQ135: =$B68 -> 0 | AR135: =$B69 -> 0 | AS135: =$B70 -> 0 | AT135: =$B71 -> 0 | AU135: =$B72 -> 0 | AV135: =$B73 -> 0 | AW135: =$B74 -> 0 | AX135: =$B75 -> 0 | AY135: =$B76 -> 0 | AZ135: =$B77 -> 0 | BA135: =$B78 -> 0 | BB135: =$B79 -> 0 | BC135: =$B80 -> 0 | BD135: =$B81 -> 0 | BE135: =$B82 -> 0 | BF135: =$B83 -> 0 | BG135: =$B84 -> 0 | BH135: =$B85 -> 0 | BI135: =$B86 -> 0 | BJ135: =$B87 -> 0 | BK135: =$B88 -> 0 | BL135: =$B89 -> 0 | BM135: =$B90 -> 0 | BN135: =$B91 -> 0 | BO135: =$B92 -> 0 | BP135: =$B93 -> 0 | BQ135: =$B94 -> 0 | BR135: =$B95 -> 0 | BS135: =$B96 -> 0 | BT135: =$B97 -> 0 | BU135: =$B98 -> 0 | BV135: =$B99 -> 0 | BW135: =$B100 -> 0 | BX135: =$B101 -> 0 | BY135: =$B102 -> 0 | BZ135: =$B103 -> 0 | CA135: =SUM($C135:$BZ135) -> 417501.4228 | CC135: 31.5 Year | CD135: 20 Years | CE135: 7 Years | CF135: 5 Years
C136: - | D136: - | E136: - | F136: - | G136: - | H136: - | I136: - | J136: - | K136: - | L136: - | M136: - | N136: - | O136: - | P136: - | Q136: - | R136: - | S136: - | T136: - | U136: - | V136: - | W136: - | X136: - | Y136: - | Z136: - | AA136: - | AB136: - | AC136: - | AD136: - | AE136: - | AF136: - | AG136: - | AH136: - | AI136: - | AJ136: - | AK136: - | AL136: - | AM136: - | AN136: - | AO136: - | AP136: - | AQ136: - | AR136: - | AS136: - | AT136: - | AU136: - | AV136: - | AW136: - | AX136: - | AY136: - | AZ136: - | BA136: - | BB136: - | BC136: - | BD136: - | BE136: - | BF136: - | BG136: - | BH136: - | BI136: - | BJ136: - | BK136: - | BL136: - | BM136: - | BN136: - | BO136: - | BP136: - | BQ136: - | BR136: - | BS136: - | BT136: - | BU136: - | BV136: - | BW136: - | BX136: - | BY136: - | BZ136: - | CA136: -
A137: =IF($B$132=1,CC137,IF($B$132=2,CD137,IF($B$132=3,CE137,IF($B$132=4,CF137,#VALUE!)))) -> 0.2 | B137: =+B136+1 -> 1 | C137: =C$135*$A137 -> 0 | CA137: =SUM($C137:$BZ137) -> 0 | CC137: 0.01587 | CD137: 0.0375 | CE137: 0.14286 | CF137: 0.2
A138: =IF($B$132=1,CC138,IF($B$132=2,CD138,IF($B$132=3,CE138,IF($B$132=4,CF138,#VALUE!)))) -> 0.32 | B138: =+B137+1 -> 2 | C138: =C$135*$A138 -> 0 | D138: =D$135*$A137 -> 3320.895835 | CA138: 3320.895835 | CC138: 0.03175 | CD138: 0.07219 | CE138: 0.2449 | CF138: 0.32
A139: 0.192 | B139: 3 | C139: 0 | D139: =D$135*$A138 -> 5313.433337 | E139: =E$135*$A137 -> 3372.499922 | CA139: 8685.933258 | CC139: 0.03175 | CD139: 0.06678 | CE139: 0.17493 | CF139: 0.192
A140: 0.1152 | B140: 4 | C140: 0 | D140: 3188.060002 | E140: =E$135*$A138 -> 5395.999875 | F140: =F$135*$A137 -> 3416.078168 | CA140: 12000.13804 | CC140: 0.03175 | CD140: 0.06178 | CE140: 0.12495 | CF140: 0.1152
A141: 0.1152 | B141: 5 | C141: 0 | D141: 1912.836001 | E141: 3237.599925 | F141: =F$135*$A138 -> 5465.725069 | G141: =G$135*$A137 -> 3459.958252 | CA141: 14076.11925 | CC141: 0.03175 | CD141: 0.05715 | CE141: 0.08925 | CF141: 0.1152
A142: 0.0576 | B142: 6 | C142: 0 | D142: 1912.836001 | E142: 1942.559955 | F142: 3279.435041 | G142: =G$135*$A138 -> 5535.933203 | H142: =H$135*$A137 -> 3504.15505 | CA142: 16174.91925 | CC142: 0.03175 | CD142: 0.05286 | CE142: 0.08925 | CF142: 0.0576
A143: 0 | B143: 7 | C143: 0 | D143: 956.4180006 | E143: 1942.559955 | F143: 1967.661025 | G143: 3321.559922 | H143: =H$135*$A138 -> 5606.64808 | I143: =I$135*$A137 -> 3547.509314 | CA143: 17342.3563 | CC143: 0.03175 | CD143: 0.0489 | CE143: 0.08925 | CF143: 0
A144: 0 | B144: 8 | C144: 0 | D144: 0 | E144: 971.2799774 | F144: 1967.661025 | G144: 1992.935953 | H144: 3363.988848 | I144: =I$135*$A138 -> 5676.014902 | J144: =J$135*$A137 -> 3591.146985 | CA144: 17563.02769 | CC144: 0.03175 | CD144: 0.04523 | CE144: 0.04461 | CF144: 0
A145: 0 | B145: 9 | C145: 0 | D145: 0 | E145: 0 | F145: 983.8305124 | G145: 1992.935953 | H145: 2018.393309 | I145: 3405.608941 | J145: =J$135*$A138 -> 5745.835176 | K145: =K$135*$A137 -> 3635.065456 | CA145: 17781.66935 | CC145: 0.03175 | CD145: 0.04461 | CE145: 0 | CF145: 0
A146: 0 | B146: 10 | C146: 0 | D146: 0 | E146: 0 | F146: 0 | G146: 996.4679766 | H146: 2018.393309 | I146: 2043.365365 | J146: 3447.501106 | K146: =K$135*$A138 -> 5816.10473 | L146: =L$135*$A137 -> 3679.262067 | CA146: 18001.09455 | CC146: 0.03175 | CD146: 0.04461 | CE146: 0 | CF146: 0
A147: 0 | B147: 11 | C147: 0 | D147: 0 | E147: 0 | F147: 0 | G147: 0 | H147: 1009.196654 | I147: 2043.365365 | J147: 2068.500663 | K147: 3489.662838 | L147: =L$135*$A138 -> 5886.819307 | M147: =M$135*$A137 -> 3723.734105 | CA147: 18221.27893 | CC147: 0.03175 | CD147: 0.04461 | CE147: 0 | CF147: 0
A148: 0 | B148: 12 | C148: 0 | D148: 0 | E148: 0 | F148: 0 | G148: 0 | H148: 0 | I148: 1021.682682 | J148: 2068.500663 | K148: 2093.797703 | L148: 3532.091584 | M148: =M$135*$A138 -> 5957.974568 | N148: =N$135*$A137 -> 3768.478809 | CA148: 18442.52601 | CC148: 0.03175 | CD148: 0.04461 | CE148: 0 | CF148: 0
A149: 0 | B149: 13 | C149: 0 | D149: 0 | E149: 0 | F149: 0 | G149: 0 | H149: 0 | I149: 0 | J149: 1034.250332 | K149: 2093.797703 | L149: 2119.254951 | M149: 3574.784741 | N149: =N$135*$A138 -> 6029.566094 | O149: =O$135*$A137 -> 3813.493368 | CA149: 18665.14719 | CC149: 0.03175 | CD149: 0.04461 | CE149: 0 | CF149: 0
A150: 0 | B150: 14 | C150: 0 | D150: 0 | E150: 0 | F150: 0 | G150: 0 | H150: 0 | I150: 0 | J150: 0 | K150: 1046.898851 | L150: 2119.254951 | M150: 2144.870845 | N150: 3617.739657 | O150: =O$135*$A138 -> 6101.589389 | P150: =P$135*$A137 -> 3858.774927 | CA150: 18889.12862 | CC150: 0.03175 | CD150: 0.04461 | CE150: 0 | CF150: 0
A151: 0 | B151: 15 | C151: 0 | D151: 0 | E151: 0 | F151: 0 | G151: 0 | H151: 0 | I151: 0 | J151: 0 | K151: 0 | L151: 1059.627475 | M151: 2144.870845 | N151: 2170.643794 | O151: 3660.953634 | P151: =P$135*$A138 -> 6174.039884 | Q151: =Q$135*$A137 -> 3904.320586 | CA151: 19114.45622 | CC151: 0.03175 | CD151: 0.04461 | CE151: 0 | CF151: 0
A152: 0 | B152: 16 | C152: 0 | D152: 0 | E152: 0 | F152: 0 | G152: 0 | H152: 0 | I152: 0 | J152: 0 | K152: 0 | L152: 0 | M152: 1072.435422 | N152: 2170.643794 | O152: 2196.57218 | P152: 3704.42393 | Q152: =Q$135*$A138 -> 6246.912938 | R152: =R$135*$A137 -> 3950.127402 | CA152: 19341.11567 | CC152: 0.03175 | CD152: 0.04461 | CE152: 0 | CF152: 0
A153: 0 | B153: 17 | C153: 0 | D153: 0 | E153: 0 | F153: 0 | G153: 0 | H153: 0 | I153: 0 | J153: 0 | K153: 0 | L153: 0 | M153: 0 | N153: 1085.321897 | O153: 2196.57218 | P153: 2222.654358 | Q153: 3748.147763 | R153: =R$135*$A138 -> 6320.203843 | S153: =S$135*$A137 -> 3996.192392 | CA153: 19569.09243 | CC153: 0.03175 | CD153: 0.04461 | CE153: 0 | CF153: 0
A154: 0 | B154: 18 | C154: 0 | D154: 0 | E154: 0 | F154: 0 | G154: 0 | H154: 0 | I154: 0 | J154: 0 | K154: 0 | L154: 0 | M154: 0 | N154: 0 | O154: 1098.28609 | P154: 2222.654358 | Q154: 2248.888658 | R154: 3792.122306 | S154: =S$135*$A138 -> 6393.907827 | T154: =T$135*$A137 -> 4042.512536 | CA154: 19798.37177 | CC154: 0.03175 | CD154: 0.04461 | CE154: 0 | CF154: 0
A155: 0 | B155: 19 | C155: 0 | D155: 0 | E155: 0 | F155: 0 | G155: 0 | H155: 0 | I155: 0 | J155: 0 | K155: 0 | L155: 0 | M155: 0 | N155: 0 | O155: 0 | P155: 1111.327179 | Q155: 2248.888658 | R155: 2275.273383 | S155: 3836.344696 | T155: =T$135*$A138 -> 6468.020057 | U155: =U$135*$A137 -> 4089.084776 | CA155: 20028.93875 | CC155: 0.03175 | CD155: 0.04461 | CE155: 0 | CF155: 0
A156: 0 | B156: 20 | C156: 0 | D156: 0 | E156: 0 | F156: 0 | G156: 0 | H156: 0 | I156: 0 | J156: 0 | K156: 0 | L156: 0 | M156: 0 | N156: 0 | O156: 0 | P156: 0 | Q156: 1124.444329 | R156: 2275.273383 | S156: 2301.806818 | T156: 3880.812034 | U156: =U$135*$A138 -> 6542.535642 | V156: =V$135*$A137 -> 4135.906023 | CA156: 20260.77823 | CC156: 0.03175 | CD156: 0.04461 | CE156: 0 | CF156: 0
A157: 0 | B157: 21 | C157: 0 | D157: 0 | E157: 0 | F157: 0 | G157: 0 | H157: 0 | I157: 0 | J157: 0 | K157: 0 | L157: 0 | M157: 0 | N157: 0 | O157: 0 | P157: 0 | Q157: 0 | R157: 1137.636692 | S157: 2301.806818 | T157: 2328.487221 | U157: 3925.521385 | V157: =V$135*$A138 -> 6617.449636 | W157: =W$135*$A137 -> 4182.973152 | CA157: 20493.8749 | CC157: 0.03175 | CD157: 0.02229 | CE157: 0 | CF157: 0
A158: 0 | B158: 22 | C158: 0 | D158: 0 | E158: 0 | F158: 0 | G158: 0 | H158: 0 | I158: 0 | J158: 0 | K158: 0 | L158: 0 | M158: 0 | N158: 0 | O158: 0 | P158: 0 | Q158: 0 | R158: 0 | S158: 1150.903409 | T158: 2328.487221 | U158: 2355.312831 | V158: 3970.469782 | W158: =W$135*$A138 -> 6692.757043 | X158: =X$135*$A137 -> 4230.283011 | CA158: 20728.2133 | CC158: 0.03175 | CD158: 0 | CE158: 0 | CF158: 0
A159: 0 | B159: 23 | C159: 0 | D159: 0 | E159: 0 | F159: 0 | G159: 0 | H159: 0 | I159: 0 | J159: 0 | K159: 0 | L159: 0 | M159: 0 | N159: 0 | O159: 0 | P159: 0 | Q159: 0 | R159: 0 | S159: 0 | T159: 1164.24361 | U159: 2355.312831 | V159: 2382.281869 | W159: 4015.654226 | X159: =X$135*$A138 -> 6768.452817 | Y159: =Y$135*$A137 -> 4277.832419 | CA159: 20963.77777 | CC159: 0.03175 | CD159: 0 | CE159: 0 | CF159: 0
A160: 0 | B160: 24 | C160: 0 | D160: 0 | E160: 0 | F160: 0 | G160: 0 | H160: 0 | I160: 0 | J160: 0 | K160: 0 | L160: 0 | M160: 0 | N160: 0 | O160: 0 | P160: 0 | Q160: 0 | R160: 0 | S160: 0 | T160: 0 | U160: 1177.656416 | V160: 2382.281869 | W160: 2409.392535 | X160: 4061.07169 | Y160: =Y$135*$A138 -> 6844.53187 | Z160: =Z$135*$A137 -> 0 | CA160: 16874.93438 | CC160: 0.03175 | CD160: 0 | CE160: 0 | CF160: 0
A161: 0 | B161: 25 | C161: 0 | D161: 0 | E161: 0 | F161: 0 | G161: 0 | H161: 0 | I161: 0 | J161: 0 | K161: 0 | L161: 0 | M161: 0 | N161: 0 | O161: 0 | P161: 0 | Q161: 0 | R161: 0 | S161: 0 | T161: 0 | U161: 0 | V161: 1191.140935 | W161: 2409.392535 | X161: 2436.643014 | Y161: 4106.719122 | Z161: =Z$135*$A138 -> 0 | AA161: =AA$135*$A137 -> 0 | CA161: 10143.89561 | CC161: 0.03175 | CD161: 0 | CE161: 0 | CF161: 0
A162: 0 | B162: 26 | C162: 0 | D162: 0 | E162: 0 | F162: 0 | G162: 0 | H162: 0 | I162: 0 | J162: 0 | K162: 0 | L162: 0 | M162: 0 | N162: 0 | O162: 0 | P162: 0 | Q162: 0 | R162: 0 | S162: 0 | T162: 0 | U162: 0 | V162: 0 | W162: 1204.696268 | X162: 2436.643014 | Y162: 2464.031473 | Z162: 0 | AA162: =AA$135*$A138 -> 0 | AB162: =AB$135*$A137 -> 0 | CA162: 6105.370755 | CC162: 0.03175 | CD162: 0 | CE162: 0 | CF162: 0
A163: 0 | B163: 27 | C163: 0 | D163: 0 | E163: 0 | F163: 0 | G163: 0 | H163: 0 | I163: 0 | J163: 0 | K163: 0 | L163: 0 | M163: 0 | N163: 0 | O163: 0 | P163: 0 | Q163: 0 | R163: 0 | S163: 0 | T163: 0 | U163: 0 | V163: 0 | W163: 0 | X163: 1218.321507 | Y163: 2464.031473 | Z163: 0 | AA163: 0 | AB163: =AB$135*$A138 -> 0 | AC163: =AC$135*$A137 -> 0 | CA163: 3682.35298 | CC163: 0.03175 | CD163: 0 | CE163: 0 | CF163: 0
A164: 0 | B164: 28 | C164: 0 | D164: 0 | E164: 0 | F164: 0 | G164: 0 | H164: 0 | I164: 0 | J164: 0 | K164: 0 | L164: 0 | M164: 0 | N164: 0 | O164: 0 | P164: 0 | Q164: 0 | R164: 0 | S164: 0 | T164: 0 | U164: 0 | V164: 0 | W164: 0 | X164: 0 | Y164: 1232.015737 | Z164: 0 | AA164: 0 | AB164: 0 | AC164: =AC$135*$A138 -> 0 | AD164: =AD$135*$A137 -> 0 | CA164: 1232.015737 | CC164: 0.03175 | CD164: 0 | CE164: 0 | CF164: 0
A165: 0 | B165: 29 | C165: 0 | D165: 0 | E165: 0 | F165: 0 | G165: 0 | H165: 0 | I165: 0 | J165: 0 | K165: 0 | L165: 0 | M165: 0 | N165: 0 | O165: 0 | P165: 0 | Q165: 0 | R165: 0 | S165: 0 | T165: 0 | U165: 0 | V165: 0 | W165: 0 | X165: 0 | Y165: 0 | Z165: 0 | AA165: 0 | AB165: 0 | AC165: 0 | AD165: =AD$135*$A138 -> 0 | AE165: =AE$135*$A137 -> 0 | CA165: 0 | CC165: 0.03175 | CD165: 0 | CE165: 0 | CF165: 0
A166: 0 | B166: 30 | C166: 0 | D166: 0 | E166: 0 | F166: 0 | G166: 0 | H166: 0 | I166: 0 | J166: 0 | K166: 0 | L166: 0 | M166: 0 | N166: 0 | O166: 0 | P166: 0 | Q166: 0 | R166: 0 | S166: 0 | T166: 0 | U166: 0 | V166: 0 | W166: 0 | X166: 0 | Y166: 0 | Z166: 0 | AA166: 0 | AB166: 0 | AC166: 0 | AD166: 0 | AE166: =AE$135*$A138 -> 0 | AF166: =AF$135*$A137 -> 0 | CA166: 0 | CC166: 0.03175 | CD166: 0 | CE166: 0 | CF166: 0
A167: 0 | B167: 31 | C167: 0 | D167: 0 | E167: 0 | F167: 0 | G167: 0 | H167: 0 | I167: 0 | J167: 0 | K167: 0 | L167: 0 | M167: 0 | N167: 0 | O167: 0 | P167: 0 | Q167: 0 | R167: 0 | S167: 0 | T167: 0 | U167: 0 | V167: 0 | W167: 0 | X167: 0 | Y167: 0 | Z167: 0 | AA167: 0 | AB167: 0 | AC167: 0 | AD167: 0 | AE167: 0 | AF167: =AF$135*$A138 -> 0 | AG167: =AG$135*$A137 -> 0 | CA167: 0 | CC167: 0.03175 | CD167: 0 | CE167: 0 | CF167: 0
A168: 0 | B168: 32 | C168: 0 | D168: 0 | E168: 0 | F168: 0 | G168: 0 | H168: 0 | I168: 0 | J168: 0 | K168: 0 | L168: 0 | M168: 0 | N168: 0 | O168: 0 | P168: 0 | Q168: 0 | R168: 0 | S168: 0 | T168: 0 | U168: 0 | V168: 0 | W168: 0 | X168: 0 | Y168: 0 | Z168: 0 | AA168: 0 | AB168: 0 | AC168: 0 | AD168: 0 | AE168: 0 | AF168: 0 | AG168: =AG$135*$A138 -> 0 | AH168: =AH$135*$A137 -> 0 | CA168: 0 | CC168: 0.03163 | CD168: 0 | CE168: 0 | CF168: 0
A169: 0 | B169: 33 | C169: 0 | D169: 0 | E169: 0 | F169: 0 | G169: 0 | H169: 0 | I169: 0 | J169: 0 | K169: 0 | L169: 0 | M169: 0 | N169: 0 | O169: 0 | P169: 0 | Q169: 0 | R169: 0 | S169: 0 | T169: 0 | U169: 0 | V169: 0 | W169: 0 | X169: 0 | Y169: 0 | Z169: 0 | AA169: 0 | AB169: 0 | AC169: 0 | AD169: 0 | AE169: 0 | AF169: 0 | AG169: 0 | AH169: =AH$135*$A138 -> 0 | AI169: =AI$135*$A137 -> 0 | CA169: 0
A170: 0 | B170: 34 | C170: 0 | D170: 0 | E170: 0 | F170: 0 | G170: 0 | H170: 0 | I170: 0 | J170: 0 | K170: 0 | L170: 0 | M170: 0 | N170: 0 | O170: 0 | P170: 0 | Q170: 0 | R170: 0 | S170: 0 | T170: 0 | U170: 0 | V170: 0 | W170: 0 | X170: 0 | Y170: 0 | Z170: 0 | AA170: 0 | AB170: 0 | AC170: 0 | AD170: 0 | AE170: 0 | AF170: 0 | AG170: 0 | AH170: 0 | AI170: =AI$135*$A138 -> 0 | AJ170: =AJ$135*$A137 -> 0 | CA170: 0
A171: 0 | B171: 35 | C171: 0 | D171: 0 | E171: 0 | F171: 0 | G171: 0 | H171: 0 | I171: 0 | J171: 0 | K171: 0 | L171: 0 | M171: 0 | N171: 0 | O171: 0 | P171: 0 | Q171: 0 | R171: 0 | S171: 0 | T171: 0 | U171: 0 | V171: 0 | W171: 0 | X171: 0 | Y171: 0 | Z171: 0 | AA171: 0 | AB171: 0 | AC171: 0 | AD171: 0 | AE171: 0 | AF171: 0 | AG171: 0 | AH171: 0 | AI171: 0 | AJ171: =AJ$135*$A138 -> 0 | AK171: =AK$135*$A137 -> 0 | CA171: 0
A172: 0 | B172: 36 | C172: 0 | D172: 0 | E172: 0 | F172: 0 | G172: 0 | H172: 0 | I172: 0 | J172: 0 | K172: 0 | L172: 0 | M172: 0 | N172: 0 | O172: 0 | P172: 0 | Q172: 0 | R172: 0 | S172: 0 | T172: 0 | U172: 0 | V172: 0 | W172: 0 | X172: 0 | Y172: 0 | Z172: 0 | AA172: 0 | AB172: 0 | AC172: 0 | AD172: 0 | AE172: 0 | AF172: 0 | AG172: 0 | AH172: 0 | AI172: 0 | AJ172: 0 | AK172: =AK$135*$A138 -> 0 | AL172: =AL$135*$A137 -> 0 | CA172: 0
A173: 0 | B173: 37 | C173: 0 | D173: 0 | E173: 0 | F173: 0 | G173: 0 | H173: 0 | I173: 0 | J173: 0 | K173: 0 | L173: 0 | M173: 0 | N173: 0 | O173: 0 | P173: 0 | Q173: 0 | R173: 0 | S173: 0 | T173: 0 | U173: 0 | V173: 0 | W173: 0 | X173: 0 | Y173: 0 | Z173: 0 | AA173: 0 | AB173: 0 | AC173: 0 | AD173: 0 | AE173: 0 | AF173: 0 | AG173: 0 | AH173: 0 | AI173: 0 | AJ173: 0 | AK173: 0 | AL173: =AL$135*$A138 -> 0 | AM173: =AM$135*$A137 -> 0 | CA173: 0
A174: 0 | B174: 38 | C174: 0 | D174: 0 | E174: 0 | F174: 0 | G174: 0 | H174: 0 | I174: 0 | J174: 0 | K174: 0 | L174: 0 | M174: 0 | N174: 0 | O174: 0 | P174: 0 | Q174: 0 | R174: 0 | S174: 0 | T174: 0 | U174: 0 | V174: 0 | W174: 0 | X174: 0 | Y174: 0 | Z174: 0 | AA174: 0 | AB174: 0 | AC174: 0 | AD174: 0 | AE174: 0 | AF174: 0 | AG174: 0 | AH174: 0 | AI174: 0 | AJ174: 0 | AK174: 0 | AL174: 0 | AM174: =AM$135*$A138 -> 0 | AN174: =AN$135*$A137 -> 0 | CA174: 0
A175: 0 | B175: 39 | C175: 0 | D175: 0 | E175: 0 | F175: 0 | G175: 0 | H175: 0 | I175: 0 | J175: 0 | K175: 0 | L175: 0 | M175: 0 | N175: 0 | O175: 0 | P175: 0 | Q175: 0 | R175: 0 | S175: 0 | T175: 0 | U175: 0 | V175: 0 | W175: 0 | X175: 0 | Y175: 0 | Z175: 0 | AA175: 0 | AB175: 0 | AC175: 0 | AD175: 0 | AE175: 0 | AF175: 0 | AG175: 0 | AH175: 0 | AI175: 0 | AJ175: 0 | AK175: 0 | AL175: 0 | AM175: 0 | AN175: =AN$135*$A138 -> 0 | AO175: =AO$135*$A137 -> 0 | CA175: 0
A176: 0 | B176: 40 | C176: 0 | D176: 0 | E176: 0 | F176: 0 | G176: 0 | H176: 0 | I176: 0 | J176: 0 | K176: 0 | L176: 0 | M176: 0 | N176: 0 | O176: 0 | P176: 0 | Q176: 0 | R176: 0 | S176: 0 | T176: 0 | U176: 0 | V176: 0 | W176: 0 | X176: 0 | Y176: 0 | Z176: 0 | AA176: 0 | AB176: 0 | AC176: 0 | AD176: 0 | AE176: 0 | AF176: 0 | AG176: 0 | AH176: 0 | AI176: 0 | AJ176: 0 | AK176: 0 | AL176: 0 | AM176: 0 | AN176: 0 | AO176: =AO$135*$A138 -> 0 | AP176: =AP$135*$A137 -> 0 | CA176: 0
A177: 0 | B177: 41 | C177: 0 | D177: 0 | E177: 0 | F177: 0 | G177: 0 | H177: 0 | I177: 0 | J177: 0 | K177: 0 | L177: 0 | M177: 0 | N177: 0 | O177: 0 | P177: 0 | Q177: 0 | R177: 0 | S177: 0 | T177: 0 | U177: 0 | V177: 0 | W177: 0 | X177: 0 | Y177: 0 | Z177: 0 | AA177: 0 | AB177: 0 | AC177: 0 | AD177: 0 | AE177: 0 | AF177: 0 | AG177: 0 | AH177: 0 | AI177: 0 | AJ177: 0 | AK177: 0 | AL177: 0 | AM177: 0 | AN177: 0 | AO177: 0 | AP177: =AP$135*$A138 -> 0 | AQ177: =AQ$135*$A137 -> 0 | CA177: 0
A178: 0 | B178: 42 | C178: 0 | D178: 0 | E178: 0 | F178: 0 | G178: 0 | H178: 0 | I178: 0 | J178: 0 | K178: 0 | L178: 0 | M178: 0 | N178: 0 | O178: 0 | P178: 0 | Q178: 0 | R178: 0 | S178: 0 | T178: 0 | U178: 0 | V178: 0 | W178: 0 | X178: 0 | Y178: 0 | Z178: 0 | AA178: 0 | AB178: 0 | AC178: 0 | AD178: 0 | AE178: 0 | AF178: 0 | AG178: 0 | AH178: 0 | AI178: 0 | AJ178: 0 | AK178: 0 | AL178: 0 | AM178: 0 | AN178: 0 | AO178: 0 | AP178: 0 | AQ178: =AQ$135*$A138 -> 0 | AR178: =AR$135*$A137 -> 0 | CA178: 0
A179: 0 | B179: 43 | C179: 0 | D179: 0 | E179: 0 | F179: 0 | G179: 0 | H179: 0 | I179: 0 | J179: 0 | K179: 0 | L179: 0 | M179: 0 | N179: 0 | O179: 0 | P179: 0 | Q179: 0 | R179: 0 | S179: 0 | T179: 0 | U179: 0 | V179: 0 | W179: 0 | X179: 0 | Y179: 0 | Z179: 0 | AA179: 0 | AB179: 0 | AC179: 0 | AD179: 0 | AE179: 0 | AF179: 0 | AG179: 0 | AH179: 0 | AI179: 0 | AJ179: 0 | AK179: 0 | AL179: 0 | AM179: 0 | AN179: 0 | AO179: 0 | AP179: 0 | AQ179: 0 | AR179: =AR$135*$A138 -> 0 | AS179: =AS$135*$A137 -> 0 | CA179: 0
A180: 0 | B180: 44 | C180: 0 | D180: 0 | E180: 0 | F180: 0 | G180: 0 | H180: 0 | I180: 0 | J180: 0 | K180: 0 | L180: 0 | M180: 0 | N180: 0 | O180: 0 | P180: 0 | Q180: 0 | R180: 0 | S180: 0 | T180: 0 | U180: 0 | V180: 0 | W180: 0 | X180: 0 | Y180: 0 | Z180: 0 | AA180: 0 | AB180: 0 | AC180: 0 | AD180: 0 | AE180: 0 | AF180: 0 | AG180: 0 | AH180: 0 | AI180: 0 | AJ180: 0 | AK180: 0 | AL180: 0 | AM180: 0 | AN180: 0 | AO180: 0 | AP180: 0 | AQ180: 0 | AR180: 0 | AS180: =AS$135*$A138 -> 0 | AT180: =AT$135*$A137 -> 0 | CA180: 0
A181: 0 | B181: 45 | C181: 0 | D181: 0 | E181: 0 | F181: 0 | G181: 0 | H181: 0 | I181: 0 | J181: 0 | K181: 0 | L181: 0 | M181: 0 | N181: 0 | O181: 0 | P181: 0 | Q181: 0 | R181: 0 | S181: 0 | T181: 0 | U181: 0 | V181: 0 | W181: 0 | X181: 0 | Y181: 0 | Z181: 0 | AA181: 0 | AB181: 0 | AC181: 0 | AD181: 0 | AE181: 0 | AF181: 0 | AG181: 0 | AH181: 0 | AI181: 0 | AJ181: 0 | AK181: 0 | AL181: 0 | AM181: 0 | AN181: 0 | AO181: 0 | AP181: 0 | AQ181: 0 | AR181: 0 | AS181: 0 | AT181: =AT$135*$A138 -> 0 | AU181: =AU$135*$A137 -> 0 | CA181: 0
A182: 0 | B182: 46 | C182: 0 | D182: 0 | E182: 0 | F182: 0 | G182: 0 | H182: 0 | I182: 0 | J182: 0 | K182: 0 | L182: 0 | M182: 0 | N182: 0 | O182: 0 | P182: 0 | Q182: 0 | R182: 0 | S182: 0 | T182: 0 | U182: 0 | V182: 0 | W182: 0 | X182: 0 | Y182: 0 | Z182: 0 | AA182: 0 | AB182: 0 | AC182: 0 | AD182: 0 | AE182: 0 | AF182: 0 | AG182: 0 | AH182: 0 | AI182: 0 | AJ182: 0 | AK182: 0 | AL182: 0 | AM182: 0 | AN182: 0 | AO182: 0 | AP182: 0 | AQ182: 0 | AR182: 0 | AS182: 0 | AT182: 0 | AU182: =AU$135*$A138 -> 0 | AV182: =AV$135*$A137 -> 0 | CA182: 0
A183: 0 | B183: 47 | C183: 0 | D183: 0 | E183: 0 | F183: 0 | G183: 0 | H183: 0 | I183: 0 | J183: 0 | K183: 0 | L183: 0 | M183: 0 | N183: 0 | O183: 0 | P183: 0 | Q183: 0 | R183: 0 | S183: 0 | T183: 0 | U183: 0 | V183: 0 | W183: 0 | X183: 0 | Y183: 0 | Z183: 0 | AA183: 0 | AB183: 0 | AC183: 0 | AD183: 0 | AE183: 0 | AF183: 0 | AG183: 0 | AH183: 0 | AI183: 0 | AJ183: 0 | AK183: 0 | AL183: 0 | AM183: 0 | AN183: 0 | AO183: 0 | AP183: 0 | AQ183: 0 | AR183: 0 | AS183: 0 | AT183: 0 | AU183: 0 | AV183: =AV$135*$A138 -> 0 | AW183: =AW$135*$A137 -> 0 | CA183: 0
A184: 0 | B184: 48 | C184: 0 | D184: 0 | E184: 0 | F184: 0 | G184: 0 | H184: 0 | I184: 0 | J184: 0 | K184: 0 | L184: 0 | M184: 0 | N184: 0 | O184: 0 | P184: 0 | Q184: 0 | R184: 0 | S184: 0 | T184: 0 | U184: 0 | V184: 0 | W184: 0 | X184: 0 | Y184: 0 | Z184: 0 | AA184: 0 | AB184: 0 | AC184: 0 | AD184: 0 | AE184: 0 | AF184: 0 | AG184: 0 | AH184: 0 | AI184: 0 | AJ184: 0 | AK184: 0 | AL184: 0 | AM184: 0 | AN184: 0 | AO184: 0 | AP184: 0 | AQ184: 0 | AR184: 0 | AS184: 0 | AT184: 0 | AU184: 0 | AV184: 0 | AW184: =AW$135*$A138 -> 0 | AX184: =AX$135*$A137 -> 0 | CA184: 0
A185: 0 | B185: 49 | C185: 0 | D185: 0 | E185: 0 | F185: 0 | G185: 0 | H185: 0 | I185: 0 | J185: 0 | K185: 0 | L185: 0 | M185: 0 | N185: 0 | O185: 0 | P185: 0 | Q185: 0 | R185: 0 | S185: 0 | T185: 0 | U185: 0 | V185: 0 | W185: 0 | X185: 0 | Y185: 0 | Z185: 0 | AA185: 0 | AB185: 0 | AC185: 0 | AD185: 0 | AE185: 0 | AF185: 0 | AG185: 0 | AH185: 0 | AI185: 0 | AJ185: 0 | AK185: 0 | AL185: 0 | AM185: 0 | AN185: 0 | AO185: 0 | AP185: 0 | AQ185: 0 | AR185: 0 | AS185: 0 | AT185: 0 | AU185: 0 | AV185: 0 | AW185: 0 | AX185: =AX$135*$A138 -> 0 | AY185: =AY$135*$A137 -> 0 | CA185: 0
A186: 0 | B186: 50 | C186: 0 | D186: 0 | E186: 0 | F186: 0 | G186: 0 | H186: 0 | I186: 0 | J186: 0 | K186: 0 | L186: 0 | M186: 0 | N186: 0 | O186: 0 | P186: 0 | Q186: 0 | R186: 0 | S186: 0 | T186: 0 | U186: 0 | V186: 0 | W186: 0 | X186: 0 | Y186: 0 | Z186: 0 | AA186: 0 | AB186: 0 | AC186: 0 | AD186: 0 | AE186: 0 | AF186: 0 | AG186: 0 | AH186: 0 | AI186: 0 | AJ186: 0 | AK186: 0 | AL186: 0 | AM186: 0 | AN186: 0 | AO186: 0 | AP186: 0 | AQ186: 0 | AR186: 0 | AS186: 0 | AT186: 0 | AU186: 0 | AV186: 0 | AW186: 0 | AX186: 0 | AY186: =AY$135*$A138 -> 0 | AZ186: =AZ$135*$A137 -> 0 | CA186: 0
A187: 0 | B187: 51 | C187: 0 | D187: 0 | E187: 0 | F187: 0 | G187: 0 | H187: 0 | I187: 0 | J187: 0 | K187: 0 | L187: 0 | M187: 0 | N187: 0 | O187: 0 | P187: 0 | Q187: 0 | R187: 0 | S187: 0 | T187: 0 | U187: 0 | V187: 0 | W187: 0 | X187: 0 | Y187: 0 | Z187: 0 | AA187: 0 | AB187: 0 | AC187: 0 | AD187: 0 | AE187: 0 | AF187: 0 | AG187: 0 | AH187: 0 | AI187: 0 | AJ187: 0 | AK187: 0 | AL187: 0 | AM187: 0 | AN187: 0 | AO187: 0 | AP187: 0 | AQ187: 0 | AR187: 0 | AS187: 0 | AT187: 0 | AU187: 0 | AV187: 0 | AW187: 0 | AX187: 0 | AY187: 0 | AZ187: =AZ$135*$A138 -> 0 | BA187: =BA$135*$A137 -> 0 | CA187: 0
A188: 0 | B188: 52 | C188: 0 | D188: 0 | E188: 0 | F188: 0 | G188: 0 | H188: 0 | I188: 0 | J188: 0 | K188: 0 | L188: 0 | M188: 0 | N188: 0 | O188: 0 | P188: 0 | Q188: 0 | R188: 0 | S188: 0 | T188: 0 | U188: 0 | V188: 0 | W188: 0 | X188: 0 | Y188: 0 | Z188: 0 | AA188: 0 | AB188: 0 | AC188: 0 | AD188: 0 | AE188: 0 | AF188: 0 | AG188: 0 | AH188: 0 | AI188: 0 | AJ188: 0 | AK188: 0 | AL188: 0 | AM188: 0 | AN188: 0 | AO188: 0 | AP188: 0 | AQ188: 0 | AR188: 0 | AS188: 0 | AT188: 0 | AU188: 0 | AV188: 0 | AW188: 0 | AX188: 0 | AY188: 0 | AZ188: 0 | BA188: =BA$135*$A138 -> 0 | BB188: =BB$135*$A137 -> 0 | CA188: 0
A189: 0 | B189: 53 | C189: 0 | D189: 0 | E189: 0 | F189: 0 | G189: 0 | H189: 0 | I189: 0 | J189: 0 | K189: 0 | L189: 0 | M189: 0 | N189: 0 | O189: 0 | P189: 0 | Q189: 0 | R189: 0 | S189: 0 | T189: 0 | U189: 0 | V189: 0 | W189: 0 | X189: 0 | Y189: 0 | Z189: 0 | AA189: 0 | AB189: 0 | AC189: 0 | AD189: 0 | AE189: 0 | AF189: 0 | AG189: 0 | AH189: 0 | AI189: 0 | AJ189: 0 | AK189: 0 | AL189: 0 | AM189: 0 | AN189: 0 | AO189: 0 | AP189: 0 | AQ189: 0 | AR189: 0 | AS189: 0 | AT189: 0 | AU189: 0 | AV189: 0 | AW189: 0 | AX189: 0 | AY189: 0 | AZ189: 0 | BA189: 0 | BB189: =BB$135*$A138 -> 0 | BC189: =BC$135*$A137 -> 0 | CA189: 0
A190: 0 | B190: 54 | C190: 0 | D190: 0 | E190: 0 | F190: 0 | G190: 0 | H190: 0 | I190: 0 | J190: 0 | K190: 0 | L190: 0 | M190: 0 | N190: 0 | O190: 0 | P190: 0 | Q190: 0 | R190: 0 | S190: 0 | T190: 0 | U190: 0 | V190: 0 | W190: 0 | X190: 0 | Y190: 0 | Z190: 0 | AA190: 0 | AB190: 0 | AC190: 0 | AD190: 0 | AE190: 0 | AF190: 0 | AG190: 0 | AH190: 0 | AI190: 0 | AJ190: 0 | AK190: 0 | AL190: 0 | AM190: 0 | AN190: 0 | AO190: 0 | AP190: 0 | AQ190: 0 | AR190: 0 | AS190: 0 | AT190: 0 | AU190: 0 | AV190: 0 | AW190: 0 | AX190: 0 | AY190: 0 | AZ190: 0 | BA190: 0 | BB190: 0 | BC190: =BC$135*$A138 -> 0 | BD190: =BD$135*$A137 -> 0 | CA190: 0
A191: 0 | B191: 55 | C191: 0 | D191: 0 | E191: 0 | F191: 0 | G191: 0 | H191: 0 | I191: 0 | J191: 0 | K191: 0 | L191: 0 | M191: 0 | N191: 0 | O191: 0 | P191: 0 | Q191: 0 | R191: 0 | S191: 0 | T191: 0 | U191: 0 | V191: 0 | W191: 0 | X191: 0 | Y191: 0 | Z191: 0 | AA191: 0 | AB191: 0 | AC191: 0 | AD191: 0 | AE191: 0 | AF191: 0 | AG191: 0 | AH191: 0 | AI191: 0 | AJ191: 0 | AK191: 0 | AL191: 0 | AM191: 0 | AN191: 0 | AO191: 0 | AP191: 0 | AQ191: 0 | AR191: 0 | AS191: 0 | AT191: 0 | AU191: 0 | AV191: 0 | AW191: 0 | AX191: 0 | AY191: 0 | AZ191: 0 | BA191: 0 | BB191: 0 | BC191: 0 | BD191: =BD$135*$A138 -> 0 | BE191: =BE$135*$A137 -> 0 | CA191: 0
A192: 0 | B192: 56 | C192: 0 | D192: 0 | E192: 0 | F192: 0 | G192: 0 | H192: 0 | I192: 0 | J192: 0 | K192: 0 | L192: 0 | M192: 0 | N192: 0 | O192: 0 | P192: 0 | Q192: 0 | R192: 0 | S192: 0 | T192: 0 | U192: 0 | V192: 0 | W192: 0 | X192: 0 | Y192: 0 | Z192: 0 | AA192: 0 | AB192: 0 | AC192: 0 | AD192: 0 | AE192: 0 | AF192: 0 | AG192: 0 | AH192: 0 | AI192: 0 | AJ192: 0 | AK192: 0 | AL192: 0 | AM192: 0 | AN192: 0 | AO192: 0 | AP192: 0 | AQ192: 0 | AR192: 0 | AS192: 0 | AT192: 0 | AU192: 0 | AV192: 0 | AW192: 0 | AX192: 0 | AY192: 0 | AZ192: 0 | BA192: 0 | BB192: 0 | BC192: 0 | BD192: 0 | BE192: =BE$135*$A138 -> 0 | BF192: =BF$135*$A137 -> 0 | CA192: 0
A193: 0 | B193: 57 | C193: 0 | D193: 0 | E193: 0 | F193: 0 | G193: 0 | H193: 0 | I193: 0 | J193: 0 | K193: 0 | L193: 0 | M193: 0 | N193: 0 | O193: 0 | P193: 0 | Q193: 0 | R193: 0 | S193: 0 | T193: 0 | U193: 0 | V193: 0 | W193: 0 | X193: 0 | Y193: 0 | Z193: 0 | AA193: 0 | AB193: 0 | AC193: 0 | AD193: 0 | AE193: 0 | AF193: 0 | AG193: 0 | AH193: 0 | AI193: 0 | AJ193: 0 | AK193: 0 | AL193: 0 | AM193: 0 | AN193: 0 | AO193: 0 | AP193: 0 | AQ193: 0 | AR193: 0 | AS193: 0 | AT193: 0 | AU193: 0 | AV193: 0 | AW193: 0 | AX193: 0 | AY193: 0 | AZ193: 0 | BA193: 0 | BB193: 0 | BC193: 0 | BD193: 0 | BE193: 0 | BF193: =BF$135*$A138 -> 0 | BG193: =BG$135*$A137 -> 0 | CA193: 0
A194: 0 | B194: 58 | C194: 0 | D194: 0 | E194: 0 | F194: 0 | G194: 0 | H194: 0 | I194: 0 | J194: 0 | K194: 0 | L194: 0 | M194: 0 | N194: 0 | O194: 0 | P194: 0 | Q194: 0 | R194: 0 | S194: 0 | T194: 0 | U194: 0 | V194: 0 | W194: 0 | X194: 0 | Y194: 0 | Z194: 0 | AA194: 0 | AB194: 0 | AC194: 0 | AD194: 0 | AE194: 0 | AF194: 0 | AG194: 0 | AH194: 0 | AI194: 0 | AJ194: 0 | AK194: 0 | AL194: 0 | AM194: 0 | AN194: 0 | AO194: 0 | AP194: 0 | AQ194: 0 | AR194: 0 | AS194: 0 | AT194: 0 | AU194: 0 | AV194: 0 | AW194: 0 | AX194: 0 | AY194: 0 | AZ194: 0 | BA194: 0 | BB194: 0 | BC194: 0 | BD194: 0 | BE194: 0 | BF194: 0 | BG194: =BG$135*$A138 -> 0 | BH194: =BH$135*$A137 -> 0 | CA194: 0
A195: 0 | B195: 59 | C195: 0 | D195: 0 | E195: 0 | F195: 0 | G195: 0 | H195: 0 | I195: 0 | J195: 0 | K195: 0 | L195: 0 | M195: 0 | N195: 0 | O195: 0 | P195: 0 | Q195: 0 | R195: 0 | S195: 0 | T195: 0 | U195: 0 | V195: 0 | W195: 0 | X195: 0 | Y195: 0 | Z195: 0 | AA195: 0 | AB195: 0 | AC195: 0 | AD195: 0 | AE195: 0 | AF195: 0 | AG195: 0 | AH195: 0 | AI195: 0 | AJ195: 0 | AK195: 0 | AL195: 0 | AM195: 0 | AN195: 0 | AO195: 0 | AP195: 0 | AQ195: 0 | AR195: 0 | AS195: 0 | AT195: 0 | AU195: 0 | AV195: 0 | AW195: 0 | AX195: 0 | AY195: 0 | AZ195: 0 | BA195: 0 | BB195: 0 | BC195: 0 | BD195: 0 | BE195: 0 | BF195: 0 | BG195: 0 | BH195: =BH$135*$A138 -> 0 | BI195: =BI$135*$A137 -> 0 | CA195: 0
A196: 0 | B196: 60 | C196: 0 | D196: 0 | E196: 0 | F196: 0 | G196: 0 | H196: 0 | I196: 0 | J196: 0 | K196: 0 | L196: 0 | M196: 0 | N196: 0 | O196: 0 | P196: 0 | Q196: 0 | R196: 0 | S196: 0 | T196: 0 | U196: 0 | V196: 0 | W196: 0 | X196: 0 | Y196: 0 | Z196: 0 | AA196: 0 | AB196: 0 | AC196: 0 | AD196: 0 | AE196: 0 | AF196: 0 | AG196: 0 | AH196: 0 | AI196: 0 | AJ196: 0 | AK196: 0 | AL196: 0 | AM196: 0 | AN196: 0 | AO196: 0 | AP196: 0 | AQ196: 0 | AR196: 0 | AS196: 0 | AT196: 0 | AU196: 0 | AV196: 0 | AW196: 0 | AX196: 0 | AY196: 0 | AZ196: 0 | BA196: 0 | BB196: 0 | BC196: 0 | BD196: 0 | BE196: 0 | BF196: 0 | BG196: 0 | BH196: 0 | BI196: =BI$135*$A138 -> 0 | BJ196: =BJ$135*$A137 -> 0 | CA196: 0
A197: 0 | B197: 61 | C197: 0 | D197: 0 | E197: 0 | F197: 0 | G197: 0 | H197: 0 | I197: 0 | J197: 0 | K197: 0 | L197: 0 | M197: 0 | N197: 0 | O197: 0 | P197: 0 | Q197: 0 | R197: 0 | S197: 0 | T197: 0 | U197: 0 | V197: 0 | W197: 0 | X197: 0 | Y197: 0 | Z197: 0 | AA197: 0 | AB197: 0 | AC197: 0 | AD197: 0 | AE197: 0 | AF197: 0 | AG197: 0 | AH197: 0 | AI197: 0 | AJ197: 0 | AK197: 0 | AL197: 0 | AM197: 0 | AN197: 0 | AO197: 0 | AP197: 0 | AQ197: 0 | AR197: 0 | AS197: 0 | AT197: 0 | AU197: 0 | AV197: 0 | AW197: 0 | AX197: 0 | AY197: 0 | AZ197: 0 | BA197: 0 | BB197: 0 | BC197: 0 | BD197: 0 | BE197: 0 | BF197: 0 | BG197: 0 | BH197: 0 | BI197: 0 | BJ197: =BJ$135*$A138 -> 0 | BK197: =BK$135*$A137 -> 0 | CA197: 0
A198: 0 | B198: 62 | C198: 0 | D198: 0 | E198: 0 | F198: 0 | G198: 0 | H198: 0 | I198: 0 | J198: 0 | K198: 0 | L198: 0 | M198: 0 | N198: 0 | O198: 0 | P198: 0 | Q198: 0 | R198: 0 | S198: 0 | T198: 0 | U198: 0 | V198: 0 | W198: 0 | X198: 0 | Y198: 0 | Z198: 0 | AA198: 0 | AB198: 0 | AC198: 0 | AD198: 0 | AE198: 0 | AF198: 0 | AG198: 0 | AH198: 0 | AI198: 0 | AJ198: 0 | AK198: 0 | AL198: 0 | AM198: 0 | AN198: 0 | AO198: 0 | AP198: 0 | AQ198: 0 | AR198: 0 | AS198: 0 | AT198: 0 | AU198: 0 | AV198: 0 | AW198: 0 | AX198: 0 | AY198: 0 | AZ198: 0 | BA198: 0 | BB198: 0 | BC198: 0 | BD198: 0 | BE198: 0 | BF198: 0 | BG198: 0 | BH198: 0 | BI198: 0 | BJ198: 0 | BK198: =BK$135*$A138 -> 0 | BL198: =BL$135*$A137 -> 0 | CA198: 0
A199: 0 | B199: 63 | C199: 0 | D199: 0 | E199: 0 | F199: 0 | G199: 0 | H199: 0 | I199: 0 | J199: 0 | K199: 0 | L199: 0 | M199: 0 | N199: 0 | O199: 0 | P199: 0 | Q199: 0 | R199: 0 | S199: 0 | T199: 0 | U199: 0 | V199: 0 | W199: 0 | X199: 0 | Y199: 0 | Z199: 0 | AA199: 0 | AB199: 0 | AC199: 0 | AD199: 0 | AE199: 0 | AF199: 0 | AG199: 0 | AH199: 0 | AI199: 0 | AJ199: 0 | AK199: 0 | AL199: 0 | AM199: 0 | AN199: 0 | AO199: 0 | AP199: 0 | AQ199: 0 | AR199: 0 | AS199: 0 | AT199: 0 | AU199: 0 | AV199: 0 | AW199: 0 | AX199: 0 | AY199: 0 | AZ199: 0 | BA199: 0 | BB199: 0 | BC199: 0 | BD199: 0 | BE199: 0 | BF199: 0 | BG199: 0 | BH199: 0 | BI199: 0 | BJ199: 0 | BK199: 0 | BL199: =BL$135*$A138 -> 0 | BM199: =BM$135*$A137 -> 0 | CA199: 0
A200: 0 | B200: 64 | C200: 0 | D200: 0 | E200: 0 | F200: 0 | G200: 0 | H200: 0 | I200: 0 | J200: 0 | K200: 0 | L200: 0 | M200: 0 | N200: 0 | O200: 0 | P200: 0 | Q200: 0 | R200: 0 | S200: 0 | T200: 0 | U200: 0 | V200: 0 | W200: 0 | X200: 0 | Y200: 0 | Z200: 0 | AA200: 0 | AB200: 0 | AC200: 0 | AD200: 0 | AE200: 0 | AF200: 0 | AG200: 0 | AH200: 0 | AI200: 0 | AJ200: 0 | AK200: 0 | AL200: 0 | AM200: 0 | AN200: 0 | AO200: 0 | AP200: 0 | AQ200: 0 | AR200: 0 | AS200: 0 | AT200: 0 | AU200: 0 | AV200: 0 | AW200: 0 | AX200: 0 | AY200: 0 | AZ200: 0 | BA200: 0 | BB200: 0 | BC200: 0 | BD200: 0 | BE200: 0 | BF200: 0 | BG200: 0 | BH200: 0 | BI200: 0 | BJ200: 0 | BK200: 0 | BL200: 0 | BM200: =BM$135*$A138 -> 0 | BN200: =BN$135*$A137 -> 0 | CA200: 0
A201: 0 | B201: 65 | C201: 0 | D201: 0 | E201: 0 | F201: 0 | G201: 0 | H201: 0 | I201: 0 | J201: 0 | K201: 0 | L201: 0 | M201: 0 | N201: 0 | O201: 0 | P201: 0 | Q201: 0 | R201: 0 | S201: 0 | T201: 0 | U201: 0 | V201: 0 | W201: 0 | X201: 0 | Y201: 0 | Z201: 0 | AA201: 0 | AB201: 0 | AC201: 0 | AD201: 0 | AE201: 0 | AF201: 0 | AG201: 0 | AH201: 0 | AI201: 0 | AJ201: 0 | AK201: 0 | AL201: 0 | AM201: 0 | AN201: 0 | AO201: 0 | AP201: 0 | AQ201: 0 | AR201: 0 | AS201: 0 | AT201: 0 | AU201: 0 | AV201: 0 | AW201: 0 | AX201: 0 | AY201: 0 | AZ201: 0 | BA201: 0 | BB201: 0 | BC201: 0 | BD201: 0 | BE201: 0 | BF201: 0 | BG201: 0 | BH201: 0 | BI201: 0 | BJ201: 0 | BK201: 0 | BL201: 0 | BM201: 0 | BN201: =BN$135*$A138 -> 0 | BO201: =BO$135*$A137 -> 0 | CA201: =SUM($C201:$BZ201) -> 0
A202: =IF($B$132=1,CC202,IF($B$132=2,CD202,IF($B$132=3,CE202,IF($B$132=4,CF202,#VALUE!)))) -> 0 | B202: =+B201+1 -> 66 | C202: =C$135*$A202 -> 0 | D202: 0 | E202: 0 | F202: 0 | G202: 0 | H202: 0 | I202: 0 | J202: 0 | K202: 0 | L202: 0 | M202: 0 | N202: 0 | O202: 0 | P202: 0 | Q202: 0 | R202: 0 | S202: 0 | T202: 0 | U202: 0 | V202: 0 | W202: 0 | X202: 0 | Y202: 0 | Z202: 0 | AA202: 0 | AB202: 0 | AC202: 0 | AD202: 0 | AE202: 0 | AF202: 0 | AG202: 0 | AH202: 0 | AI202: 0 | AJ202: 0 | AK202: 0 | AL202: 0 | AM202: 0 | AN202: 0 | AO202: 0 | AP202: 0 | AQ202: 0 | AR202: 0 | AS202: 0 | AT202: 0 | AU202: 0 | AV202: 0 | AW202: 0 | AX202: 0 | AY202: 0 | AZ202: 0 | BA202: 0 | BB202: 0 | BC202: 0 | BD202: 0 | BE202: 0 | BF202: 0 | BG202: 0 | BH202: 0 | BI202: 0 | BJ202: 0 | BK202: 0 | BL202: 0 | BM202: 0 | BN202: 0 | BO202: =BO$135*$A138 -> 0 | BP202: =BP$135*$A137 -> 0 | CA202: 0
A203: 0 | B203: 67 | C203: 0 | D203: =D$135*$A202 -> 0 | E203: 0 | F203: 0 | G203: 0 | H203: 0 | I203: 0 | J203: 0 | K203: 0 | L203: 0 | M203: 0 | N203: 0 | O203: 0 | P203: 0 | Q203: 0 | R203: 0 | S203: 0 | T203: 0 | U203: 0 | V203: 0 | W203: 0 | X203: 0 | Y203: 0 | Z203: 0 | AA203: 0 | AB203: 0 | AC203: 0 | AD203: 0 | AE203: 0 | AF203: 0 | AG203: 0 | AH203: 0 | AI203: 0 | AJ203: 0 | AK203: 0 | AL203: 0 | AM203: 0 | AN203: 0 | AO203: 0 | AP203: 0 | AQ203: 0 | AR203: 0 | AS203: 0 | AT203: 0 | AU203: 0 | AV203: 0 | AW203: 0 | AX203: 0 | AY203: 0 | AZ203: 0 | BA203: 0 | BB203: 0 | BC203: 0 | BD203: 0 | BE203: 0 | BF203: 0 | BG203: 0 | BH203: 0 | BI203: 0 | BJ203: 0 | BK203: 0 | BL203: 0 | BM203: 0 | BN203: 0 | BO203: 0 | BP203: =BP$135*$A138 -> 0 | BQ203: =BQ$135*$A137 -> 0 | CA203: 0
A204: 0 | B204: 68 | C204: 0 | D204: 0 | E204: =E$135*$A202 -> 0 | F204: 0 | G204: 0 | H204: 0 | I204: 0 | J204: 0 | K204: 0 | L204: 0 | M204: 0 | N204: 0 | O204: 0 | P204: 0 | Q204: 0 | R204: 0 | S204: 0 | T204: 0 | U204: 0 | V204: 0 | W204: 0 | X204: 0 | Y204: 0 | Z204: 0 | AA204: 0 | AB204: 0 | AC204: 0 | AD204: 0 | AE204: 0 | AF204: 0 | AG204: 0 | AH204: 0 | AI204: 0 | AJ204: 0 | AK204: 0 | AL204: 0 | AM204: 0 | AN204: 0 | AO204: 0 | AP204: 0 | AQ204: 0 | AR204: 0 | AS204: 0 | AT204: 0 | AU204: 0 | AV204: 0 | AW204: 0 | AX204: 0 | AY204: 0 | AZ204: 0 | BA204: 0 | BB204: 0 | BC204: 0 | BD204: 0 | BE204: 0 | BF204: 0 | BG204: 0 | BH204: 0 | BI204: 0 | BJ204: 0 | BK204: 0 | BL204: 0 | BM204: 0 | BN204: 0 | BO204: 0 | BP204: 0 | BQ204: =BQ$135*$A138 -> 0 | BR204: =BR$135*$A137 -> 0 | CA204: 0
A205: 0 | B205: 69 | C205: 0 | D205: 0 | E205: 0 | F205: =F$135*$A202 -> 0 | G205: 0 | H205: 0 | I205: 0 | J205: 0 | K205: 0 | L205: 0 | M205: 0 | N205: 0 | O205: 0 | P205: 0 | Q205: 0 | R205: 0 | S205: 0 | T205: 0 | U205: 0 | V205: 0 | W205: 0 | X205: 0 | Y205: 0 | Z205: 0 | AA205: 0 | AB205: 0 | AC205: 0 | AD205: 0 | AE205: 0 | AF205: 0 | AG205: 0 | AH205: 0 | AI205: 0 | AJ205: 0 | AK205: 0 | AL205: 0 | AM205: 0 | AN205: 0 | AO205: 0 | AP205: 0 | AQ205: 0 | AR205: 0 | AS205: 0 | AT205: 0 | AU205: 0 | AV205: 0 | AW205: 0 | AX205: 0 | AY205: 0 | AZ205: 0 | BA205: 0 | BB205: 0 | BC205: 0 | BD205: 0 | BE205: 0 | BF205: 0 | BG205: 0 | BH205: 0 | BI205: 0 | BJ205: 0 | BK205: 0 | BL205: 0 | BM205: 0 | BN205: 0 | BO205: 0 | BP205: 0 | BQ205: 0 | BR205: =BR$135*$A138 -> 0 | BS205: =BS$135*$A137 -> 0 | CA205: 0
... 177 more rows

Sheet Inflation
A3: 2022 | B3: 100
A4: 2023 | B4: 107.1911202
A5: 2024 | B5: 110.5912226
A6: 2025 | B6: 113.1926507
A7: 2026 | B7: 115.7206199
A8: 2027 | B8: 118.305047
A9: 2028 | B9: 120.9471931
A10: 2029 | B10: 123.6080313
A11: 2030 | B11: 126.327408
A12: 2031 | B12: 129.106611
A13: 2032 | B13: 131.9469564
A14: 2033 | B14: 134.8497895
A15: 2034 | B15: 137.8164849
A16: 2035 | B16: 140.8484475
A17: 2036 | B17: 143.9471134
A18: 2037 | B18: 147.1139499
A19: 2038 | B19: 150.3504568
A20: 2039 | B20: 153.6581668
A21: 2040 | B21: 157.0386465
A22: 2041 | B22: 160.4934967
A23: 2042 | B23: 164.0243536
A24: 2043 | B24: 167.6328894
A25: 2044 | B25: 171.320813
A26: 2045 | B26: 175.0898709
